Body Name,Body,Service Label,Service Code,CIPFA Detailed Expenditure Type,CIPFA Detailed Expenditure CodeDate,,Transaction NumberNet Amount,,Supplier Name
Nottinghamshire County Council,1111/1001,Children and Young People,CYP,Premises Related,BAA,12/08/2019,05-14003,16538.04,ARC Property Services Partnership L
Nottinghamshire County Council,1111/1001,Children and Young People,CYP,Premises Related,BAA,13/08/2019,05-14291,13561,ARC Property Services Partnership L
Nottinghamshire County Council,1111/1001,Children and Young People,CYP,Premises Related,BAA,21/08/2019,05-16045,69.74,ARC Property Services Partnership L
Nottinghamshire County Council,1111/1001,Children and Young People,CYP,Premises Related,BAA,21/08/2019,05-16048,3439.5,ARC Property Services Partnership L
Nottinghamshire County Council,1111/1001,Children and Young People,CYP,Premises Related,BDA,01/08/2019,05-10001,1031,High Peak Borough Council
Nottinghamshire County Council,1111/1001,Children and Young People,CYP,Premises Related,BDA,01/08/2019,05-10002,710,Derbyshire Dales District Council
Nottinghamshire County Council,1111/1001,Children and Young People,CYP,Premises Related,BDA,01/08/2019,05-10005,610,Jillings Estates Ltd
Nottinghamshire County Council,1111/1001,Children and Young People,CYP,Premises Related,BEA,01/08/2019,05-10048,6808.33,Rushcliffe Borough Council
Nottinghamshire County Council,1111/1001,Children and Young People,CYP,Premises Related,BEA,07/08/2019,05-12919,1355.15,Att Of Earn/Bus Rates Bassetlaw D C
Nottinghamshire County Council,1111/1001,Children and Young People,CYP,Premises Related,BFA,16/08/2019,05-13083,354.65,Anglian Water Business (National) L
Nottinghamshire County Council,1111/1001,Children and Young People,CYP,Transport Related,CAA,09/08/2019,05-13452,400.92,Via East Midlands Ltd
Nottinghamshire County Council,1111/1001,Children and Young People,CYP,Transport Related,CAA,23/08/2019,05-14713,1249,Via East Midlands Ltd
Nottinghamshire County Council,1111/1001,Children and Young People,CYP,Transport Related,CAA,23/08/2019,05-14721,1249,Via East Midlands Ltd
Nottinghamshire County Council,1111/1001,Children and Young People,CYP,Transport Related,CAA,23/08/2019,05-14729,1249,Via East Midlands Ltd
Nottinghamshire County Council,1111/1001,Children and Young People,CYP,Transport Related,CAA,23/08/2019,05-14737,733.29,Via East Midlands Ltd
Nottinghamshire County Council,1111/1001,Children and Young People,CYP,Transport Related,CCA,08/08/2019,05-13185,1711.95,Taxicover Uk Ltd
Nottinghamshire County Council,1111/1001,Children and Young People,CYP,Transport Related,CCA,08/08/2019,05-13186,2393.7,Taxicover Uk Ltd
Nottinghamshire County Council,1111/1001,Children and Young People,CYP,Transport Related,CCA,08/08/2019,05-13187,1787.7,Taxicover Uk Ltd
Nottinghamshire County Council,1111/1001,Children and Young People,CYP,Transport Related,CCA,08/08/2019,05-13188,2636.1,Taxicover Uk Ltd
Nottinghamshire County Council,1111/1001,Children and Young People,CYP,Transport Related,CCA,08/08/2019,05-13189,2740.35,Taxicover Uk Ltd
Nottinghamshire County Council,1111/1001,Children and Young People,CYP,Transport Related,CCA,08/08/2019,05-13190,2438.7,Taxicover Uk Ltd
Nottinghamshire County Council,1111/1001,Children and Young People,CYP,Transport Related,CCA,08/08/2019,05-13191,2454.3,Taxicover Uk Ltd
Nottinghamshire County Council,1111/1001,Children and Young People,CYP,Transport Related,CCA,08/08/2019,05-13192,2999.7,Taxicover Uk Ltd
Nottinghamshire County Council,1111/1001,Children and Young People,CYP,Transport Related,CCA,08/08/2019,05-13193,2936.07,Taxicover Uk Ltd
Nottinghamshire County Council,1111/1001,Children and Young People,CYP,Transport Related,CCA,08/08/2019,05-13194,3640.04,Taxicover Uk Ltd
Nottinghamshire County Council,1111/1001,Children and Young People,CYP,Transport Related,CCA,08/08/2019,05-13195,1620.13,Taxicover Uk Ltd
Nottinghamshire County Council,1111/1001,Children and Young People,CYP,Transport Related,CCA,08/08/2019,05-13196,3616.38,Taxicover Uk Ltd
Nottinghamshire County Council,1111/1001,Children and Young People,CYP,Transport Related,CCA,08/08/2019,05-13197,3699.72,Taxicover Uk Ltd
Nottinghamshire County Council,1111/1001,Children and Young People,CYP,Transport Related,CCA,08/08/2019,05-13198,2946.78,Taxicover Uk Ltd
Nottinghamshire County Council,1111/1001,Children and Young People,CYP,Transport Related,CCA,08/08/2019,05-13199,3134.16,Taxicover Uk Ltd
Nottinghamshire County Council,1111/1001,Children and Young People,CYP,Transport Related,CCA,08/08/2019,05-13200,3412.44,Taxicover Uk Ltd
Nottinghamshire County Council,1111/1001,Children and Young People,CYP,Transport Related,CCA,08/08/2019,05-13201,3478.5,Taxicover Uk Ltd
Nottinghamshire County Council,1111/1001,Children and Young People,CYP,Transport Related,CCA,08/08/2019,05-13203,2542.15,Sharpes Of Nottingham
Nottinghamshire County Council,1111/1001,Children and Young People,CYP,Transport Related,CCA,08/08/2019,05-13204,2569.95,Sharpes Of Nottingham
Nottinghamshire County Council,1111/1001,Children and Young People,CYP,Transport Related,CCA,08/08/2019,05-13205,2518.3,Sharpes Of Nottingham
Nottinghamshire County Council,1111/1001,Children and Young People,CYP,Transport Related,CCA,08/08/2019,05-13206,2883.25,Sharpes Of Nottingham
Nottinghamshire County Council,1111/1001,Children and Young People,CYP,Transport Related,CCA,08/08/2019,05-13207,3307.95,Sharpes Of Nottingham
Nottinghamshire County Council,1111/1001,Children and Young People,CYP,Transport Related,CCA,08/08/2019,05-13208,3138.45,Sharpes Of Nottingham
Nottinghamshire County Council,1111/1001,Children and Young People,CYP,Transport Related,CCA,08/08/2019,05-13209,3230.82,Sharpes Of Nottingham
Nottinghamshire County Council,1111/1001,Children and Young People,CYP,Transport Related,CCA,08/08/2019,05-13210,3067.74,Sharpes Of Nottingham
Nottinghamshire County Council,1111/1001,Children and Young People,CYP,Transport Related,CCA,08/08/2019,05-13212,2146.25,All Wayz Travel
Nottinghamshire County Council,1111/1001,Children and Young People,CYP,Transport Related,CCA,08/08/2019,05-13213,1800,All Wayz Travel
Nottinghamshire County Council,1111/1001,Children and Young People,CYP,Transport Related,CCA,08/08/2019,05-13214,1374.64,All Wayz Travel
Nottinghamshire County Council,1111/1001,Children and Young People,CYP,Transport Related,CCA,08/08/2019,05-13215,1969.5,All Wayz Travel
Nottinghamshire County Council,1111/1001,Children and Young People,CYP,Transport Related,CCA,08/08/2019,05-13216,3240,Glenn Ryder Coaches
Nottinghamshire County Council,1111/1001,Children and Young People,CYP,Transport Related,CCA,08/08/2019,05-13217,3169,Glenn Ryder Coaches
Body Name,Body,Service Label,Service Code,CIPFA Detailed Expenditure Type,CIPFA Detailed Expenditure CodeDate,,Transaction NumberNet Amount,,Supplier Name
Nottinghamshire County Council,1111/1001,Children and Young People,CYP,Transport Related,CCA,08/08/2019,05-13218,2043.05,Wrights Coaches T/A Little Transpor
Nottinghamshire County Council,1111/1001,Children and Young People,CYP,Transport Related,CCA,08/08/2019,05-13221,1030.2,Ace Of Mansfield Ltd
Nottinghamshire County Council,1111/1001,Children and Young People,CYP,Transport Related,CCA,08/08/2019,05-13222,1818,Ace Of Mansfield Ltd
Nottinghamshire County Council,1111/1001,Children and Young People,CYP,Transport Related,CCA,08/08/2019,05-13223,2625.2,Arrow Specialised Transport Ltd
Nottinghamshire County Council,1111/1001,Children and Young People,CYP,Transport Related,CCA,08/08/2019,05-13224,2064.6,Arrow Specialised Transport Ltd
Nottinghamshire County Council,1111/1001,Children and Young People,CYP,Transport Related,CCA,08/08/2019,05-13225,3834,Arrow Specialised Transport Ltd
Nottinghamshire County Council,1111/1001,Children and Young People,CYP,Transport Related,CCA,08/08/2019,05-13226,1588.5,Arrow Specialised Transport Ltd
Nottinghamshire County Council,1111/1001,Children and Young People,CYP,Transport Related,CCA,08/08/2019,05-13228,2639.93,Arrow Specialised Transport Ltd
Nottinghamshire County Council,1111/1001,Children and Young People,CYP,Transport Related,CCA,08/08/2019,05-13229,3412.58,Arrow Specialised Transport Ltd
Nottinghamshire County Council,1111/1001,Children and Young People,CYP,Transport Related,CCA,08/08/2019,05-13230,3747.82,Arrow Specialised Transport Ltd
Nottinghamshire County Council,1111/1001,Children and Young People,CYP,Transport Related,CCA,08/08/2019,05-13231,2961.18,Arrow Specialised Transport Ltd
Nottinghamshire County Council,1111/1001,Children and Young People,CYP,Transport Related,CCA,08/08/2019,05-13232,2647.08,Arrow Specialised Transport Ltd
Nottinghamshire County Council,1111/1001,Children and Young People,CYP,Transport Related,CCA,08/08/2019,05-13233,2362.68,Arrow Specialised Transport Ltd
Nottinghamshire County Council,1111/1001,Children and Young People,CYP,Transport Related,CCA,08/08/2019,05-13234,2850.66,Arrow Specialised Transport Ltd
Nottinghamshire County Council,1111/1001,Children and Young People,CYP,Transport Related,CCA,08/08/2019,05-13235,2081.82,Arrow Specialised Transport Ltd
Nottinghamshire County Council,1111/1001,Children and Young People,CYP,Transport Related,CCA,08/08/2019,05-13236,1914.12,Arrow Specialised Transport Ltd
Nottinghamshire County Council,1111/1001,Children and Young People,CYP,Transport Related,CCA,08/08/2019,05-13237,3211.2,Arrow Specialised Transport Ltd
Nottinghamshire County Council,1111/1001,Children and Young People,CYP,Transport Related,CCA,08/08/2019,05-13238,2178.36,Arrow Specialised Transport Ltd
Nottinghamshire County Council,1111/1001,Children and Young People,CYP,Transport Related,CCA,08/08/2019,05-13239,3303,Arrow Specialised Transport Ltd
Nottinghamshire County Council,1111/1001,Children and Young People,CYP,Transport Related,CCA,08/08/2019,05-13240,3027.6,Arrow Specialised Transport Ltd
Nottinghamshire County Council,1111/1001,Children and Young People,CYP,Transport Related,CCA,08/08/2019,05-13241,2244.51,Arrow Specialised Transport Ltd
Nottinghamshire County Council,1111/1001,Children and Young People,CYP,Transport Related,CCA,08/08/2019,05-13243,2188.44,Arrow Specialised Transport Ltd
Nottinghamshire County Council,1111/1001,Children and Young People,CYP,Transport Related,CCA,08/08/2019,05-13244,1769.04,Arrow Specialised Transport Ltd
Nottinghamshire County Council,1111/1001,Children and Young People,CYP,Transport Related,CCA,08/08/2019,05-13245,2712.24,Arrow Specialised Transport Ltd
Nottinghamshire County Council,1111/1001,Children and Young People,CYP,Transport Related,CCA,08/08/2019,05-13246,1705.05,Arrow Specialised Transport Ltd
Nottinghamshire County Council,1111/1001,Children and Young People,CYP,Transport Related,CCA,08/08/2019,05-13247,2009.91,Arrow Specialised Transport Ltd
Nottinghamshire County Council,1111/1001,Children and Young People,CYP,Transport Related,CCA,08/08/2019,05-13248,2159,Arrow Specialised Transport Ltd
Nottinghamshire County Council,1111/1001,Children and Young People,CYP,Transport Related,CCA,08/08/2019,05-13249,1931.71,Arrow Specialised Transport Ltd
Nottinghamshire County Council,1111/1001,Children and Young People,CYP,Transport Related,CCA,08/08/2019,05-13250,1991.72,Arrow Specialised Transport Ltd
Nottinghamshire County Council,1111/1001,Children and Young People,CYP,Transport Related,CCA,08/08/2019,05-13251,1991.72,Arrow Specialised Transport Ltd
Nottinghamshire County Council,1111/1001,Children and Young People,CYP,Transport Related,CCA,08/08/2019,05-13252,1971.15,Arrow Specialised Transport Ltd
Nottinghamshire County Council,1111/1001,Children and Young People,CYP,Transport Related,CCA,08/08/2019,05-13253,1940.21,Arrow Specialised Transport Ltd
Nottinghamshire County Council,1111/1001,Children and Young People,CYP,Transport Related,CCA,08/08/2019,05-13254,2494.58,Arrow Specialised Transport Ltd
Nottinghamshire County Council,1111/1001,Children and Young People,CYP,Transport Related,CCA,08/08/2019,05-13255,2178,Arrow Specialised Transport Ltd
Nottinghamshire County Council,1111/1001,Children and Young People,CYP,Transport Related,CCA,08/08/2019,05-13256,2562.48,Arrow Specialised Transport Ltd
Nottinghamshire County Council,1111/1001,Children and Young People,CYP,Transport Related,CCA,08/08/2019,05-13258,1372.05,Arrow Specialised Transport Ltd
Nottinghamshire County Council,1111/1001,Children and Young People,CYP,Transport Related,CCA,08/08/2019,05-13259,764.54,Arrow Specialised Transport Ltd
Nottinghamshire County Council,1111/1001,Children and Young People,CYP,Transport Related,CCA,08/08/2019,05-13261,2915,Arrow Specialised Transport Ltd
Nottinghamshire County Council,1111/1001,Children and Young People,CYP,Transport Related,CCA,08/08/2019,05-13262,7871.8,Arrow Specialised Transport Ltd
Nottinghamshire County Council,1111/1001,Children and Young People,CYP,Transport Related,CCA,08/08/2019,05-13263,2054.34,Arrow Specialised Transport Ltd
Nottinghamshire County Council,1111/1001,Children and Young People,CYP,Transport Related,CCA,08/08/2019,05-13264,4413.6,Arrow Specialised Transport Ltd
Nottinghamshire County Council,1111/1001,Children and Young People,CYP,Transport Related,CCA,08/08/2019,05-13265,1947.96,Arrow Specialised Transport Ltd
Nottinghamshire County Council,1111/1001,Children and Young People,CYP,Transport Related,CCA,08/08/2019,05-13266,3066.48,Arrow Specialised Transport Ltd
Nottinghamshire County Council,1111/1001,Children and Young People,CYP,Transport Related,CCA,08/08/2019,05-13267,4356.36,Arrow Specialised Transport Ltd
Nottinghamshire County Council,1111/1001,Children and Young People,CYP,Transport Related,CCA,08/08/2019,05-13268,3346.38,Arrow Specialised Transport Ltd
Nottinghamshire County Council,1111/1001,Children and Young People,CYP,Transport Related,CCA,08/08/2019,05-13269,1005,Arrow Specialised Transport Ltd
Body Name,Body,Service Label,Service Code,CIPFA Detailed Expenditure Type,CIPFA Detailed Expenditure CodeDate,,Transaction NumberNet Amount,,Supplier Name
Nottinghamshire County Council,1111/1001,Children and Young People,CYP,Transport Related,CCA,08/08/2019,05-13270,1342.5,Arrow Specialised Transport Ltd
Nottinghamshire County Council,1111/1001,Children and Young People,CYP,Transport Related,CCA,08/08/2019,05-13271,1456,Arrow Specialised Transport Ltd
Nottinghamshire County Council,1111/1001,Children and Young People,CYP,Transport Related,CCA,08/08/2019,05-13272,1240,Arrow Specialised Transport Ltd
Nottinghamshire County Council,1111/1001,Children and Young People,CYP,Transport Related,CCA,08/08/2019,05-13273,1380,Arrow Specialised Transport Ltd
Nottinghamshire County Council,1111/1001,Children and Young People,CYP,Transport Related,CCA,08/08/2019,05-13274,1395,Arrow Specialised Transport Ltd
Nottinghamshire County Council,1111/1001,Children and Young People,CYP,Transport Related,CCA,08/08/2019,05-13275,2416.5,Arrow Specialised Transport Ltd
Nottinghamshire County Council,1111/1001,Children and Young People,CYP,Transport Related,CCA,08/08/2019,05-13276,1962,Arrow Specialised Transport Ltd
Nottinghamshire County Council,1111/1001,Children and Young People,CYP,Transport Related,CCA,08/08/2019,05-13277,3340.8,Arrow Specialised Transport Ltd
Nottinghamshire County Council,1111/1001,Children and Young People,CYP,Transport Related,CCA,08/08/2019,05-13278,4092.3,Arrow Specialised Transport Ltd
Nottinghamshire County Council,1111/1001,Children and Young People,CYP,Transport Related,CCA,08/08/2019,05-13279,1829.16,Arrow Specialised Transport Ltd
Nottinghamshire County Council,1111/1001,Children and Young People,CYP,Transport Related,CCA,08/08/2019,05-13280,1932.84,Arrow Specialised Transport Ltd
Nottinghamshire County Council,1111/1001,Children and Young People,CYP,Transport Related,CCA,08/08/2019,05-13281,2412,Arrow Specialised Transport Ltd
Nottinghamshire County Council,1111/1001,Children and Young People,CYP,Transport Related,CCA,08/08/2019,05-13282,2439,Arrow Specialised Transport Ltd
Nottinghamshire County Council,1111/1001,Children and Young People,CYP,Transport Related,CCA,08/08/2019,05-13283,2037.75,Arrow Specialised Transport Ltd
Nottinghamshire County Council,1111/1001,Children and Young People,CYP,Transport Related,CCA,08/08/2019,05-13284,3279,Arrow Specialised Transport Ltd
Nottinghamshire County Council,1111/1001,Children and Young People,CYP,Transport Related,CCA,08/08/2019,05-13285,1737,Arrow Specialised Transport Ltd
Nottinghamshire County Council,1111/1001,Children and Young People,CYP,Transport Related,CCA,08/08/2019,05-13286,2142,Arrow Specialised Transport Ltd
Nottinghamshire County Council,1111/1001,Children and Young People,CYP,Transport Related,CCA,08/08/2019,05-13287,1924.5,Arrow Specialised Transport Ltd
Nottinghamshire County Council,1111/1001,Children and Young People,CYP,Transport Related,CCA,08/08/2019,05-13288,1843.2,Arrow Specialised Transport Ltd
Nottinghamshire County Council,1111/1001,Children and Young People,CYP,Transport Related,CCA,08/08/2019,05-13289,2310,Arrow Specialised Transport Ltd
Nottinghamshire County Council,1111/1001,Children and Young People,CYP,Transport Related,CCA,08/08/2019,05-13290,2080.05,Arrow Specialised Transport Ltd
Nottinghamshire County Council,1111/1001,Children and Young People,CYP,Transport Related,CCA,08/08/2019,05-13291,1973.7,Arrow Specialised Transport Ltd
Nottinghamshire County Council,1111/1001,Children and Young People,CYP,Transport Related,CCA,08/08/2019,05-13292,2034.73,Arrow Specialised Transport Ltd
Nottinghamshire County Council,1111/1001,Children and Young People,CYP,Transport Related,CCA,08/08/2019,05-13293,2054.28,Arrow Specialised Transport Ltd
Nottinghamshire County Council,1111/1001,Children and Young People,CYP,Transport Related,CCA,08/08/2019,05-13294,2324.75,Arrow Specialised Transport Ltd
Nottinghamshire County Council,1111/1001,Children and Young People,CYP,Transport Related,CCA,08/08/2019,05-13295,3108.78,Arrow Specialised Transport Ltd
Nottinghamshire County Council,1111/1001,Children and Young People,CYP,Transport Related,CCA,08/08/2019,05-13296,1029,Bridges Transport Ltd
Nottinghamshire County Council,1111/1001,Children and Young People,CYP,Transport Related,CCA,08/08/2019,05-13299,2045.25,Bridges Transport Ltd
Nottinghamshire County Council,1111/1001,Children and Young People,CYP,Transport Related,CCA,08/08/2019,05-13302,3651.26,Bridges Transport Ltd
Nottinghamshire County Council,1111/1001,Children and Young People,CYP,Transport Related,CCA,08/08/2019,05-13303,1676.43,Bridges Transport Ltd
Nottinghamshire County Council,1111/1001,Children and Young People,CYP,Transport Related,CCA,08/08/2019,05-13305,2524.8,Bridges Transport Ltd
Nottinghamshire County Council,1111/1001,Children and Young People,CYP,Transport Related,CCA,08/08/2019,05-13306,2044.2,Bridges Transport Ltd
Nottinghamshire County Council,1111/1001,Children and Young People,CYP,Transport Related,CCA,08/08/2019,05-13307,840,Bridges Transport Ltd
Nottinghamshire County Council,1111/1001,Children and Young People,CYP,Transport Related,CCA,08/08/2019,05-13308,1472.58,Bridges Transport Ltd
Nottinghamshire County Council,1111/1001,Children and Young People,CYP,Transport Related,CCA,08/08/2019,05-13309,1846.95,Bridges Transport Ltd
Nottinghamshire County Council,1111/1001,Children and Young People,CYP,Transport Related,CCA,08/08/2019,05-13312,1454.4,Galaxy Cabs Ltd
Nottinghamshire County Council,1111/1001,Children and Young People,CYP,Transport Related,CCA,08/08/2019,05-13314,398,Galaxy Cabs Ltd
Nottinghamshire County Council,1111/1001,Children and Young People,CYP,Transport Related,CCA,08/08/2019,05-13316,616.13,Galaxy Cabs Ltd
Nottinghamshire County Council,1111/1001,Children and Young People,CYP,Transport Related,CCA,08/08/2019,05-13319,2532.07,Galaxy Cabs Ltd
Nottinghamshire County Council,1111/1001,Children and Young People,CYP,Transport Related,CCA,08/08/2019,05-13320,1470,Galaxy Cabs Ltd
Nottinghamshire County Council,1111/1001,Children and Young People,CYP,Transport Related,CCA,08/08/2019,05-13321,1101.78,Galaxy Cabs Ltd
Nottinghamshire County Council,1111/1001,Children and Young People,CYP,Transport Related,CCA,08/08/2019,05-13324,1187.88,Shelleys Taxis Ltd
Nottinghamshire County Council,1111/1001,Children and Young People,CYP,Transport Related,CCA,08/08/2019,05-13327,1200,Shelleys Taxis Ltd
Nottinghamshire County Council,1111/1001,Children and Young People,CYP,Transport Related,CCA,08/08/2019,05-13328,1781.64,Shelleys Taxis Ltd
Nottinghamshire County Council,1111/1001,Children and Young People,CYP,Transport Related,CCA,08/08/2019,05-13329,1785.68,Shelleys Taxis Ltd
Nottinghamshire County Council,1111/1001,Children and Young People,CYP,Transport Related,CCA,08/08/2019,05-13330,1272.6,Shelleys Taxis Ltd
Body Name,Body,Service Label,Service Code,CIPFA Detailed Expenditure Type,CIPFA Detailed Expenditure CodeDate,,Transaction NumberNet Amount,,Supplier Name
Nottinghamshire County Council,1111/1001,Children and Young People,CYP,Transport Related,CCA,08/08/2019,05-13331,1201.9,Shelleys Taxis Ltd
Nottinghamshire County Council,1111/1001,Children and Young People,CYP,Transport Related,CCA,08/08/2019,05-13332,1152,Shelleys Taxis Ltd
Nottinghamshire County Council,1111/1001,Children and Young People,CYP,Transport Related,CCA,08/08/2019,05-13333,765,Shelleys Taxis Ltd
Nottinghamshire County Council,1111/1001,Children and Young People,CYP,Transport Related,CCA,08/08/2019,05-13335,1440,Shelleys Taxis Ltd
Nottinghamshire County Council,1111/1001,Children and Young People,CYP,Transport Related,CCA,08/08/2019,05-13336,1170,Shelleys Taxis Ltd
Nottinghamshire County Council,1111/1001,Children and Young People,CYP,Transport Related,CCA,08/08/2019,05-13337,1308,Shelleys Taxis Ltd
Nottinghamshire County Council,1111/1001,Children and Young People,CYP,Transport Related,CCA,08/08/2019,05-13338,750,Elkingtons Park Garage
Nottinghamshire County Council,1111/1001,Children and Young People,CYP,Transport Related,CCA,08/08/2019,05-13340,1618,AOT Coaches Nottingham LLP
Nottinghamshire County Council,1111/1001,Children and Young People,CYP,Transport Related,CCA,08/08/2019,05-13341,1976,AOT Coaches Nottingham LLP
Nottinghamshire County Council,1111/1001,Children and Young People,CYP,Transport Related,CCA,08/08/2019,05-13342,6251,AOT Coaches Nottingham LLP
Nottinghamshire County Council,1111/1001,Children and Young People,CYP,Transport Related,CCA,08/08/2019,05-13343,2580,Jb Tours Watnall Ltd
Nottinghamshire County Council,1111/1001,Children and Young People,CYP,Transport Related,CCA,08/08/2019,05-13344,2520,Jb Tours Watnall Ltd
Nottinghamshire County Council,1111/1001,Children and Young People,CYP,Transport Related,CCA,08/08/2019,05-13345,2373,Jb Tours Watnall Ltd
Nottinghamshire County Council,1111/1001,Children and Young People,CYP,Transport Related,CCA,08/08/2019,05-13346,1980,K & R Cars
Nottinghamshire County Council,1111/1001,Children and Young People,CYP,Transport Related,CCA,08/08/2019,05-13347,1242,Meden Travel
Nottinghamshire County Council,1111/1001,Children and Young People,CYP,Transport Related,CCA,08/08/2019,05-13353,2837.52,Nottingham Minibuses & Coaches
Nottinghamshire County Council,1111/1001,Children and Young People,CYP,Transport Related,CCA,08/08/2019,05-13356,1712.58,Nottingham Minibuses & Coaches
Nottinghamshire County Council,1111/1001,Children and Young People,CYP,Transport Related,CCA,08/08/2019,05-13359,1230,Travel Wright Ltd
Nottinghamshire County Council,1111/1001,Children and Young People,CYP,Transport Related,CCA,08/08/2019,05-13360,810,Travel Wright Ltd
Nottinghamshire County Council,1111/1001,Children and Young People,CYP,Transport Related,CCA,08/08/2019,05-13361,11542.5,Travel Wright Ltd
Nottinghamshire County Council,1111/1001,Children and Young People,CYP,Transport Related,CCA,08/08/2019,05-13362,6822,Freeway Coaches Ltd
Nottinghamshire County Council,1111/1001,Children and Young People,CYP,Transport Related,CCA,08/08/2019,05-13363,3998,Freeway Coaches Ltd
Nottinghamshire County Council,1111/1001,Children and Young People,CYP,Transport Related,CCA,08/08/2019,05-13364,4779,Freeway Coaches Ltd
Nottinghamshire County Council,1111/1001,Children and Young People,CYP,Transport Related,CCA,08/08/2019,05-13365,2355,Freeway Coaches Ltd
Nottinghamshire County Council,1111/1001,Children and Young People,CYP,Transport Related,CCA,08/08/2019,05-13366,3000,Dunn Motor Traction Ltd
Nottinghamshire County Council,1111/1001,Children and Young People,CYP,Transport Related,CCA,08/08/2019,05-13367,2700,Dunn Motor Traction Ltd
Nottinghamshire County Council,1111/1001,Children and Young People,CYP,Transport Related,CCA,08/08/2019,05-13368,2250,Dunn Motor Traction Ltd
Nottinghamshire County Council,1111/1001,Children and Young People,CYP,Transport Related,CCA,08/08/2019,05-13369,2250,Dunn Motor Traction Ltd
Nottinghamshire County Council,1111/1001,Children and Young People,CYP,Transport Related,CCA,08/08/2019,05-13370,6426,Kettlewell Retford Ltd
Nottinghamshire County Council,1111/1001,Children and Young People,CYP,Transport Related,CCA,08/08/2019,05-13371,2592,Kettlewell Retford Ltd
Nottinghamshire County Council,1111/1001,Children and Young People,CYP,Transport Related,CCA,08/08/2019,05-13372,2790,Kettlewell Retford Ltd
Nottinghamshire County Council,1111/1001,Children and Young People,CYP,Transport Related,CCA,08/08/2019,05-13373,2034,Kettlewell Retford Ltd
Nottinghamshire County Council,1111/1001,Children and Young People,CYP,Transport Related,CCA,08/08/2019,05-13374,2460,Kettlewell Retford Ltd
Nottinghamshire County Council,1111/1001,Children and Young People,CYP,Transport Related,CCA,08/08/2019,05-13375,2460,Kettlewell Retford Ltd
Nottinghamshire County Council,1111/1001,Children and Young People,CYP,Transport Related,CCA,08/08/2019,05-13376,3330,Kettlewell Retford Ltd
Nottinghamshire County Council,1111/1001,Children and Young People,CYP,Transport Related,CCA,08/08/2019,05-13377,3525,Kettlewell Retford Ltd
Nottinghamshire County Council,1111/1001,Children and Young People,CYP,Transport Related,CCA,08/08/2019,05-13378,3825.8,Kettlewell Retford Ltd
Nottinghamshire County Council,1111/1001,Children and Young People,CYP,Transport Related,CCA,08/08/2019,05-13381,3000,C W Moxon Ltd
Nottinghamshire County Council,1111/1001,Children and Young People,CYP,Transport Related,CCA,08/08/2019,05-13384,9305.5,C W Moxon Ltd
Nottinghamshire County Council,1111/1001,Children and Young People,CYP,Transport Related,CCA,08/08/2019,05-13385,572.4,Bassetlaw Action Centre
Nottinghamshire County Council,1111/1001,Children and Young People,CYP,Transport Related,CCA,08/08/2019,05-13386,1434.12,Bassetlaw Action Centre
Nottinghamshire County Council,1111/1001,Children and Young People,CYP,Transport Related,CCA,08/08/2019,05-13387,636.12,Bassetlaw Action Centre
Nottinghamshire County Council,1111/1001,Children and Young People,CYP,Transport Related,CCA,08/08/2019,05-13388,795,Bassetlaw Action Centre
Nottinghamshire County Council,1111/1001,Children and Young People,CYP,Transport Related,CCA,08/08/2019,05-13389,4032.15,Isle Coaches
Nottinghamshire County Council,1111/1001,Children and Young People,CYP,Transport Related,CCA,08/08/2019,05-13390,1974.55,Ace Cars & Minibuses Ltd
Nottinghamshire County Council,1111/1001,Children and Young People,CYP,Transport Related,CCA,08/08/2019,05-13392,2353.4,Ace Cars & Minibuses Ltd
Body Name,Body,Service Label,Service Code,CIPFA Detailed Expenditure Type,CIPFA Detailed Expenditure CodeDate,,Transaction NumberNet Amount,,Supplier Name
Nottinghamshire County Council,1111/1001,Children and Young People,CYP,Transport Related,CCA,08/08/2019,05-13393,2031.5,Ace Cars & Minibuses Ltd
Nottinghamshire County Council,1111/1001,Children and Young People,CYP,Transport Related,CCA,08/08/2019,05-13394,2718,Ace Cars & Minibuses Ltd
Nottinghamshire County Council,1111/1001,Children and Young People,CYP,Transport Related,CCA,08/08/2019,05-13395,2194.38,Ace Cars & Minibuses Ltd
Nottinghamshire County Council,1111/1001,Children and Young People,CYP,Transport Related,CCA,08/08/2019,05-13396,1772.56,Ace Cars & Minibuses Ltd
Nottinghamshire County Council,1111/1001,Children and Young People,CYP,Transport Related,CCA,08/08/2019,05-13398,2349.75,L A Travel
Nottinghamshire County Council,1111/1001,Children and Young People,CYP,Transport Related,CCA,08/08/2019,05-13399,2778.3,Marks Specialised Transport Ltd
Nottinghamshire County Council,1111/1001,Children and Young People,CYP,Transport Related,CCA,08/08/2019,05-13400,2249.1,Marks Specialised Transport Ltd
Nottinghamshire County Council,1111/1001,Children and Young People,CYP,Transport Related,CCA,08/08/2019,05-13401,2259,Target Taxis
Nottinghamshire County Council,1111/1001,Children and Young People,CYP,Transport Related,CCA,08/08/2019,05-13402,1098.38,Sean's Taxi Services
Nottinghamshire County Council,1111/1001,Children and Young People,CYP,Transport Related,CCA,08/08/2019,05-13405,1295,Rushcliffe Travel Ltd
Nottinghamshire County Council,1111/1001,Children and Young People,CYP,Transport Related,CCA,08/08/2019,05-13406,1750,Rushcliffe Travel Ltd
Nottinghamshire County Council,1111/1001,Children and Young People,CYP,Transport Related,CCA,08/08/2019,05-13407,540,Rushcliffe Travel Ltd
Nottinghamshire County Council,1111/1001,Children and Young People,CYP,Transport Related,CCA,08/08/2019,05-13408,2691,Rushcliffe Travel Ltd
Nottinghamshire County Council,1111/1001,Children and Young People,CYP,Transport Related,CCA,08/08/2019,05-13409,2610,Rushcliffe Travel Ltd
Nottinghamshire County Council,1111/1001,Children and Young People,CYP,Transport Related,CCA,08/08/2019,05-13412,3024,Unity Coaches Ltd
Nottinghamshire County Council,1111/1001,Children and Young People,CYP,Transport Related,CCA,09/08/2019,05-13552,1383.97,Alert Cars Ltd
Nottinghamshire County Council,1111/1001,Children and Young People,CYP,Transport Related,CCA,09/08/2019,05-13566,1636.2,Central Cars Nottm Ltd
Nottinghamshire County Council,1111/1001,Children and Young People,CYP,Transport Related,CCA,09/08/2019,05-13572,7337.5,Johnson Bros Tours Ltd
Nottinghamshire County Council,1111/1001,Children and Young People,CYP,Transport Related,CCA,09/08/2019,05-13574,5310,Johnson Bros Tours Ltd
Nottinghamshire County Council,1111/1001,Children and Young People,CYP,Transport Related,CCA,09/08/2019,05-13579,2721.36,Martins Travel
Nottinghamshire County Council,1111/1001,Children and Young People,CYP,Transport Related,CCA,09/08/2019,05-13581,2520,Arnold Acorn Travel
Nottinghamshire County Council,1111/1001,Children and Young People,CYP,Transport Related,CCA,09/08/2019,05-13591,1999.8,Alpha Cars
Nottinghamshire County Council,1111/1001,Children and Young People,CYP,Transport Related,CCA,09/08/2019,05-13593,1851,Alpha Cars
Nottinghamshire County Council,1111/1001,Children and Young People,CYP,Transport Related,CCA,09/08/2019,05-13598,1528.13,Alpha Cars
Nottinghamshire County Council,1111/1001,Children and Young People,CYP,Transport Related,CCA,09/08/2019,05-13603,999.46,Alpha Cars
Nottinghamshire County Council,1111/1001,Children and Young People,CYP,Transport Related,CCA,09/08/2019,05-13608,1666,Alpha Cars
Nottinghamshire County Council,1111/1001,Children and Young People,CYP,Transport Related,CCA,09/08/2019,05-13618,847,Alpha Cars
Nottinghamshire County Council,1111/1001,Children and Young People,CYP,Transport Related,CCA,09/08/2019,05-13628,1870.8,Alpha Cars
Nottinghamshire County Council,1111/1001,Children and Young People,CYP,Transport Related,CCA,09/08/2019,05-13634,1599.36,Arrow Specialised Transport Ltd
Nottinghamshire County Council,1111/1001,Children and Young People,CYP,Transport Related,CCA,09/08/2019,05-13637,817.3,Arrow Specialised Transport Ltd
Nottinghamshire County Council,1111/1001,Children and Young People,CYP,Transport Related,CCA,09/08/2019,05-13642,1370.5,Arrow Specialised Transport Ltd
Nottinghamshire County Council,1111/1001,Children and Young People,CYP,Transport Related,CCA,09/08/2019,05-13645,900,Fozcabs Newark Taxis
Nottinghamshire County Council,1111/1001,Children and Young People,CYP,Transport Related,CCA,09/08/2019,05-13648,700,Fozcabs Newark Taxis
Nottinghamshire County Council,1111/1001,Children and Young People,CYP,Transport Related,CCA,09/08/2019,05-13650,2070,Fozcabs Newark Taxis
Nottinghamshire County Council,1111/1001,Children and Young People,CYP,Transport Related,CCA,09/08/2019,05-13659,2644.18,Horizon Travel
Nottinghamshire County Council,1111/1001,Children and Young People,CYP,Transport Related,CCA,09/08/2019,05-13666,2384.93,K & S Coaches
Nottinghamshire County Council,1111/1001,Children and Young People,CYP,Transport Related,CCA,09/08/2019,05-13678,1631.15,Abacus Cars
Nottinghamshire County Council,1111/1001,Children and Young People,CYP,Transport Related,CCA,09/08/2019,05-13680,600,Abacus Cars
Nottinghamshire County Council,1111/1001,Children and Young People,CYP,Transport Related,CCA,09/08/2019,05-13682,1439.25,Abacus Cars
Nottinghamshire County Council,1111/1001,Children and Young People,CYP,Transport Related,CCA,09/08/2019,05-13684,1350,Abacus Cars
Nottinghamshire County Council,1111/1001,Children and Young People,CYP,Transport Related,CCA,09/08/2019,05-13687,1092.6,Abacus Cars
Nottinghamshire County Council,1111/1001,Children and Young People,CYP,Transport Related,CCA,09/08/2019,05-13689,1500,Abacus Cars
Nottinghamshire County Council,1111/1001,Children and Young People,CYP,Transport Related,CCA,09/08/2019,05-13691,1650,Abacus Cars
Nottinghamshire County Council,1111/1001,Children and Young People,CYP,Transport Related,CCA,09/08/2019,05-13693,1700,Abacus Cars
Nottinghamshire County Council,1111/1001,Children and Young People,CYP,Transport Related,CCA,09/08/2019,05-13694,2121,Abacus Cars
Nottinghamshire County Council,1111/1001,Children and Young People,CYP,Transport Related,CCA,09/08/2019,05-13695,7866.8,Silverdale Tours Nottm Ltd
Body Name,Body,Service Label,Service Code,CIPFA Detailed Expenditure Type,CIPFA Detailed Expenditure CodeDate,,Transaction NumberNet Amount,,Supplier Name
Nottinghamshire County Council,1111/1001,Children and Young People,CYP,Transport Related,CCA,09/08/2019,05-13697,2837.7,Silverdale Tours Nottm Ltd
Nottinghamshire County Council,1111/1001,Children and Young People,CYP,Transport Related,CCA,09/08/2019,05-13699,3210.71,Silverdale Tours Nottm Ltd
Nottinghamshire County Council,1111/1001,Children and Young People,CYP,Transport Related,CCA,09/08/2019,05-13701,2859.25,Silverdale Tours Nottm Ltd
Nottinghamshire County Council,1111/1001,Children and Young People,CYP,Transport Related,CCA,09/08/2019,05-13703,1510.19,Silverdale Tours Nottm Ltd
Nottinghamshire County Council,1111/1001,Children and Young People,CYP,Transport Related,CCA,09/08/2019,05-13705,2802.1,Silverdale Tours Nottm Ltd
Nottinghamshire County Council,1111/1001,Children and Young People,CYP,Transport Related,CCA,09/08/2019,05-13708,2727,Silverdale Tours Nottm Ltd
Nottinghamshire County Council,1111/1001,Children and Young People,CYP,Transport Related,CCA,09/08/2019,05-13710,4980,Stagecoach Services Ltd
Nottinghamshire County Council,1111/1001,Children and Young People,CYP,Transport Related,CCA,09/08/2019,05-13722,1890,Travel Liner
Nottinghamshire County Council,1111/1001,Children and Young People,CYP,Transport Related,CCA,09/08/2019,05-13724,10844.94,Nottingham Coaches
Nottinghamshire County Council,1111/1001,Children and Young People,CYP,Transport Related,CCA,09/08/2019,05-13727,2267.82,Nottingham Coaches
Nottinghamshire County Council,1111/1001,Children and Young People,CYP,Transport Related,CCA,09/08/2019,05-13729,7803.4,Nottingham Coaches
Nottinghamshire County Council,1111/1001,Children and Young People,CYP,Transport Related,CCA,09/08/2019,05-13734,1802.85,A2B Licensed Taxis
Nottinghamshire County Council,1111/1001,Children and Young People,CYP,Transport Related,CCA,09/08/2019,05-13739,624,Nottingham Cars Ltd
Nottinghamshire County Council,1111/1001,Children and Young People,CYP,Transport Related,CCA,09/08/2019,05-13741,799,Nottingham Cars Ltd
Nottinghamshire County Council,1111/1001,Children and Young People,CYP,Transport Related,CCA,09/08/2019,05-13743,2887.8,Hammonds Coaches Ltd
Nottinghamshire County Council,1111/1001,Children and Young People,CYP,Transport Related,CCA,09/08/2019,05-13745,2295.18,A Travel
Nottinghamshire County Council,1111/1001,Children and Young People,CYP,Transport Related,CCA,09/08/2019,05-13746,515.1,Abacus Taxi & Courier Services
Nottinghamshire County Council,1111/1001,Children and Young People,CYP,Transport Related,CCA,09/08/2019,05-13748,1100,Reliable Cars Ltd
Nottinghamshire County Council,1111/1001,Children and Young People,CYP,Transport Related,CCA,09/08/2019,05-13750,888.8,Reliable Cars Ltd
Nottinghamshire County Council,1111/1001,Children and Young People,CYP,Transport Related,CCA,09/08/2019,05-13752,763.56,Reliable Cars Ltd
Nottinghamshire County Council,1111/1001,Children and Young People,CYP,Transport Related,CCA,09/08/2019,05-13754,763.56,Reliable Cars Ltd
Nottinghamshire County Council,1111/1001,Children and Young People,CYP,Transport Related,CCA,09/08/2019,05-13756,1887,Reliable Cars Ltd
Nottinghamshire County Council,1111/1001,Children and Young People,CYP,Transport Related,CCA,09/08/2019,05-13758,600,Reliable Cars Ltd
Nottinghamshire County Council,1111/1001,Children and Young People,CYP,Transport Related,CCA,09/08/2019,05-13761,930,Reliable Cars Ltd
Nottinghamshire County Council,1111/1001,Children and Young People,CYP,Transport Related,CCA,09/08/2019,05-13762,720,Reliable Cars Ltd
Nottinghamshire County Council,1111/1001,Children and Young People,CYP,Transport Related,CCA,09/08/2019,05-13763,512,Reliable Cars Ltd
Nottinghamshire County Council,1111/1001,Children and Young People,CYP,Transport Related,CCA,09/08/2019,05-13766,1560,Reliable Cars Ltd
Nottinghamshire County Council,1111/1001,Children and Young People,CYP,Transport Related,CCA,09/08/2019,05-13769,981.37,Forest Cars
Nottinghamshire County Council,1111/1001,Children and Young People,CYP,Transport Related,CCA,09/08/2019,05-13772,1260,Forest Cars
Nottinghamshire County Council,1111/1001,Children and Young People,CYP,Transport Related,CCA,09/08/2019,05-13774,1780,Forest Cars
Nottinghamshire County Council,1111/1001,Children and Young People,CYP,Transport Related,CCA,09/08/2019,05-13776,1824,Forest Cars
Nottinghamshire County Council,1111/1001,Children and Young People,CYP,Transport Related,CCA,09/08/2019,05-13779,897.7,Forest Cars
Nottinghamshire County Council,1111/1001,Children and Young People,CYP,Transport Related,CCA,09/08/2019,05-13780,1468.96,Forest Cars
Nottinghamshire County Council,1111/1001,Children and Young People,CYP,Transport Related,CCA,09/08/2019,05-13781,1667.85,Forest Cars
Nottinghamshire County Council,1111/1001,Children and Young People,CYP,Transport Related,CCA,09/08/2019,05-13784,566.18,Forest Cars
Nottinghamshire County Council,1111/1001,Children and Young People,CYP,Transport Related,CCA,09/08/2019,05-13787,1110,Forest Cars
Nottinghamshire County Council,1111/1001,Children and Young People,CYP,Transport Related,CCA,09/08/2019,05-13790,599.82,Forest Cars
Nottinghamshire County Council,1111/1001,Children and Young People,CYP,Transport Related,CCA,09/08/2019,05-13792,1269.95,Forest Cars
Nottinghamshire County Council,1111/1001,Children and Young People,CYP,Transport Related,CCA,09/08/2019,05-13796,1042.32,Forest Cars
Nottinghamshire County Council,1111/1001,Children and Young People,CYP,Transport Related,CCA,09/08/2019,05-13798,1320,Forest Cars
Nottinghamshire County Council,1111/1001,Children and Young People,CYP,Transport Related,CCA,09/08/2019,05-13800,945.36,Forest Cars
Nottinghamshire County Council,1111/1001,Children and Young People,CYP,Transport Related,CCA,09/08/2019,05-13802,1480,Forest Cars
Nottinghamshire County Council,1111/1001,Children and Young People,CYP,Transport Related,CCA,09/08/2019,05-13804,2050.35,Forest Cars
Nottinghamshire County Council,1111/1001,Children and Young People,CYP,Transport Related,CCA,09/08/2019,05-13809,880,Forest Cars
Nottinghamshire County Council,1111/1001,Children and Young People,CYP,Transport Related,CCA,09/08/2019,05-13813,1782,Forest Cars
Nottinghamshire County Council,1111/1001,Children and Young People,CYP,Transport Related,CCA,09/08/2019,05-13814,1848,Forest Cars
Body Name,Body,Service Label,Service Code,CIPFA Detailed Expenditure Type,CIPFA Detailed Expenditure CodeDate,,Transaction NumberNet Amount,,Supplier Name
Nottinghamshire County Council,1111/1001,Children and Young People,CYP,Transport Related,CCA,09/08/2019,05-13817,1764,Forest Cars
Nottinghamshire County Council,1111/1001,Children and Young People,CYP,Transport Related,CCA,09/08/2019,05-13819,1872,Forest Cars
Nottinghamshire County Council,1111/1001,Children and Young People,CYP,Transport Related,CCA,09/08/2019,05-13822,1260,Forest Cars
Nottinghamshire County Council,1111/1001,Children and Young People,CYP,Transport Related,CCA,09/08/2019,05-13824,1584,Forest Cars
Nottinghamshire County Council,1111/1001,Children and Young People,CYP,Transport Related,CCA,09/08/2019,05-13826,1185,Forest Cars
Nottinghamshire County Council,1111/1001,Children and Young People,CYP,Transport Related,CCA,09/08/2019,05-13830,3516,Millennium Travel (Mansfield) Ltd
Nottinghamshire County Council,1111/1001,Children and Young People,CYP,Transport Related,CCA,09/08/2019,05-13832,1050,APC Travel
Nottinghamshire County Council,1111/1001,Children and Young People,CYP,Transport Related,CCA,13/08/2019,05-14020,1130,Ideal Cars (Private Hire) Ltd
Nottinghamshire County Council,1111/1001,Children and Young People,CYP,Transport Related,CCA,13/08/2019,05-14022,1200,Ideal Cars (Private Hire) Ltd
Nottinghamshire County Council,1111/1001,Children and Young People,CYP,Transport Related,CCA,13/08/2019,05-14023,2470,Ideal Cars (Private Hire) Ltd
Nottinghamshire County Council,1111/1001,Children and Young People,CYP,Transport Related,CCA,14/08/2019,05-14304,1982.88,F4Control Ltd (t/a First4care)
Nottinghamshire County Council,1111/1001,Children and Young People,CYP,Transport Related,CCA,14/08/2019,05-14305,2125.08,F4Control Ltd (t/a First4care)
Nottinghamshire County Council,1111/1001,Children and Young People,CYP,Transport Related,CCA,14/08/2019,05-14306,2148.12,F4Control Ltd (t/a First4care)
Nottinghamshire County Council,1111/1001,Children and Young People,CYP,Transport Related,CCA,14/08/2019,05-14307,1957.5,F4Control Ltd (t/a First4care)
Nottinghamshire County Council,1111/1001,Children and Young People,CYP,Transport Related,CCA,14/08/2019,05-14308,2178.72,F4Control Ltd (t/a First4care)
Nottinghamshire County Council,1111/1001,Children and Young People,CYP,Transport Related,CCA,14/08/2019,05-14317,792,Acorn Contracts
Nottinghamshire County Council,1111/1001,Children and Young People,CYP,Transport Related,CCA,14/08/2019,05-14318,13181.76,Erewash Community Transport
Nottinghamshire County Council,1111/1001,Children and Young People,CYP,Transport Related,CCA,14/08/2019,05-14319,1050,Ng11 Cars
Nottinghamshire County Council,1111/1001,Children and Young People,CYP,Transport Related,CCA,14/08/2019,05-14321,660,Ng11 Cars
Nottinghamshire County Council,1111/1001,Children and Young People,CYP,Transport Related,CCA,14/08/2019,05-14322,1260,Ng11 Cars
Nottinghamshire County Council,1111/1001,Children and Young People,CYP,Transport Related,CCA,14/08/2019,05-14324,1500,Ng11 Cars
Nottinghamshire County Council,1111/1001,Children and Young People,CYP,Transport Related,CCA,14/08/2019,05-14325,311.47,F4Control Ltd (t/a First4care)
Nottinghamshire County Council,1111/1001,Children and Young People,CYP,Transport Related,CCA,14/08/2019,05-14329,3017.88,BN Gibson Ltd
Nottinghamshire County Council,1111/1001,Children and Young People,CYP,Transport Related,CCA,14/08/2019,05-14330,3881.7,BN Gibson Ltd
Nottinghamshire County Council,1111/1001,Children and Young People,CYP,Transport Related,CCA,14/08/2019,05-14331,4252.68,BN Gibson Ltd
Nottinghamshire County Council,1111/1001,Children and Young People,CYP,Transport Related,CCA,14/08/2019,05-14332,2342.94,BN Gibson Ltd
Nottinghamshire County Council,1111/1001,Children and Young People,CYP,Transport Related,CCA,14/08/2019,05-14333,1974.21,BN Gibson Ltd
Nottinghamshire County Council,1111/1001,Children and Young People,CYP,Transport Related,CCA,14/08/2019,05-14334,1675.18,BN Gibson Ltd
Nottinghamshire County Council,1111/1001,Children and Young People,CYP,Transport Related,CCA,14/08/2019,05-14335,1974.21,BN Gibson Ltd
Nottinghamshire County Council,1111/1001,Children and Young People,CYP,Transport Related,CCA,14/08/2019,05-14336,2392.92,BN Gibson Ltd
Nottinghamshire County Council,1111/1001,Children and Young People,CYP,Transport Related,CCA,14/08/2019,05-14337,2593.35,BN Gibson Ltd
Nottinghamshire County Council,1111/1001,Children and Young People,CYP,Transport Related,CCA,14/08/2019,05-14338,1914.2,BN Gibson Ltd
Nottinghamshire County Council,1111/1001,Children and Young People,CYP,Transport Related,CCA,14/08/2019,05-14339,2198.95,BN Gibson Ltd
Nottinghamshire County Council,1111/1001,Children and Young People,CYP,Transport Related,CCA,14/08/2019,05-14340,4460.94,BN Gibson Ltd
Nottinghamshire County Council,1111/1001,Children and Young People,CYP,Transport Related,CCA,14/08/2019,05-14341,2189.88,BN Gibson Ltd
Nottinghamshire County Council,1111/1001,Children and Young People,CYP,Transport Related,CCA,14/08/2019,05-14342,2689.38,BN Gibson Ltd
Nottinghamshire County Council,1111/1001,Children and Young People,CYP,Transport Related,CCA,14/08/2019,05-14343,2189.88,BN Gibson Ltd
Nottinghamshire County Council,1111/1001,Children and Young People,CYP,Transport Related,CCA,14/08/2019,05-14344,3555.9,BN Gibson Ltd
Nottinghamshire County Council,1111/1001,Children and Young People,CYP,Transport Related,CCA,14/08/2019,05-14345,2941.02,BN Gibson Ltd
Nottinghamshire County Council,1111/1001,Children and Young People,CYP,Transport Related,CCA,14/08/2019,05-14346,2406.96,BN Gibson Ltd
Nottinghamshire County Council,1111/1001,Children and Young People,CYP,Transport Related,CCA,14/08/2019,05-14347,3313.13,BN Gibson Ltd
Nottinghamshire County Council,1111/1001,Children and Young People,CYP,Transport Related,CCA,14/08/2019,05-14348,3039.6,BN Gibson Ltd
Nottinghamshire County Council,1111/1001,Children and Young People,CYP,Transport Related,CCA,14/08/2019,05-14349,3235.44,BN Gibson Ltd
Nottinghamshire County Council,1111/1001,Children and Young People,CYP,Transport Related,CCA,14/08/2019,05-14350,4402.8,BN Gibson Ltd
Nottinghamshire County Council,1111/1001,Children and Young People,CYP,Transport Related,CCA,14/08/2019,05-14351,3457.8,BN Gibson Ltd
Nottinghamshire County Council,1111/1001,Children and Young People,CYP,Transport Related,CCA,14/08/2019,05-14352,2968.38,BN Gibson Ltd
Body Name,Body,Service Label,Service Code,CIPFA Detailed Expenditure Type,CIPFA Detailed Expenditure CodeDate,,Transaction NumberNet Amount,,Supplier Name
Nottinghamshire County Council,1111/1001,Children and Young People,CYP,Transport Related,CCA,14/08/2019,05-14353,2576.34,BN Gibson Ltd
Nottinghamshire County Council,1111/1001,Children and Young People,CYP,Transport Related,CCA,14/08/2019,05-14354,3739.5,BN Gibson Ltd
Nottinghamshire County Council,1111/1001,Children and Young People,CYP,Transport Related,CCA,14/08/2019,05-14355,3434.58,BN Gibson Ltd
Nottinghamshire County Council,1111/1001,Children and Young People,CYP,Transport Related,CCA,14/08/2019,05-14356,2967.3,BN Gibson Ltd
Nottinghamshire County Council,1111/1001,Children and Young People,CYP,Transport Related,CCA,14/08/2019,05-14357,2342.16,BN Gibson Ltd
Nottinghamshire County Council,1111/1001,Children and Young People,CYP,Transport Related,CCA,14/08/2019,05-14358,2182.14,BN Gibson Ltd
Nottinghamshire County Council,1111/1001,Children and Young People,CYP,Transport Related,CCA,14/08/2019,05-14359,2095.56,BN Gibson Ltd
Nottinghamshire County Council,1111/1001,Children and Young People,CYP,Transport Related,CCA,14/08/2019,05-14360,1946.56,BN Gibson Ltd
Nottinghamshire County Council,1111/1001,Children and Young People,CYP,Transport Related,CCA,14/08/2019,05-14361,2844.75,BN Gibson Ltd
Nottinghamshire County Council,1111/1001,Children and Young People,CYP,Transport Related,CCA,14/08/2019,05-14362,2169.54,BN Gibson Ltd
Nottinghamshire County Council,1111/1001,Children and Young People,CYP,Transport Related,CCA,14/08/2019,05-14363,1836.18,BN Gibson Ltd
Nottinghamshire County Council,1111/1001,Children and Young People,CYP,Transport Related,CCA,14/08/2019,05-14364,2383.2,BN Gibson Ltd
Nottinghamshire County Council,1111/1001,Children and Young People,CYP,Transport Related,CCA,14/08/2019,05-14365,1936.62,BN Gibson Ltd
Nottinghamshire County Council,1111/1001,Children and Young People,CYP,Transport Related,CCA,14/08/2019,05-14366,2885.75,BN Gibson Ltd
Nottinghamshire County Council,1111/1001,Children and Young People,CYP,Transport Related,CCA,14/08/2019,05-14367,2489.94,BN Gibson Ltd
Nottinghamshire County Council,1111/1001,Children and Young People,CYP,Transport Related,CCA,14/08/2019,05-14368,1936.62,BN Gibson Ltd
Nottinghamshire County Council,1111/1001,Children and Young People,CYP,Transport Related,CCA,14/08/2019,05-14369,2453.85,BN Gibson Ltd
Nottinghamshire County Council,1111/1001,Children and Young People,CYP,Transport Related,CCA,14/08/2019,05-14370,2132.28,BN Gibson Ltd
Nottinghamshire County Council,1111/1001,Children and Young People,CYP,Transport Related,CCA,14/08/2019,05-14371,1356,BN Gibson Ltd
Nottinghamshire County Council,1111/1001,Children and Young People,CYP,Transport Related,CCA,14/08/2019,05-14372,1017,BN Gibson Ltd
Nottinghamshire County Council,1111/1001,Children and Young People,CYP,Transport Related,CCA,14/08/2019,05-14375,2303.25,BN Gibson Ltd
Nottinghamshire County Council,1111/1001,Children and Young People,CYP,Transport Related,CCA,14/08/2019,05-14376,2358.54,Midfield Travel
Nottinghamshire County Council,1111/1001,Children and Young People,CYP,Transport Related,CCA,14/08/2019,05-14377,1059.4,Midfield Travel
Nottinghamshire County Council,1111/1001,Children and Young People,CYP,Transport Related,CCA,14/08/2019,05-14378,3825,Gem Mini Travel Ltd
Nottinghamshire County Council,1111/1001,Children and Young People,CYP,Transport Related,CCA,14/08/2019,05-14379,2844.5,Gem Mini Travel Ltd
Nottinghamshire County Council,1111/1001,Children and Young People,CYP,Transport Related,CCA,14/08/2019,05-14380,2843.5,Gem Mini Travel Ltd
Nottinghamshire County Council,1111/1001,Children and Young People,CYP,Transport Related,CCA,14/08/2019,05-14381,3502,Gem Mini Travel Ltd
Nottinghamshire County Council,1111/1001,Children and Young People,CYP,Transport Related,CCA,14/08/2019,05-14382,1955,Gem Mini Travel Ltd
Nottinghamshire County Council,1111/1001,Children and Young People,CYP,Transport Related,CCA,14/08/2019,05-14383,3955.5,Gem Mini Travel Ltd
Nottinghamshire County Council,1111/1001,Children and Young People,CYP,Transport Related,CCA,14/08/2019,05-14386,1623.75,Marshalls Of Sutton On Trent Ltd
Nottinghamshire County Council,1111/1001,Children and Young People,CYP,Transport Related,CCA,14/08/2019,05-14391,2663.85,Marshalls Of Sutton On Trent Ltd
Nottinghamshire County Council,1111/1001,Children and Young People,CYP,Transport Related,CCA,14/08/2019,05-14394,2111.77,Marshalls Of Sutton On Trent Ltd
Nottinghamshire County Council,1111/1001,Children and Young People,CYP,Transport Related,CCA,14/08/2019,05-14397,2625,Marshalls Of Sutton On Trent Ltd
Nottinghamshire County Council,1111/1001,Children and Young People,CYP,Transport Related,CCA,14/08/2019,05-14399,4432.65,Stagecoach Services Ltd
Nottinghamshire County Council,1111/1001,Children and Young People,CYP,Transport Related,CCA,14/08/2019,05-14407,4465,Stagecoach Services Ltd
Nottinghamshire County Council,1111/1001,Children and Young People,CYP,Transport Related,CCA,14/08/2019,05-14408,3150,Stagecoach Services Ltd
Nottinghamshire County Council,1111/1001,Children and Young People,CYP,Transport Related,CCA,14/08/2019,05-14409,3298.4,Stagecoach Services Ltd
Nottinghamshire County Council,1111/1001,Children and Young People,CYP,Transport Related,CCA,14/08/2019,05-14410,6131.86,Stagecoach Services Ltd
Nottinghamshire County Council,1111/1001,Children and Young People,CYP,Transport Related,CCA,14/08/2019,05-14412,2888.17,Stagecoach Services Ltd
Nottinghamshire County Council,1111/1001,Children and Young People,CYP,Transport Related,CCA,14/08/2019,05-14414,4919.44,Stagecoach Services Ltd
Nottinghamshire County Council,1111/1001,Children and Young People,CYP,Transport Related,CCA,14/08/2019,05-14418,2606.04,Stagecoach Services Ltd
Nottinghamshire County Council,1111/1001,Children and Young People,CYP,Transport Related,CCA,14/08/2019,05-14424,4842,Stagecoach Services Ltd
Nottinghamshire County Council,1111/1001,Children and Young People,CYP,Transport Related,CCA,14/08/2019,05-14425,4482,Stagecoach Services Ltd
Nottinghamshire County Council,1111/1001,Children and Young People,CYP,Transport Related,CCA,14/08/2019,05-14426,3294,Stagecoach Services Ltd
Nottinghamshire County Council,1111/1001,Children and Young People,CYP,Transport Related,CCA,14/08/2019,05-14431,3632,Stagecoach Services Ltd
Nottinghamshire County Council,1111/1001,Children and Young People,CYP,Transport Related,CCA,14/08/2019,05-14432,5014,Stagecoach Services Ltd
Body Name,Body,Service Label,Service Code,CIPFA Detailed Expenditure Type,CIPFA Detailed Expenditure CodeDate,,Transaction NumberNet Amount,,Supplier Name
Nottinghamshire County Council,1111/1001,Children and Young People,CYP,Transport Related,CCA,14/08/2019,05-14437,5194.5,Stagecoach Services Ltd
Nottinghamshire County Council,1111/1001,Children and Young People,CYP,Transport Related,CCA,14/08/2019,05-14438,4230,Stagecoach Services Ltd
Nottinghamshire County Council,1111/1001,Children and Young People,CYP,Transport Related,CCA,14/08/2019,05-14441,3264,Travel Wright Ltd
Nottinghamshire County Council,1111/1001,Children and Young People,CYP,Transport Related,CCA,14/08/2019,05-14442,3123,Travel Wright Ltd
Nottinghamshire County Council,1111/1001,Children and Young People,CYP,Transport Related,CCA,14/08/2019,05-14443,3123,Travel Wright Ltd
Nottinghamshire County Council,1111/1001,Children and Young People,CYP,Transport Related,CCA,14/08/2019,05-14444,2847,Travel Wright Ltd
Nottinghamshire County Council,1111/1001,Children and Young People,CYP,Transport Related,CCA,14/08/2019,05-14445,3109,Travel Wright Ltd
Nottinghamshire County Council,1111/1001,Children and Young People,CYP,Transport Related,CCA,14/08/2019,05-14450,2300.4,Travel Wright Ltd
Nottinghamshire County Council,1111/1001,Children and Young People,CYP,Transport Related,CCA,14/08/2019,05-14451,2364,Travel Wright Ltd
Nottinghamshire County Council,1111/1001,Children and Young People,CYP,Transport Related,CCA,14/08/2019,05-14452,2529.6,Travel Wright Ltd
Nottinghamshire County Council,1111/1001,Children and Young People,CYP,Transport Related,CCA,14/08/2019,05-14454,1606.65,P & P Taxis
Nottinghamshire County Council,1111/1001,Children and Young People,CYP,Transport Related,CCA,14/08/2019,05-14457,8640,Wilfreda Beehive
Nottinghamshire County Council,1111/1001,Children and Young People,CYP,Transport Related,CCA,14/08/2019,05-14458,654,Rio Cabs
Nottinghamshire County Council,1111/1001,Children and Young People,CYP,Transport Related,CCA,14/08/2019,05-14459,1400,Rio Cabs
Nottinghamshire County Council,1111/1001,Children and Young People,CYP,Transport Related,CCA,14/08/2019,05-14460,1935,Rio Cabs
Nottinghamshire County Council,1111/1001,Children and Young People,CYP,Transport Related,CCA,14/08/2019,05-14462,899.85,Rio Cabs
Nottinghamshire County Council,1111/1001,Children and Young People,CYP,Transport Related,CCA,14/08/2019,05-14464,1979.1,Wallis Coachways
Nottinghamshire County Council,1111/1001,Children and Young People,CYP,Transport Related,CCA,14/08/2019,05-14467,1170.8,Eastwood Cars (UK) Ltd
Nottinghamshire County Council,1111/1001,Children and Young People,CYP,Transport Related,CCA,14/08/2019,05-14468,600,Eastwood Cars (UK) Ltd
Nottinghamshire County Council,1111/1001,Children and Young People,CYP,Transport Related,CCA,14/08/2019,05-14469,675,Eastwood Cars (UK) Ltd
Nottinghamshire County Council,1111/1001,Children and Young People,CYP,Transport Related,CCA,14/08/2019,05-14471,1880,Shiny Sky Ltd T/A Arrow Cars
Nottinghamshire County Council,1111/1001,Children and Young People,CYP,Transport Related,CCA,14/08/2019,05-14474,565.6,Shiny Sky Ltd T/A Arrow Cars
Nottinghamshire County Council,1111/1001,Children and Young People,CYP,Transport Related,CCA,14/08/2019,05-14475,648,Shiny Sky Ltd T/A Arrow Cars
Nottinghamshire County Council,1111/1001,Children and Young People,CYP,Transport Related,CCA,14/08/2019,05-14476,1161.3,Nunns Taxis Ltd
Nottinghamshire County Council,1111/1001,Children and Young People,CYP,Transport Related,CCA,14/08/2019,05-14477,1155.2,Nunns Taxis Ltd
Nottinghamshire County Council,1111/1001,Children and Young People,CYP,Transport Related,CCA,14/08/2019,05-14479,416.29,Nunns Taxis Ltd
Nottinghamshire County Council,1111/1001,Children and Young People,CYP,Transport Related,CCA,14/08/2019,05-14482,720,ADF Cars Ltd
Nottinghamshire County Council,1111/1001,Children and Young People,CYP,Transport Related,CCA,14/08/2019,05-14485,1239,AJ's Taxis
Nottinghamshire County Council,1111/1001,Children and Young People,CYP,Transport Related,CCA,14/08/2019,05-14486,792,AJ's Taxis
Nottinghamshire County Council,1111/1001,Children and Young People,CYP,Transport Related,CCA,14/08/2019,05-14487,1350,SM Travel Yorkshire Ltd
Nottinghamshire County Council,1111/1001,Children and Young People,CYP,Transport Related,CCA,14/08/2019,05-14488,1303.5,SM Travel Yorkshire Ltd
Nottinghamshire County Council,1111/1001,Children and Young People,CYP,Transport Related,CCA,14/08/2019,05-14489,1783.5,SM Travel Yorkshire Ltd
Nottinghamshire County Council,1111/1001,Children and Young People,CYP,Transport Related,CCA,14/08/2019,05-14491,1253.7,SM Travel Yorkshire Ltd
Nottinghamshire County Council,1111/1001,Children and Young People,CYP,Transport Related,CCA,16/08/2019,05-14569,2430,Southside Cars
Nottinghamshire County Council,1111/1001,Children and Young People,CYP,Transport Related,CCA,16/08/2019,05-14570,3204,Southside Cars
Nottinghamshire County Council,1111/1001,Children and Young People,CYP,Transport Related,CCA,16/08/2019,05-14571,1708.92,Southside Cars
Nottinghamshire County Council,1111/1001,Children and Young People,CYP,Transport Related,CCA,16/08/2019,05-14572,736,Southside Cars
Nottinghamshire County Council,1111/1001,Children and Young People,CYP,Transport Related,CCA,16/08/2019,05-14573,1872,Southside Cars
Nottinghamshire County Council,1111/1001,Children and Young People,CYP,Transport Related,CCA,16/08/2019,05-14574,2625,Southside Cars
Nottinghamshire County Council,1111/1001,Children and Young People,CYP,Transport Related,CCA,16/08/2019,05-14575,2259.48,Southside Cars
Nottinghamshire County Council,1111/1001,Children and Young People,CYP,Transport Related,CCA,16/08/2019,05-14576,816,Southside Cars
Nottinghamshire County Council,1111/1001,Children and Young People,CYP,Transport Related,CCA,16/08/2019,05-14579,1700,Southside Cars
Nottinghamshire County Council,1111/1001,Children and Young People,CYP,Transport Related,CCA,16/08/2019,05-14580,1708.92,Southside Cars
Nottinghamshire County Council,1111/1001,Children and Young People,CYP,Transport Related,CCA,16/08/2019,05-14581,702.76,Southside Cars
Nottinghamshire County Council,1111/1001,Children and Young People,CYP,Transport Related,CCA,16/08/2019,05-14582,909,Southside Cars
Nottinghamshire County Council,1111/1001,Children and Young People,CYP,Transport Related,CCA,16/08/2019,05-14584,1927.05,6 Five 2s
Body Name,Body,Service Label,Service Code,CIPFA Detailed Expenditure Type,CIPFA Detailed Expenditure CodeDate,,Transaction NumberNet Amount,,Supplier Name
Nottinghamshire County Council,1111/1001,Children and Young People,CYP,Transport Related,CCA,16/08/2019,05-14585,1666.5,6 Five 2s
Nottinghamshire County Council,1111/1001,Children and Young People,CYP,Transport Related,CCA,16/08/2019,05-14586,1351.35,6 Five 2s
Nottinghamshire County Council,1111/1001,Children and Young People,CYP,Transport Related,CCA,16/08/2019,05-14587,1410,6 Five 2s
Nottinghamshire County Council,1111/1001,Children and Young People,CYP,Transport Related,CCA,16/08/2019,05-14589,1595.1,6 Five 2s
Nottinghamshire County Council,1111/1001,Children and Young People,CYP,Transport Related,CCA,16/08/2019,05-14593,950,6 Five 2s
Nottinghamshire County Council,1111/1001,Children and Young People,CYP,Transport Related,CCA,16/08/2019,05-14596,2062.78,F4Control Ltd (t/a First4care)
Nottinghamshire County Council,1111/1001,Children and Young People,CYP,Transport Related,CCA,16/08/2019,05-14597,680,Acorn Contracts
Nottinghamshire County Council,1111/1001,Children and Young People,CYP,Transport Related,CCA,16/08/2019,05-14598,1442.28,Alpha Cars
Nottinghamshire County Council,1111/1001,Children and Young People,CYP,Transport Related,CCA,16/08/2019,05-14599,1545.3,Alpha Cars
Nottinghamshire County Council,1111/1001,Children and Young People,CYP,Transport Related,CCA,16/08/2019,05-14600,2472.48,Alpha Cars
Nottinghamshire County Council,1111/1001,Children and Young People,CYP,Transport Related,CCA,16/08/2019,05-14601,1071.15,Shelleys Taxis Ltd
Nottinghamshire County Council,1111/1001,Children and Young People,CYP,Transport Related,CCA,16/08/2019,05-14602,1904,Shelleys Taxis Ltd
Nottinghamshire County Council,1111/1001,Children and Young People,CYP,Transport Related,CCA,16/08/2019,05-14603,3056.26,Vallances Coaches
Nottinghamshire County Council,1111/1001,Children and Young People,CYP,Transport Related,CCA,16/08/2019,05-14604,2987.58,Vallances Coaches
Nottinghamshire County Council,1111/1001,Children and Young People,CYP,Transport Related,CCA,16/08/2019,05-14605,3056.26,Vallances Coaches
Nottinghamshire County Council,1111/1001,Children and Young People,CYP,Transport Related,CCA,16/08/2019,05-14606,2313.54,F4Control Ltd (t/a First4care)
Nottinghamshire County Council,1111/1001,Children and Young People,CYP,Transport Related,CCA,16/08/2019,05-14607,2299.08,F4Control Ltd (t/a First4care)
Nottinghamshire County Council,1111/1001,Children and Young People,CYP,Transport Related,CCA,16/08/2019,05-14608,2437.56,F4Control Ltd (t/a First4care)
Nottinghamshire County Council,1111/1001,Children and Young People,CYP,Transport Related,CCA,16/08/2019,05-14609,2340,F4Control Ltd (t/a First4care)
Nottinghamshire County Council,1111/1001,Children and Young People,CYP,Transport Related,CCA,16/08/2019,05-14610,3617.82,F4Control Ltd (t/a First4care)
Nottinghamshire County Council,1111/1001,Children and Young People,CYP,Transport Related,CCA,16/08/2019,05-14611,1669.8,F4Control Ltd (t/a First4care)
Nottinghamshire County Council,1111/1001,Children and Young People,CYP,Transport Related,CCA,16/08/2019,05-14612,1997.64,F4Control Ltd (t/a First4care)
Nottinghamshire County Council,1111/1001,Children and Young People,CYP,Transport Related,CCA,16/08/2019,05-14613,2483.36,F4Control Ltd (t/a First4care)
Nottinghamshire County Council,1111/1001,Children and Young People,CYP,Transport Related,CCA,16/08/2019,05-14614,1959.52,F4Control Ltd (t/a First4care)
Nottinghamshire County Council,1111/1001,Children and Young People,CYP,Transport Related,CCA,16/08/2019,05-14615,1693.05,F4Control Ltd (t/a First4care)
Nottinghamshire County Council,1111/1001,Children and Young People,CYP,Transport Related,CCA,16/08/2019,05-14616,2022.15,F4Control Ltd (t/a First4care)
Nottinghamshire County Council,1111/1001,Children and Young People,CYP,Transport Related,CCA,16/08/2019,05-14617,3744.93,F4Control Ltd (t/a First4care)
Nottinghamshire County Council,1111/1001,Children and Young People,CYP,Transport Related,CCA,16/08/2019,05-14618,1441.6,F4Control Ltd (t/a First4care)
Nottinghamshire County Council,1111/1001,Children and Young People,CYP,Transport Related,CCA,16/08/2019,05-14619,1912.95,F4Control Ltd (t/a First4care)
Nottinghamshire County Council,1111/1001,Children and Young People,CYP,Transport Related,CCA,16/08/2019,05-14620,2442.96,F4Control Ltd (t/a First4care)
Nottinghamshire County Council,1111/1001,Children and Young People,CYP,Transport Related,CCA,16/08/2019,05-14621,2168.01,F4Control Ltd (t/a First4care)
Nottinghamshire County Council,1111/1001,Children and Young People,CYP,Transport Related,CCA,16/08/2019,05-14622,2263.14,F4Control Ltd (t/a First4care)
Nottinghamshire County Council,1111/1001,Children and Young People,CYP,Transport Related,CCA,16/08/2019,05-14623,533.66,F4Control Ltd (t/a First4care)
Nottinghamshire County Council,1111/1001,Children and Young People,CYP,Transport Related,CCA,16/08/2019,05-14625,1380.32,F4Control Ltd (t/a First4care)
Nottinghamshire County Council,1111/1001,Children and Young People,CYP,Transport Related,CCA,16/08/2019,05-14627,2410.2,F4Control Ltd (t/a First4care)
Nottinghamshire County Council,1111/1001,Children and Young People,CYP,Transport Related,CCA,16/08/2019,05-14628,729.96,BN Gibson Ltd
Nottinghamshire County Council,1111/1001,Children and Young People,CYP,Transport Related,CCA,16/08/2019,05-14630,3755.2,BN Gibson Ltd
Nottinghamshire County Council,1111/1001,Children and Young People,CYP,Transport Related,CCA,16/08/2019,05-14633,574,D G Private Hire Ltd
Nottinghamshire County Council,1111/1001,Children and Young People,CYP,Transport Related,CCA,16/08/2019,05-14634,1212,D G Private Hire Ltd
Nottinghamshire County Council,1111/1001,Children and Young People,CYP,Transport Related,CCA,16/08/2019,05-14635,1285.38,D G Private Hire Ltd
Nottinghamshire County Council,1111/1001,Children and Young People,CYP,Transport Related,CCA,16/08/2019,05-14636,867.17,D G Private Hire Ltd
Nottinghamshire County Council,1111/1001,Children and Young People,CYP,Transport Related,CCA,16/08/2019,05-14637,1579.5,D G Private Hire Ltd
Nottinghamshire County Council,1111/1001,Children and Young People,CYP,Transport Related,CCA,16/08/2019,05-14638,1818,D G Private Hire Ltd
Nottinghamshire County Council,1111/1001,Children and Young People,CYP,Transport Related,CCA,16/08/2019,05-14639,1080,D G Private Hire Ltd
Nottinghamshire County Council,1111/1001,Children and Young People,CYP,Transport Related,CCA,16/08/2019,05-14646,132.19,Abacus Cars
Nottinghamshire County Council,1111/1001,Children and Young People,CYP,Transport Related,CCA,16/08/2019,05-14649,1510.96,Abacus Cars
Body Name,Body,Service Label,Service Code,CIPFA Detailed Expenditure Type,CIPFA Detailed Expenditure CodeDate,,Transaction NumberNet Amount,,Supplier Name
Nottinghamshire County Council,1111/1001,Children and Young People,CYP,Transport Related,CCA,16/08/2019,05-14651,1150,Abacus Cars
Nottinghamshire County Council,1111/1001,Children and Young People,CYP,Transport Related,CCA,16/08/2019,05-14657,3477.25,Tiger European Uk Ltd
Nottinghamshire County Council,1111/1001,Children and Young People,CYP,Transport Related,CCA,16/08/2019,05-14659,3631.27,Tiger European Uk Ltd
Nottinghamshire County Council,1111/1001,Children and Young People,CYP,Transport Related,CCA,16/08/2019,05-14660,2985.88,Tiger European Uk Ltd
Nottinghamshire County Council,1111/1001,Children and Young People,CYP,Transport Related,CCA,16/08/2019,05-14661,3500,Tiger European Uk Ltd
Nottinghamshire County Council,1111/1001,Children and Young People,CYP,Transport Related,CCA,16/08/2019,05-14662,3360,Tiger European Uk Ltd
Nottinghamshire County Council,1111/1001,Children and Young People,CYP,Transport Related,CCA,16/08/2019,05-14663,2913.4,Tiger European Uk Ltd
Nottinghamshire County Council,1111/1001,Children and Young People,CYP,Transport Related,CCA,16/08/2019,05-14664,6900,Tiger European Uk Ltd
Nottinghamshire County Council,1111/1001,Children and Young People,CYP,Transport Related,CCA,16/08/2019,05-14665,3900,Tiger European Uk Ltd
Nottinghamshire County Council,1111/1001,Children and Young People,CYP,Transport Related,CCA,16/08/2019,05-14666,3664,Tiger European Uk Ltd
Nottinghamshire County Council,1111/1001,Children and Young People,CYP,Transport Related,CCA,16/08/2019,05-14669,3279,Tiger European Uk Ltd
Nottinghamshire County Council,1111/1001,Children and Young People,CYP,Transport Related,CCA,16/08/2019,05-14670,2790.05,Tiger European Uk Ltd
Nottinghamshire County Council,1111/1001,Children and Young People,CYP,Transport Related,CCA,16/08/2019,05-14671,3150,Tiger European Uk Ltd
Nottinghamshire County Council,1111/1001,Children and Young People,CYP,Transport Related,CCA,16/08/2019,05-14672,2517.5,Tiger European Uk Ltd
Nottinghamshire County Council,1111/1001,Children and Young People,CYP,Transport Related,CCA,16/08/2019,05-14673,2603.5,Tiger European Uk Ltd
Nottinghamshire County Council,1111/1001,Children and Young People,CYP,Transport Related,CCA,16/08/2019,05-14674,6210,Tiger European Uk Ltd
Nottinghamshire County Council,1111/1001,Children and Young People,CYP,Transport Related,CCA,16/08/2019,05-14675,3510,Tiger European Uk Ltd
Nottinghamshire County Council,1111/1001,Children and Young People,CYP,Transport Related,CCA,16/08/2019,05-14676,3315,Tiger European Uk Ltd
Nottinghamshire County Council,1111/1001,Children and Young People,CYP,Transport Related,CCA,16/08/2019,05-14677,6700,Tiger European Uk Ltd
Nottinghamshire County Council,1111/1001,Children and Young People,CYP,Transport Related,CCA,16/08/2019,05-14678,6030,Tiger European Uk Ltd
Nottinghamshire County Council,1111/1001,Children and Young People,CYP,Transport Related,CCA,16/08/2019,05-14679,2640.75,Tiger European Uk Ltd
Nottinghamshire County Council,1111/1001,Children and Young People,CYP,Transport Related,CCA,16/08/2019,05-14681,3152.7,K Matthews Travel
Nottinghamshire County Council,1111/1001,Children and Young People,CYP,Transport Related,CCA,16/08/2019,05-14682,2967.3,K Matthews Travel
Nottinghamshire County Council,1111/1001,Children and Young People,CYP,Transport Related,CCA,16/08/2019,05-14684,2250,Trevor Bailey t/a Trevor Bailey Tra
Nottinghamshire County Council,1111/1001,Children and Young People,CYP,Transport Related,CCA,16/08/2019,05-14686,721.08,Shiny Sky Ltd T/A Arrow Cars
Nottinghamshire County Council,1111/1001,Children and Young People,CYP,Transport Related,CCA,16/08/2019,05-14687,1700,Rushcliffe Travel Ltd
Nottinghamshire County Council,1111/1001,Children and Young People,CYP,Transport Related,CCA,16/08/2019,05-14688,1496,Forest Cars
Nottinghamshire County Council,1111/1001,Children and Young People,CYP,Transport Related,CCA,19/08/2019,05-14692,1631.15,6 Five 2s
Nottinghamshire County Council,1111/1001,Children and Young People,CYP,Transport Related,CCA,19/08/2019,05-14693,672.3,6 Five 2s
Nottinghamshire County Council,1111/1001,Children and Young People,CYP,Transport Related,CCA,19/08/2019,05-14695,649.6,6 Five 2s
Nottinghamshire County Council,1111/1001,Children and Young People,CYP,Transport Related,CCA,19/08/2019,05-14696,570,6 Five 2s
Nottinghamshire County Council,1111/1001,Children and Young People,CYP,Transport Related,CCA,19/08/2019,05-14697,2859.18,Johnson Bros Tours Ltd
Nottinghamshire County Council,1111/1001,Children and Young People,CYP,Transport Related,CCA,19/08/2019,05-14698,3885.56,Wrights Coaches T/A Little Transpor
Nottinghamshire County Council,1111/1001,Children and Young People,CYP,Transport Related,CCA,19/08/2019,05-14699,4352.94,Wrights Coaches T/A Little Transpor
Nottinghamshire County Council,1111/1001,Children and Young People,CYP,Transport Related,CCA,19/08/2019,05-14700,1032.55,Skills Motor Coaches Ltd
Nottinghamshire County Council,1111/1001,Children and Young People,CYP,Transport Related,CCA,19/08/2019,05-14701,1600,Skills Motor Coaches Ltd
Nottinghamshire County Council,1111/1001,Children and Young People,CYP,Transport Related,CCA,19/08/2019,05-14702,1771.2,Skills Motor Coaches Ltd
Nottinghamshire County Council,1111/1001,Children and Young People,CYP,Transport Related,CCA,19/08/2019,05-14703,3069.3,Marshalls Of Sutton On Trent Ltd
Nottinghamshire County Council,1111/1001,Children and Young People,CYP,Transport Related,CCA,19/08/2019,05-14704,1663.15,Silverdale Tours Nottm Ltd
Nottinghamshire County Council,1111/1001,Children and Young People,CYP,Transport Related,CCA,19/08/2019,05-14705,2191.62,Travel Wright Ltd
Nottinghamshire County Council,1111/1001,Children and Young People,CYP,Transport Related,CCA,19/08/2019,05-14706,709.02,Travel Wright Ltd
Nottinghamshire County Council,1111/1001,Children and Young People,CYP,Transport Related,CCA,19/08/2019,05-14707,5893,Freeway Coaches Ltd
Nottinghamshire County Council,1111/1001,Children and Young People,CYP,Transport Related,CCA,19/08/2019,05-14708,2292,Freeway Coaches Ltd
Nottinghamshire County Council,1111/1001,Children and Young People,CYP,Transport Related,CCA,19/08/2019,05-14709,885,Kettlewell Retford Ltd
Nottinghamshire County Council,1111/1001,Children and Young People,CYP,Transport Related,CCA,19/08/2019,05-14710,1552.1,Ace Cars & Minibuses Ltd
Nottinghamshire County Council,1111/1001,Children and Young People,CYP,Transport Related,CCA,19/08/2019,05-14711,1718.1,Ace Cars & Minibuses Ltd
Body Name,Body,Service Label,Service Code,CIPFA Detailed Expenditure Type,CIPFA Detailed Expenditure CodeDate,,Transaction NumberNet Amount,,Supplier Name
Nottinghamshire County Council,1111/1001,Children and Young People,CYP,Transport Related,CCA,19/08/2019,05-14712,688.56,Nottingham Coaches
Nottinghamshire County Council,1111/1001,Children and Young People,CYP,Transport Related,CCA,21/08/2019,05-13404,1563.6,MSP Case Management Ltd
Nottinghamshire County Council,1111/1001,Children and Young People,CYP,Transport Related,CCA,21/08/2019,05-16025,562.5,Bridges Transport Ltd
Nottinghamshire County Council,1111/1001,Children and Young People,CYP,Transport Related,CCA,21/08/2019,05-16031,1054,Galaxy Cabs Ltd
Nottinghamshire County Council,1111/1001,Children and Young People,CYP,Transport Related,CCA,21/08/2019,05-16033,780,Abacus Cars
Nottinghamshire County Council,1111/1001,Children and Young People,CYP,Transport Related,CCA,21/08/2019,05-16036,750,Ace Cars & Minibuses Ltd
Nottinghamshire County Council,1111/1001,Children and Young People,CYP,Transport Related,CCA,23/08/2019,05-15867,353.21,Doncaster Metroplitan Borough Counc
Nottinghamshire County Council,1111/1001,Children and Young People,CYP,Transport Related,CCA,23/08/2019,05-16055,402.5,6 Five 2s
Nottinghamshire County Council,1111/1001,Children and Young People,CYP,Transport Related,CCA,23/08/2019,05-16058,8020,Butler Brothers Ltd
Nottinghamshire County Council,1111/1001,Children and Young People,CYP,Transport Related,CCA,23/08/2019,05-16059,4429,Butler Brothers Ltd
Nottinghamshire County Council,1111/1001,Children and Young People,CYP,Transport Related,CCA,23/08/2019,05-16060,6913,Butler Brothers Ltd
Nottinghamshire County Council,1111/1001,Children and Young People,CYP,Transport Related,CCA,23/08/2019,05-16061,8234,Butler Brothers Ltd
Nottinghamshire County Council,1111/1001,Children and Young People,CYP,Transport Related,CCA,23/08/2019,05-16062,7518,Butler Brothers Ltd
Nottinghamshire County Council,1111/1001,Children and Young People,CYP,Transport Related,CCA,23/08/2019,05-16068,1080,D G Private Hire Ltd
Nottinghamshire County Council,1111/1001,Children and Young People,CYP,Transport Related,CCA,27/08/2019,05-16077,7514.9,Gem Mini Travel Ltd
Nottinghamshire County Council,1111/1001,Children and Young People,CYP,Transport Related,CCA,27/08/2019,05-16078,20050.56,Ace Cars & Minibuses Ltd
Nottinghamshire County Council,1111/1001,Children and Young People,CYP,Transport Related,CCA,27/08/2019,05-16079,2223.6,Ace Cars & Minibuses Ltd
Nottinghamshire County Council,1111/1001,Children and Young People,CYP,Transport Related,CCA,27/08/2019,05-16080,2165.11,Ace Cars & Minibuses Ltd
Nottinghamshire County Council,1111/1001,Children and Young People,CYP,Transport Related,CCA,27/08/2019,05-16082,2490,Ace Cars & Minibuses Ltd
Nottinghamshire County Council,1111/1001,Children and Young People,CYP,Transport Related,CCA,27/08/2019,05-16083,2390,Ace Cars & Minibuses Ltd
Nottinghamshire County Council,1111/1001,Children and Young People,CYP,Transport Related,CCA,27/08/2019,05-16084,2354.4,Ace Cars & Minibuses Ltd
Nottinghamshire County Council,1111/1001,Children and Young People,CYP,Transport Related,CCA,27/08/2019,05-16085,1810.5,Ace Cars & Minibuses Ltd
Nottinghamshire County Council,1111/1001,Children and Young People,CYP,Transport Related,CCA,27/08/2019,05-16086,1463.5,Ace Cars & Minibuses Ltd
Nottinghamshire County Council,1111/1001,Children and Young People,CYP,Transport Related,CCA,27/08/2019,05-16087,654.64,Ace Cars & Minibuses Ltd
Nottinghamshire County Council,1111/1001,Children and Young People,CYP,Transport Related,CCA,27/08/2019,05-16089,2241,Ace Cars & Minibuses Ltd
Nottinghamshire County Council,1111/1001,Children and Young People,CYP,Transport Related,CCA,27/08/2019,05-16090,2691,Ace Cars & Minibuses Ltd
Nottinghamshire County Council,1111/1001,Children and Young People,CYP,Transport Related,CCA,27/08/2019,05-16091,2151,Ace Cars & Minibuses Ltd
Nottinghamshire County Council,1111/1001,Children and Young People,CYP,Transport Related,CCA,27/08/2019,05-16092,3051,Ace Cars & Minibuses Ltd
Nottinghamshire County Council,1111/1001,Children and Young People,CYP,Transport Related,CDA,08/08/2019,05-13202,1207.76,Taxicover Uk Ltd
Nottinghamshire County Council,1111/1001,Children and Young People,CYP,Transport Related,CDA,08/08/2019,05-13226,1588.5,Arrow Specialised Transport Ltd
Nottinghamshire County Council,1111/1001,Children and Young People,CYP,Transport Related,CDA,08/08/2019,05-13241,249.39,Arrow Specialised Transport Ltd
Nottinghamshire County Council,1111/1001,Children and Young People,CYP,Transport Related,CDA,08/08/2019,05-13259,382.21,Arrow Specialised Transport Ltd
Nottinghamshire County Council,1111/1001,Children and Young People,CYP,Transport Related,CDA,08/08/2019,05-13299,681.75,Bridges Transport Ltd
Nottinghamshire County Council,1111/1001,Children and Young People,CYP,Transport Related,CDA,08/08/2019,05-13339,2706,AOT Coaches Nottingham LLP
Nottinghamshire County Council,1111/1001,Children and Young People,CYP,Transport Related,CDA,08/08/2019,05-13348,2520,Nottingham Minibuses & Coaches
Nottinghamshire County Council,1111/1001,Children and Young People,CYP,Transport Related,CDA,08/08/2019,05-13349,2340,Nottingham Minibuses & Coaches
Nottinghamshire County Council,1111/1001,Children and Young People,CYP,Transport Related,CDA,08/08/2019,05-13350,1449,Nottingham Minibuses & Coaches
Nottinghamshire County Council,1111/1001,Children and Young People,CYP,Transport Related,CDA,08/08/2019,05-13351,1425,Nottingham Minibuses & Coaches
Nottinghamshire County Council,1111/1001,Children and Young People,CYP,Transport Related,CDA,08/08/2019,05-13352,1875,Nottingham Minibuses & Coaches
Nottinghamshire County Council,1111/1001,Children and Young People,CYP,Transport Related,CDA,08/08/2019,05-13354,2121,Nottingham Minibuses & Coaches
Nottinghamshire County Council,1111/1001,Children and Young People,CYP,Transport Related,CDA,08/08/2019,05-13355,1950,Nottingham Minibuses & Coaches
Nottinghamshire County Council,1111/1001,Children and Young People,CYP,Transport Related,CDA,08/08/2019,05-13357,9384,Nottingham Minibuses & Coaches
Nottinghamshire County Council,1111/1001,Children and Young People,CYP,Transport Related,CDA,08/08/2019,05-13379,5136,Paul S Winson Coaches
Nottinghamshire County Council,1111/1001,Children and Young People,CYP,Transport Related,CDA,08/08/2019,05-13380,2520,C W Moxon Ltd
Nottinghamshire County Council,1111/1001,Children and Young People,CYP,Transport Related,CDA,08/08/2019,05-13382,3150,C W Moxon Ltd
Nottinghamshire County Council,1111/1001,Children and Young People,CYP,Transport Related,CDA,08/08/2019,05-13383,8652,C W Moxon Ltd
Body Name,Body,Service Label,Service Code,CIPFA Detailed Expenditure Type,CIPFA Detailed Expenditure CodeDate,,Transaction NumberNet Amount,,Supplier Name
Nottinghamshire County Council,1111/1001,Children and Young People,CYP,Transport Related,CDA,08/08/2019,05-13402,1098.37,Sean's Taxi Services
Nottinghamshire County Council,1111/1001,Children and Young People,CYP,Transport Related,CDA,08/08/2019,05-13410,664.58,Fastlane Cabs
Nottinghamshire County Council,1111/1001,Children and Young People,CYP,Transport Related,CDA,09/08/2019,05-13561,542,Alert Cars Ltd
Nottinghamshire County Council,1111/1001,Children and Young People,CYP,Transport Related,CDA,09/08/2019,05-13568,3360,Johnson Bros Tours Ltd
Nottinghamshire County Council,1111/1001,Children and Young People,CYP,Transport Related,CDA,09/08/2019,05-13569,1722,Johnson Bros Tours Ltd
Nottinghamshire County Council,1111/1001,Children and Young People,CYP,Transport Related,CDA,09/08/2019,05-13571,1425,Johnson Bros Tours Ltd
Nottinghamshire County Council,1111/1001,Children and Young People,CYP,Transport Related,CDA,09/08/2019,05-13671,792,Abacus Cars
Nottinghamshire County Council,1111/1001,Children and Young People,CYP,Transport Related,CDA,09/08/2019,05-13707,11880,Silverdale Tours Nottm Ltd
Nottinghamshire County Council,1111/1001,Children and Young People,CYP,Transport Related,CDA,09/08/2019,05-13784,566.17,Forest Cars
Nottinghamshire County Council,1111/1001,Children and Young People,CYP,Transport Related,CDA,09/08/2019,05-13809,880,Forest Cars
Nottinghamshire County Council,1111/1001,Children and Young People,CYP,Transport Related,CDA,14/08/2019,05-14313,870,200 Cars Ltd
Nottinghamshire County Council,1111/1001,Children and Young People,CYP,Transport Related,CDA,14/08/2019,05-14320,1454.4,Ng11 Cars
Nottinghamshire County Council,1111/1001,Children and Young People,CYP,Transport Related,CDA,14/08/2019,05-14396,4368,Marshalls Of Sutton On Trent Ltd
Nottinghamshire County Council,1111/1001,Children and Young People,CYP,Transport Related,CDA,14/08/2019,05-14469,675,Eastwood Cars (UK) Ltd
Nottinghamshire County Council,1111/1001,Children and Young People,CYP,Transport Related,CDA,14/08/2019,05-14479,208.11,Nunns Taxis Ltd
Nottinghamshire County Council,1111/1001,Children and Young People,CYP,Transport Related,CDA,14/08/2019,05-14490,1414.5,SM Travel Yorkshire Ltd
Nottinghamshire County Council,1111/1001,Children and Young People,CYP,Transport Related,CDA,16/08/2019,05-14578,1196,Southside Cars
Nottinghamshire County Council,1111/1001,Children and Young People,CYP,Transport Related,CDA,16/08/2019,05-14656,2124,Tiger European Uk Ltd
Nottinghamshire County Council,1111/1001,Children and Young People,CYP,Transport Related,CDA,16/08/2019,05-14658,1540,Tiger European Uk Ltd
Nottinghamshire County Council,1111/1001,Children and Young People,CYP,Transport Related,CDA,16/08/2019,05-14667,1386,Tiger European Uk Ltd
Nottinghamshire County Council,1111/1001,Children and Young People,CYP,Transport Related,CDA,16/08/2019,05-14668,1593,Tiger European Uk Ltd
Nottinghamshire County Council,1111/1001,Children and Young People,CYP,Transport Related,CDA,16/08/2019,05-14680,1304.92,P & P Taxis
Nottinghamshire County Council,1111/1001,Children and Young People,CYP,Transport Related,CDA,23/08/2019,05-15867,353.21,Doncaster Metroplitan Borough Counc
Nottinghamshire County Council,1111/1001,Children and Young People,CYP,Transport Related,CDA,23/08/2019,05-16055,402.5,6 Five 2s
Nottinghamshire County Council,1111/1001,Children and Young People,CYP,Transport Related,CDA,27/08/2019,05-16080,144.34,Ace Cars & Minibuses Ltd
Nottinghamshire County Council,1111/1001,Children and Young People,CYP,Transport Related,CDA,27/08/2019,05-16087,97.81,Ace Cars & Minibuses Ltd
Nottinghamshire County Council,1111/1001,Children and Young People,CYP,Transport Related,CEA,02/08/2019,05-10061,3255.25,Reed Employment Plc
Nottinghamshire County Council,1111/1001,Children and Young People,CYP,Transport Related,CEA,13/08/2019,05-14016,1957.03,Reed Employment Plc
Nottinghamshire County Council,1111/1001,Children and Young People,CYP,Transport Related,CEA,16/08/2019,05-14012,2402.99,Reed Employment Plc
Nottinghamshire County Council,1111/1001,Children and Young People,CYP,Transport Related,CEA,23/08/2019,05-14299,3366.89,Reed Employment Plc
Nottinghamshire County Council,1111/1001,Children and Young People,CYP,Transport Related,CEA,30/08/2019,05-16071,4036.83,Reed Employment Plc
Nottinghamshire County Council,1111/1001,Children and Young People,CYP,Supplies & Services,DAA,16/08/2019,05-14494,13028.91,Farnsfield St Michael's C of E Acad
Nottinghamshire County Council,1111/1001,Children and Young People,CYP,Supplies & Services,DAA,29/08/2019,05-14009,6569,Bleasby C of E Primary School (Acad
Nottinghamshire County Council,1111/1001,Children and Young People,CYP,Supplies & Services,DEA,01/08/2019,05-19117,742,[Redacted]
Nottinghamshire County Council,1111/1001,Children and Young People,CYP,Supplies & Services,DEA,01/08/2019,05-19187,520,VE Psychological Solutions Ltd
Nottinghamshire County Council,1111/1001,Children and Young People,CYP,Supplies & Services,DEA,01/08/2019,05-19188,520,VE Psychological Solutions Ltd
Nottinghamshire County Council,1111/1001,Children and Young People,CYP,Supplies & Services,DEA,01/08/2019,05-19189,520,VE Psychological Solutions Ltd
Nottinghamshire County Council,1111/1001,Children and Young People,CYP,Supplies & Services,DEA,01/08/2019,05-19201,2090,[Redacted]
Nottinghamshire County Council,1111/1001,Children and Young People,CYP,Supplies & Services,DEA,02/08/2019,05-19122,2587.65,[Redacted]
Nottinghamshire County Council,1111/1001,Children and Young People,CYP,Supplies & Services,DEA,02/08/2019,05-19124,1000,Tarragon Training
Nottinghamshire County Council,1111/1001,Children and Young People,CYP,Supplies & Services,DFA,05/08/2019,05-12706,579.52,Lantec Services Ltd
Nottinghamshire County Council,1111/1001,Children and Young People,CYP,Supplies & Services,DHA,20/08/2019,05-19222,3871.5,CoramBAAF Adoption & Fostering Agen
Nottinghamshire County Council,1111/1001,Children and Young People,CYP,Supplies & Services,DHA,30/08/2019,05-16596,10000,Bronbury Services Ltd
Nottinghamshire County Council,1111/1001,Children and Young People,CYP,Supplies & Services,DKA,09/08/2019,05-13997,900,Framework Housing Association
Nottinghamshire County Council,1111/1001,Children and Young People,CYP,Third Party Payments,EDA,02/08/2019,05-10025,5769,Ernehale Infants Academy
Nottinghamshire County Council,1111/1001,Children and Young People,CYP,Third Party Payments,EDA,02/08/2019,05-10026,5769,Gunthorpe C OF E Primary Academy
Body Name,Body,Service Label,Service Code,CIPFA Detailed Expenditure Type,CIPFA Detailed Expenditure CodeDate,,Transaction NumberNet Amount,,Supplier Name
Nottinghamshire County Council,1111/1001,Children and Young People,CYP,Third Party Payments,EDA,02/08/2019,05-10027,5769,Oak Tree Lane Primary Academy
Nottinghamshire County Council,1111/1001,Children and Young People,CYP,Third Party Payments,EDA,02/08/2019,05-10028,5769,Burton Joyce Primary School
Nottinghamshire County Council,1111/1001,Children and Young People,CYP,Third Party Payments,EDA,02/08/2019,05-10029,7500,Meden School - A Torch Academy
Nottinghamshire County Council,1111/1001,Children and Young People,CYP,Third Party Payments,EDA,02/08/2019,05-10030,7692,The Flying High Academy
Nottinghamshire County Council,1111/1001,Children and Young People,CYP,Third Party Payments,EDA,02/08/2019,05-10031,9654,Sparken Hill Academy
Nottinghamshire County Council,1111/1001,Children and Young People,CYP,Third Party Payments,EDA,02/08/2019,05-10032,4904,Christ The King Catholic Voluntary
Nottinghamshire County Council,1111/1001,Children and Young People,CYP,Third Party Payments,EDA,02/08/2019,05-10033,5769,Tollerton Primary School
Nottinghamshire County Council,1111/1001,Children and Young People,CYP,Third Party Payments,EDA,02/08/2019,05-10034,5769,Ernehale Infants Academy
Nottinghamshire County Council,1111/1001,Children and Young People,CYP,Third Party Payments,EDA,02/08/2019,05-10064,3701.48,Long Eaton School
Nottinghamshire County Council,1111/1001,Children and Young People,CYP,Third Party Payments,EDA,05/08/2019,05-12697,34573,Quarrydale Academy
Nottinghamshire County Council,1111/1001,Children and Young People,CYP,Third Party Payments,EDA,05/08/2019,05-12699,33936,George Spencer Academy
Nottinghamshire County Council,1111/1001,Children and Young People,CYP,Third Party Payments,EDA,05/08/2019,05-12701,24482,Chetwynd Road Primary Academy
Nottinghamshire County Council,1111/1001,Children and Young People,CYP,Third Party Payments,EDA,16/08/2019,05-10085,33135,The Bramcote School
Nottinghamshire County Council,1111/1001,Children and Young People,CYP,Third Party Payments,EDA,16/08/2019,05-10086,49280,Alderman White School
Nottinghamshire County Council,1111/1001,Children and Young People,CYP,Third Party Payments,EDA,16/08/2019,05-10087,3855,Alderman White School
Nottinghamshire County Council,1111/1001,Children and Young People,CYP,Third Party Payments,EDA,16/08/2019,05-10088,3011,The Bramcote School
Nottinghamshire County Council,1111/1001,Children and Young People,CYP,Third Party Payments,EDA,30/08/2019,05-10082,5490,Retford Oaks Academy
Nottinghamshire County Council,1111/1001,Children and Young People,CYP,Third Party Payments,EDA,30/08/2019,05-10083,66960,Retford Oaks Academy
Nottinghamshire County Council,1111/1001,Children and Young People,CYP,Third Party Payments,EDA,30/08/2019,05-12685,2805,West Bridgford Academy
Nottinghamshire County Council,1111/1001,Children and Young People,CYP,Third Party Payments,EDA,30/08/2019,05-12686,837,Heymann Primary School
Nottinghamshire County Council,1111/1001,Children and Young People,CYP,Third Party Payments,EDA,30/08/2019,05-12687,837,Greythorn Primary Academy
Nottinghamshire County Council,1111/1001,Children and Young People,CYP,Third Party Payments,EDA,30/08/2019,05-12688,11900,Keyworth Primary & Nursery School
Nottinghamshire County Council,1111/1001,Children and Young People,CYP,Third Party Payments,EDA,30/08/2019,05-12689,2083,National Church Of England Academy
Nottinghamshire County Council,1111/1001,Children and Young People,CYP,Third Party Payments,EDA,30/08/2019,05-12690,24833,Heymann Primary School
Nottinghamshire County Council,1111/1001,Children and Young People,CYP,Third Party Payments,EDA,30/08/2019,05-12691,29498,Greythorn Primary Academy
Nottinghamshire County Council,1111/1001,Children and Young People,CYP,Third Party Payments,EDA,30/08/2019,05-12692,13500,Tollerton Primary School
Nottinghamshire County Council,1111/1001,Children and Young People,CYP,Third Party Payments,EDA,30/08/2019,05-12693,2500,Crossdale Primary School
Nottinghamshire County Council,1111/1001,Children and Young People,CYP,Third Party Payments,EDA,30/08/2019,05-12694,18195,Keyworth Primary & Nursery School
Nottinghamshire County Council,1111/1001,Children and Young People,CYP,Third Party Payments,EDA,30/08/2019,05-12695,26372,Selston High Academy
Nottinghamshire County Council,1111/1001,Children and Young People,CYP,Third Party Payments,EDA,30/08/2019,05-12696,36209,VRF Skegby Junior Academy
Nottinghamshire County Council,1111/1001,Children and Young People,CYP,Third Party Payments,EDA,30/08/2019,05-12698,20328,National Church Of England Academy
Nottinghamshire County Council,1111/1001,Children and Young People,CYP,Third Party Payments,EDA,30/08/2019,05-12700,36358,Fairfield Primary Academy
Nottinghamshire County Council,1111/1001,Children and Young People,CYP,Third Party Payments,EDA,30/08/2019,05-12702,6552,St Peters C of E Academy Mansfield
Nottinghamshire County Council,1111/1001,Children and Young People,CYP,Third Party Payments,EDA,30/08/2019,05-12703,4505,Mansfield Primary Academy
Nottinghamshire County Council,1111/1001,Children and Young People,CYP,Third Party Payments,EDA,30/08/2019,05-12704,37674,Brunts Academy
Nottinghamshire County Council,1111/1001,Children and Young People,CYP,Third Party Payments,EFA,01/08/2019,05-19119,3788.75,Magnus Church of England Academy
Nottinghamshire County Council,1111/1001,Children and Young People,CYP,Third Party Payments,EFA,22/08/2019,05-10084,10323,Magnus Church of England Academy
Nottinghamshire County Council,1111/1001,Children and Young People,CYP,Third Party Payments,EFA,22/08/2019,05-16054,130319,Magnus Church of England Academy
Nottinghamshire County Council,1111/1001,Children and Young People,CYP,Third Party Payments,EGA,02/08/2019,05-19193,1525.3,Framework Housing Association
Nottinghamshire County Council,1111/1001,Children and Young People,CYP,Third Party Payments,EGA,02/08/2019,05-19194,1525.3,Framework Housing Association
Nottinghamshire County Council,1111/1001,Children and Young People,CYP,Third Party Payments,EGA,02/08/2019,05-19195,1525.3,Framework Housing Association
Nottinghamshire County Council,1111/1001,Children and Young People,CYP,Third Party Payments,EGA,02/08/2019,05-19196,1525.3,Framework Housing Association
Nottinghamshire County Council,1111/1001,Children and Young People,CYP,Third Party Payments,EGA,02/08/2019,05-19197,1525.3,Framework Housing Association
Nottinghamshire County Council,1111/1001,Children and Young People,CYP,Third Party Payments,EGA,02/08/2019,05-19198,1525.3,Framework Housing Association
Nottinghamshire County Council,1111/1001,Children and Young People,CYP,Third Party Payments,EGA,02/08/2019,05-19199,1525.3,Framework Housing Association
Nottinghamshire County Council,1111/1001,Children and Young People,CYP,Third Party Payments,EGA,02/08/2019,05-19200,1525.3,Framework Housing Association
Body Name,Body,Service Label,Service Code,CIPFA Detailed Expenditure Type,CIPFA Detailed Expenditure CodeDate,,Transaction NumberNet Amount,,Supplier Name
Nottinghamshire County Council,1111/1001,Children and Young People,CYP,Third Party Payments,EGA,02/08/2019,05-19202,5658.8,Anchor Foster Care Services Ltd
Nottinghamshire County Council,1111/1001,Children and Young People,CYP,Third Party Payments,EGA,05/08/2019,05-12910,661.69,Belvoir House Childminding
Nottinghamshire County Council,1111/1001,Children and Young People,CYP,Third Party Payments,EGA,05/08/2019,05-12911,9832.87,Dragonflies Day Nursery ltd
Nottinghamshire County Council,1111/1001,Children and Young People,CYP,Third Party Payments,EGA,05/08/2019,05-12912,677.62,Fingerprints Childminding
Nottinghamshire County Council,1111/1001,Children and Young People,CYP,Third Party Payments,EGA,05/08/2019,05-12913,699.31,Little Lula's Childminding
Nottinghamshire County Council,1111/1001,Children and Young People,CYP,Third Party Payments,EGA,05/08/2019,05-12914,11092.99,Quinton Day Nurseries T/A Honey Bee
Nottinghamshire County Council,1111/1001,Children and Young People,CYP,Third Party Payments,EGA,05/08/2019,05-12915,2828.7,Sconce Hills Pre-School Playgroup
Nottinghamshire County Council,1111/1001,Children and Young People,CYP,Third Party Payments,EGA,05/08/2019,05-12916,9190.48,Treetops Nursery (Toton)
Nottinghamshire County Council,1111/1001,Children and Young People,CYP,Third Party Payments,EGA,06/08/2019,05-12918,15262.2,Wellow House School
Nottinghamshire County Council,1111/1001,Children and Young People,CYP,Third Party Payments,EGA,06/08/2019,05-19203,861741,Nottinghamshire Healthcare Nhs F Tr
Nottinghamshire County Council,1111/1001,Children and Young People,CYP,Third Party Payments,EGA,08/08/2019,05-13437,1019.85,Imogen Barnett (Immy's House)
Nottinghamshire County Council,1111/1001,Children and Young People,CYP,Third Party Payments,EGA,08/08/2019,05-13438,1019.85,Appletree House Childminding
Nottinghamshire County Council,1111/1001,Children and Young People,CYP,Third Party Payments,EGA,08/08/2019,05-13440,813.15,Jim Jams Childminding
Nottinghamshire County Council,1111/1001,Children and Young People,CYP,Third Party Payments,EGA,08/08/2019,05-13441,3096.89,Serendipity's Day Nursery
Nottinghamshire County Council,1111/1001,Children and Young People,CYP,Third Party Payments,EGA,08/08/2019,05-13442,813.15,Serendipity's Day Nursery
Nottinghamshire County Council,1111/1001,Children and Young People,CYP,Third Party Payments,EGA,08/08/2019,05-13443,4851.8,Serendipity's Day Nursery
Nottinghamshire County Council,1111/1001,Children and Young People,CYP,Third Party Payments,EGA,08/08/2019,05-13444,813.15,Fernwood Day Nursery Ltd
Nottinghamshire County Council,1111/1001,Children and Young People,CYP,Third Party Payments,EGA,08/08/2019,05-13445,643.5,Noahs Ark Playgroup
Nottinghamshire County Council,1111/1001,Children and Young People,CYP,Third Party Payments,EGA,08/08/2019,05-13446,5583.63,Scottswood Pdn Ltd
Nottinghamshire County Council,1111/1001,Children and Young People,CYP,Third Party Payments,EGA,08/08/2019,05-13447,1170,Secret Garden Childcare Ltd
Nottinghamshire County Council,1111/1001,Children and Young People,CYP,Third Party Payments,EGA,08/08/2019,05-13448,625.5,Gognas Day Nursery Ltd
Nottinghamshire County Council,1111/1001,Children and Young People,CYP,Third Party Payments,EGA,08/08/2019,05-13449,1626.3,Luan's Little People Ltd
Nottinghamshire County Council,1111/1001,Children and Young People,CYP,Third Party Payments,EGA,08/08/2019,05-13450,615,Country Kids Day Nursery
Nottinghamshire County Council,1111/1001,Children and Young People,CYP,Third Party Payments,EGA,08/08/2019,05-13451,615,Netherfield Pre School Ltd
Nottinghamshire County Council,1111/1001,Children and Young People,CYP,Third Party Payments,EGA,09/08/2019,05-13457,1019.85,Pre-School Learning Alliance (HO)
Nottinghamshire County Council,1111/1001,Children and Young People,CYP,Third Party Payments,EGA,12/08/2019,05-13439,2251.8,[Redacted]
Nottinghamshire County Council,1111/1001,Children and Young People,CYP,Third Party Payments,EGA,29/08/2019,05-16240,10158.75,Sunnydale Nursery Ltd
Nottinghamshire County Council,1111/1001,Children and Young People,CYP,Third Party Payments,EGA,29/08/2019,05-16241,921.69,[Redacted]
Nottinghamshire County Council,1111/1001,Children and Young People,CYP,Third Party Payments,EGA,29/08/2019,05-16242,525.42,[Redacted]
Nottinghamshire County Council,1111/1001,Children and Young People,CYP,Third Party Payments,EGA,29/08/2019,05-16243,762.45,[Redacted]
Nottinghamshire County Council,1111/1001,Children and Young People,CYP,Third Party Payments,EGA,29/08/2019,05-16244,1117.62,[Redacted]
Nottinghamshire County Council,1111/1001,Children and Young People,CYP,Third Party Payments,EGA,29/08/2019,05-16245,7985.88,All Saints C Of E Primary School
Nottinghamshire County Council,1111/1001,Children and Young People,CYP,Third Party Payments,EGA,29/08/2019,05-16246,9720.27,Wolds Childcare Ltd
Nottinghamshire County Council,1111/1001,Children and Young People,CYP,Third Party Payments,EGA,29/08/2019,05-16247,4276.19,Netherfield Pre School Ltd
Nottinghamshire County Council,1111/1001,Children and Young People,CYP,Third Party Payments,EGA,29/08/2019,05-16248,2268.63,Jubilee House Christian School
Nottinghamshire County Council,1111/1001,Children and Young People,CYP,Third Party Payments,EGA,29/08/2019,05-16249,525.42,Rachel & Philip's Home From Home Ch
Nottinghamshire County Council,1111/1001,Children and Young People,CYP,Third Party Payments,EGA,29/08/2019,05-16250,11406.46,Longdale Nursery School
Nottinghamshire County Council,1111/1001,Children and Young People,CYP,Third Party Payments,EGA,29/08/2019,05-16251,6226.41,Wollaton Village Day Nurseries
Nottinghamshire County Council,1111/1001,Children and Young People,CYP,Third Party Payments,EGA,29/08/2019,05-16252,4477.16,Misson Pre-School
Nottinghamshire County Council,1111/1001,Children and Young People,CYP,Third Party Payments,EGA,29/08/2019,05-16253,823.16,Cheeky Monkeys Childminding
Nottinghamshire County Council,1111/1001,Children and Young People,CYP,Third Party Payments,EGA,29/08/2019,05-16254,3515.4,Toddlers University (Bee)
Nottinghamshire County Council,1111/1001,Children and Young People,CYP,Third Party Payments,EGA,29/08/2019,05-16255,1313.55,Jammie Dodgers Childminding Group
Nottinghamshire County Council,1111/1001,Children and Young People,CYP,Third Party Payments,EGA,29/08/2019,05-16256,525.42,[Redacted]
Nottinghamshire County Council,1111/1001,Children and Young People,CYP,Third Party Payments,EGA,29/08/2019,05-16257,20957.34,Papermoon Day Nursery
Nottinghamshire County Council,1111/1001,Children and Young People,CYP,Third Party Payments,EGA,29/08/2019,05-16258,20411.35,Children 1st @ Breedon House (Plumt
Nottinghamshire County Council,1111/1001,Children and Young People,CYP,Third Party Payments,EGA,29/08/2019,05-16259,525.42,[Redacted]
Body Name,Body,Service Label,Service Code,CIPFA Detailed Expenditure Type,CIPFA Detailed Expenditure CodeDate,,Transaction NumberNet Amount,,Supplier Name
Nottinghamshire County Council,1111/1001,Children and Young People,CYP,Third Party Payments,EGA,29/08/2019,05-16260,5650.47,Willow Brook Pre-School
Nottinghamshire County Council,1111/1001,Children and Young People,CYP,Third Party Payments,EGA,29/08/2019,05-16261,1244.79,Nottinghamshire Healthcare Nhs F Tr
Nottinghamshire County Council,1111/1001,Children and Young People,CYP,Third Party Payments,EGA,29/08/2019,05-16262,20388.5,Daisies Day Nursery
Nottinghamshire County Council,1111/1001,Children and Young People,CYP,Third Party Payments,EGA,29/08/2019,05-16263,1050.84,[Redacted]
Nottinghamshire County Council,1111/1001,Children and Young People,CYP,Third Party Payments,EGA,29/08/2019,05-16264,12255.26,[Redacted]
Nottinghamshire County Council,1111/1001,Children and Young People,CYP,Third Party Payments,EGA,29/08/2019,05-16265,6427.9,Wellin Lane Playgroup
Nottinghamshire County Council,1111/1001,Children and Young People,CYP,Third Party Payments,EGA,29/08/2019,05-16266,4115.29,Little Kites Playgroup
Nottinghamshire County Council,1111/1001,Children and Young People,CYP,Third Party Payments,EGA,29/08/2019,05-16267,8578.08,Kidzgrove
Nottinghamshire County Council,1111/1001,Children and Young People,CYP,Third Party Payments,EGA,29/08/2019,05-16268,20666.52,Grosvenor House Day Nursery
Nottinghamshire County Council,1111/1001,Children and Young People,CYP,Third Party Payments,EGA,29/08/2019,05-16269,2306.43,Sherwood East Childrens Centre (RNN
Nottinghamshire County Council,1111/1001,Children and Young People,CYP,Third Party Payments,EGA,29/08/2019,05-16270,542.94,[Redacted]
Nottinghamshire County Council,1111/1001,Children and Young People,CYP,Third Party Payments,EGA,29/08/2019,05-16271,47669.74,Pre-School Learning Alliance (HO)
Nottinghamshire County Council,1111/1001,Children and Young People,CYP,Third Party Payments,EGA,29/08/2019,05-16272,6605.55,Appleton Childcare Ltd
Nottinghamshire County Council,1111/1001,Children and Young People,CYP,Third Party Payments,EGA,29/08/2019,05-16273,821.52,[Redacted]
Nottinghamshire County Council,1111/1001,Children and Young People,CYP,Third Party Payments,EGA,29/08/2019,05-16274,1127.59,Lady Bay Pre School Playgroup
Nottinghamshire County Council,1111/1001,Children and Young People,CYP,Third Party Payments,EGA,29/08/2019,05-16275,15379.23,All Aboard Nursery Ltd
Nottinghamshire County Council,1111/1001,Children and Young People,CYP,Third Party Payments,EGA,29/08/2019,05-16276,16735.32,Carlton & Gedling Day Nursery
Nottinghamshire County Council,1111/1001,Children and Young People,CYP,Third Party Payments,EGA,29/08/2019,05-16277,10454.85,Arnold House Day Nursery
Nottinghamshire County Council,1111/1001,Children and Young People,CYP,Third Party Payments,EGA,29/08/2019,05-16278,9102.37,Alphabet House Day Nurseries Ltd-Lo
Nottinghamshire County Council,1111/1001,Children and Young People,CYP,Third Party Payments,EGA,29/08/2019,05-16279,6613.74,Beeston Nursery
Nottinghamshire County Council,1111/1001,Children and Young People,CYP,Third Party Payments,EGA,29/08/2019,05-16280,2802.15,Gotham Pre-School Playgroup
Nottinghamshire County Council,1111/1001,Children and Young People,CYP,Third Party Payments,EGA,29/08/2019,05-16281,6831.48,Killisick Pre-School
Nottinghamshire County Council,1111/1001,Children and Young People,CYP,Third Party Payments,EGA,29/08/2019,05-16282,7427.93,Hucknall Pre-School Playgroup
Nottinghamshire County Council,1111/1001,Children and Young People,CYP,Third Party Payments,EGA,29/08/2019,05-16283,3548.79,Jesters Childcare Ltd
Nottinghamshire County Council,1111/1001,Children and Young People,CYP,Third Party Payments,EGA,29/08/2019,05-16284,2889.81,Allsorts Preschool Underwood
Nottinghamshire County Council,1111/1001,Children and Young People,CYP,Third Party Payments,EGA,29/08/2019,05-16285,3467.78,Collingham & District Pre-School
Nottinghamshire County Council,1111/1001,Children and Young People,CYP,Third Party Payments,EGA,29/08/2019,05-16286,13058.24,Westdale Pre-School
Nottinghamshire County Council,1111/1001,Children and Young People,CYP,Third Party Payments,EGA,29/08/2019,05-16287,18938.18,Discovery Day Nursery
Nottinghamshire County Council,1111/1001,Children and Young People,CYP,Third Party Payments,EGA,29/08/2019,05-16288,5671.26,Pea Pod Day Nursery Ltd
Nottinghamshire County Council,1111/1001,Children and Young People,CYP,Third Party Payments,EGA,29/08/2019,05-16289,20157.73,Safe Haven Day Nursery
Nottinghamshire County Council,1111/1001,Children and Young People,CYP,Third Party Payments,EGA,29/08/2019,05-16290,26757.61,Shaping Futures Day Nursery
Nottinghamshire County Council,1111/1001,Children and Young People,CYP,Third Party Payments,EGA,29/08/2019,05-16291,1125.28,Ravenshead Out Of School Club
Nottinghamshire County Council,1111/1001,Children and Young People,CYP,Third Party Payments,EGA,29/08/2019,05-16292,13732.11,Applegarth Day Nurseries Ltd
Nottinghamshire County Council,1111/1001,Children and Young People,CYP,Third Party Payments,EGA,29/08/2019,05-16293,2968.31,Learning Ladder Childcare Ltd
Nottinghamshire County Council,1111/1001,Children and Young People,CYP,Third Party Payments,EGA,29/08/2019,05-16294,921.69,Thrumpton Kids Clubs
Nottinghamshire County Council,1111/1001,Children and Young People,CYP,Third Party Payments,EGA,29/08/2019,05-16295,5565.99,Radcliffe On Trent Pre School Playg
Nottinghamshire County Council,1111/1001,Children and Young People,CYP,Third Party Payments,EGA,29/08/2019,05-16296,7611.43,Staunton Montessori Nursery School
Nottinghamshire County Council,1111/1001,Children and Young People,CYP,Third Party Payments,EGA,29/08/2019,05-16297,20313.03,Fernwood Day Nursery Ltd
Nottinghamshire County Council,1111/1001,Children and Young People,CYP,Third Party Payments,EGA,29/08/2019,05-16298,731.21,[Redacted]
Nottinghamshire County Council,1111/1001,Children and Young People,CYP,Third Party Payments,EGA,29/08/2019,05-16299,658.98,[Redacted]
Nottinghamshire County Council,1111/1001,Children and Young People,CYP,Third Party Payments,EGA,29/08/2019,05-16300,6393.89,Honey Pot Day Private Day Nursery L
Nottinghamshire County Council,1111/1001,Children and Young People,CYP,Third Party Payments,EGA,29/08/2019,05-16301,15654.24,Busy Bees (Daybrook)
Nottinghamshire County Council,1111/1001,Children and Young People,CYP,Third Party Payments,EGA,29/08/2019,05-16302,11081.83,Little Nippers Pre-School
Nottinghamshire County Council,1111/1001,Children and Young People,CYP,Third Party Payments,EGA,29/08/2019,05-16303,6158.29,North Muskham Playgroup
Nottinghamshire County Council,1111/1001,Children and Young People,CYP,Third Party Payments,EGA,29/08/2019,05-16304,788.13,Colston Bassett Preparatory School
Nottinghamshire County Council,1111/1001,Children and Young People,CYP,Third Party Payments,EGA,29/08/2019,05-16305,2994.39,Hermitage Pre-School
Body Name,Body,Service Label,Service Code,CIPFA Detailed Expenditure Type,CIPFA Detailed Expenditure CodeDate,,Transaction NumberNet Amount,,Supplier Name
Nottinghamshire County Council,1111/1001,Children and Young People,CYP,Third Party Payments,EGA,29/08/2019,05-16306,6397.58,Highfields School & Nursery
Nottinghamshire County Council,1111/1001,Children and Young People,CYP,Third Party Payments,EGA,29/08/2019,05-16307,4828.84,Horsendale Playgroup
Nottinghamshire County Council,1111/1001,Children and Young People,CYP,Third Party Payments,EGA,29/08/2019,05-16308,12404.95,Busy Bees Nursery
Nottinghamshire County Council,1111/1001,Children and Young People,CYP,Third Party Payments,EGA,29/08/2019,05-16309,7328.03,St Mary's Pre-School
Nottinghamshire County Council,1111/1001,Children and Young People,CYP,Third Party Payments,EGA,29/08/2019,05-16310,9940.6,Homestead Day Nursery Ltd
Nottinghamshire County Council,1111/1001,Children and Young People,CYP,Third Party Payments,EGA,29/08/2019,05-16311,3382.98,Kimberley Pre-School Playgroup
Nottinghamshire County Council,1111/1001,Children and Young People,CYP,Third Party Payments,EGA,29/08/2019,05-16312,3417.7,Leahurst Road Pre-School
Nottinghamshire County Council,1111/1001,Children and Young People,CYP,Third Party Payments,EGA,29/08/2019,05-16313,12345.23,Leen Mills Pre School Playgroup
Nottinghamshire County Council,1111/1001,Children and Young People,CYP,Third Party Payments,EGA,29/08/2019,05-16314,10722.45,Leos Childrens Nurseries Ltd
Nottinghamshire County Council,1111/1001,Children and Young People,CYP,Third Party Payments,EGA,29/08/2019,05-16315,35081.73,Children 1st @ Breedon House (Toton
Nottinghamshire County Council,1111/1001,Children and Young People,CYP,Third Party Payments,EGA,29/08/2019,05-16316,11049.99,Westbourne House Nursery School
Nottinghamshire County Council,1111/1001,Children and Young People,CYP,Third Party Payments,EGA,29/08/2019,05-16317,5061.55,Lowdham & Epperstone Pre-School
Nottinghamshire County Council,1111/1001,Children and Young People,CYP,Third Party Payments,EGA,29/08/2019,05-16318,3520.32,Saville House School
Nottinghamshire County Council,1111/1001,Children and Young People,CYP,Third Party Payments,EGA,29/08/2019,05-16319,5759.46,Young Rascals Day Nursery
Nottinghamshire County Council,1111/1001,Children and Young People,CYP,Third Party Payments,EGA,29/08/2019,05-16320,9538.58,Millfield Nursery School
Nottinghamshire County Council,1111/1001,Children and Young People,CYP,Third Party Payments,EGA,29/08/2019,05-16321,6514.2,Mulberry Bush Day Nursery
Nottinghamshire County Council,1111/1001,Children and Young People,CYP,Third Party Payments,EGA,29/08/2019,05-16322,7502.11,Alphabet House Day Nursery Worksop
Nottinghamshire County Council,1111/1001,Children and Young People,CYP,Third Party Payments,EGA,29/08/2019,05-16323,3949.47,Noahs Ark Playgroup
Nottinghamshire County Council,1111/1001,Children and Young People,CYP,Third Party Payments,EGA,29/08/2019,05-16324,3935.74,North Leverton Pre-School Playgroup
Nottinghamshire County Council,1111/1001,Children and Young People,CYP,Third Party Payments,EGA,29/08/2019,05-16325,12894.84,Tiny World Mansfield
Nottinghamshire County Council,1111/1001,Children and Young People,CYP,Third Party Payments,EGA,29/08/2019,05-16326,4503.87,Old Cooperative Day Nursery
Nottinghamshire County Council,1111/1001,Children and Young People,CYP,Third Party Payments,EGA,29/08/2019,05-16327,21420.76,The Orchard Day Nursery
Nottinghamshire County Council,1111/1001,Children and Young People,CYP,Third Party Payments,EGA,29/08/2019,05-16328,2334.83,Puddleducks Pre-School
Nottinghamshire County Council,1111/1001,Children and Young People,CYP,Third Party Payments,EGA,29/08/2019,05-16329,8081.64,Smarties Private Day Nursery
Nottinghamshire County Council,1111/1001,Children and Young People,CYP,Third Party Payments,EGA,29/08/2019,05-16330,6614.44,Cherubs Childrens Centre Pleasley
Nottinghamshire County Council,1111/1001,Children and Young People,CYP,Third Party Payments,EGA,29/08/2019,05-16331,11342.52,Beacon Hill Day Nursery
Nottinghamshire County Council,1111/1001,Children and Young People,CYP,Third Party Payments,EGA,29/08/2019,05-16332,2627.1,Orchard School Nursery
Nottinghamshire County Council,1111/1001,Children and Young People,CYP,Third Party Payments,EGA,29/08/2019,05-16333,11464.53,Papermoon Day Nursery
Nottinghamshire County Council,1111/1001,Children and Young People,CYP,Third Party Payments,EGA,29/08/2019,05-16334,3976.93,Plumtree School
Nottinghamshire County Council,1111/1001,Children and Young People,CYP,Third Party Payments,EGA,29/08/2019,05-16335,2412.78,Prebend Pre-School Playgroup
Nottinghamshire County Council,1111/1001,Children and Young People,CYP,Third Party Payments,EGA,29/08/2019,05-16336,9292.69,Railway Children Playgroup
Nottinghamshire County Council,1111/1001,Children and Young People,CYP,Third Party Payments,EGA,29/08/2019,05-16337,5267.69,Worksop College
Nottinghamshire County Council,1111/1001,Children and Young People,CYP,Third Party Payments,EGA,29/08/2019,05-16338,24724.73,Cherubs Day Nursery
Nottinghamshire County Council,1111/1001,Children and Young People,CYP,Third Party Payments,EGA,29/08/2019,05-16339,10292.31,Claremont Early Years Ltd
Nottinghamshire County Council,1111/1001,Children and Young People,CYP,Third Party Payments,EGA,29/08/2019,05-16340,12540.78,Granby House Nursery
Nottinghamshire County Council,1111/1001,Children and Young People,CYP,Third Party Payments,EGA,29/08/2019,05-16341,5475.12,Ravenshead Pre-School Playgroup
Nottinghamshire County Council,1111/1001,Children and Young People,CYP,Third Party Payments,EGA,29/08/2019,05-16342,2075.85,Salterford House School
Nottinghamshire County Council,1111/1001,Children and Young People,CYP,Third Party Payments,EGA,29/08/2019,05-16343,9748.75,Scotts Wood Private Day Nursery
Nottinghamshire County Council,1111/1001,Children and Young People,CYP,Third Party Payments,EGA,29/08/2019,05-16344,6217.47,Treetops Nursery (Toton)
Nottinghamshire County Council,1111/1001,Children and Young People,CYP,Third Party Payments,EGA,29/08/2019,05-16345,9524.34,Radcliffe On Trent Day Nursery
Nottinghamshire County Council,1111/1001,Children and Young People,CYP,Third Party Payments,EGA,29/08/2019,05-16346,9829.77,Tiny Talkers Day Nursery
Nottinghamshire County Council,1111/1001,Children and Young People,CYP,Third Party Payments,EGA,29/08/2019,05-16347,2302.02,Carousel Under 5'S Playgroup
Nottinghamshire County Council,1111/1001,Children and Young People,CYP,Third Party Payments,EGA,29/08/2019,05-16348,22204.6,Oceans Day Nursery
Nottinghamshire County Council,1111/1001,Children and Young People,CYP,Third Party Payments,EGA,29/08/2019,05-16349,11955.51,The Secret Garden Private Day Nurse
Nottinghamshire County Council,1111/1001,Children and Young People,CYP,Third Party Payments,EGA,29/08/2019,05-16350,6876.45,St Johns Playgroup
Nottinghamshire County Council,1111/1001,Children and Young People,CYP,Third Party Payments,EGA,29/08/2019,05-16351,4662.57,Walesby School Playgroup
Body Name,Body,Service Label,Service Code,CIPFA Detailed Expenditure Type,CIPFA Detailed Expenditure CodeDate,,Transaction NumberNet Amount,,Supplier Name
Nottinghamshire County Council,1111/1001,Children and Young People,CYP,Third Party Payments,EGA,29/08/2019,05-16352,11334.33,Cherubs Childcare Centre (Mansfield
Nottinghamshire County Council,1111/1001,Children and Young People,CYP,Third Party Payments,EGA,29/08/2019,05-16353,2416.92,Sutton Bonington Playgroup
Nottinghamshire County Council,1111/1001,Children and Young People,CYP,Third Party Payments,EGA,29/08/2019,05-16354,7794.36,Sutton Centre Under 5'S Playgroup
Nottinghamshire County Council,1111/1001,Children and Young People,CYP,Third Party Payments,EGA,29/08/2019,05-16355,3847.18,Portland Place Pre-School
Nottinghamshire County Council,1111/1001,Children and Young People,CYP,Third Party Payments,EGA,29/08/2019,05-16356,12324.69,The Learning Tree Nursery
Nottinghamshire County Council,1111/1001,Children and Young People,CYP,Third Party Payments,EGA,29/08/2019,05-16357,11076.03,Little Bears Day Nursery
Nottinghamshire County Council,1111/1001,Children and Young People,CYP,Third Party Payments,EGA,29/08/2019,05-16358,7093.17,Tollerton Playgroup
Nottinghamshire County Council,1111/1001,Children and Young People,CYP,Third Party Payments,EGA,29/08/2019,05-16359,5712.58,Pre-School 345
Nottinghamshire County Council,1111/1001,Children and Young People,CYP,Third Party Payments,EGA,29/08/2019,05-16360,4741.38,Lambley Day Nursery Ltd
Nottinghamshire County Council,1111/1001,Children and Young People,CYP,Third Party Payments,EGA,29/08/2019,05-16361,7331.31,Alphabet House Day Nurseries Ltd-Be
Nottinghamshire County Council,1111/1001,Children and Young People,CYP,Third Party Payments,EGA,29/08/2019,05-16362,3226.77,Trowell Pre School
Nottinghamshire County Council,1111/1001,Children and Young People,CYP,Third Party Payments,EGA,29/08/2019,05-16363,7943.55,Carlton Preschool Playgroup
Nottinghamshire County Council,1111/1001,Children and Young People,CYP,Third Party Payments,EGA,29/08/2019,05-16364,14029.1,Village Day Nursery
Nottinghamshire County Council,1111/1001,Children and Young People,CYP,Third Party Payments,EGA,29/08/2019,05-16365,4098.27,Watnall Pre-School Playgroup
Nottinghamshire County Council,1111/1001,Children and Young People,CYP,Third Party Payments,EGA,29/08/2019,05-16366,14807.76,Weaverthorpe Pre-School Playgroup
Nottinghamshire County Council,1111/1001,Children and Young People,CYP,Third Party Payments,EGA,29/08/2019,05-16367,20404.44,The Rocking Horse Child Care Centre
Nottinghamshire County Council,1111/1001,Children and Young People,CYP,Third Party Payments,EGA,29/08/2019,05-16368,9691.7,Attenborough Church Pre-School
Nottinghamshire County Council,1111/1001,Children and Young People,CYP,Third Party Payments,EGA,29/08/2019,05-16369,5889.12,Awsworth Schoolhouse Day Nursery
Nottinghamshire County Council,1111/1001,Children and Young People,CYP,Third Party Payments,EGA,29/08/2019,05-16370,14100.29,Balderton Pre-School
Nottinghamshire County Council,1111/1001,Children and Young People,CYP,Third Party Payments,EGA,29/08/2019,05-16371,9107.91,Balderton Village Day Nursery
Nottinghamshire County Council,1111/1001,Children and Young People,CYP,Third Party Payments,EGA,29/08/2019,05-16372,5551.94,Bingham Day Nursery & Pre School
Nottinghamshire County Council,1111/1001,Children and Young People,CYP,Third Party Payments,EGA,29/08/2019,05-16373,14921.93,West Bridgford Out Of School Care L
Nottinghamshire County Council,1111/1001,Children and Young People,CYP,Third Party Payments,EGA,29/08/2019,05-16374,3856.99,West Street Pre-School
Nottinghamshire County Council,1111/1001,Children and Young People,CYP,Third Party Payments,EGA,29/08/2019,05-16375,12903.66,Alphabet House Day Nurseries Ltd-Wh
Nottinghamshire County Council,1111/1001,Children and Young People,CYP,Third Party Payments,EGA,29/08/2019,05-16376,13204.05,Whitehouse Day Nursery
Nottinghamshire County Council,1111/1001,Children and Young People,CYP,Third Party Payments,EGA,29/08/2019,05-16377,2745.32,Willoughby On The Wolds Playgroup
Nottinghamshire County Council,1111/1001,Children and Young People,CYP,Third Party Payments,EGA,29/08/2019,05-16378,4618.04,Willow Pre-School Playgroup
Nottinghamshire County Council,1111/1001,Children and Young People,CYP,Third Party Payments,EGA,29/08/2019,05-16379,4518.61,Windmill Kindergarten Playgroup
Nottinghamshire County Council,1111/1001,Children and Young People,CYP,Third Party Payments,EGA,29/08/2019,05-16380,2535.75,Inham Park Pre School Playgroup
Nottinghamshire County Council,1111/1001,Children and Young People,CYP,Third Party Payments,EGA,29/08/2019,05-16381,30292.29,Papermoon Day Nursery Sutton In Ash
Nottinghamshire County Council,1111/1001,Children and Young People,CYP,Third Party Payments,EGA,29/08/2019,05-16382,9851.91,Buttercross Pre School
Nottinghamshire County Council,1111/1001,Children and Young People,CYP,Third Party Payments,EGA,29/08/2019,05-16383,5387.76,Bramcote Pre-School Playgroup
Nottinghamshire County Council,1111/1001,Children and Young People,CYP,Third Party Payments,EGA,29/08/2019,05-16384,10452.58,Bright Sparks Day Nursery
Nottinghamshire County Council,1111/1001,Children and Young People,CYP,Third Party Payments,EGA,29/08/2019,05-16385,12733.82,Cared 4 Ltd T/A Brookhill House Day
Nottinghamshire County Council,1111/1001,Children and Young People,CYP,Third Party Payments,EGA,29/08/2019,05-16386,15714.47,Brooklyn Day Nursery
Nottinghamshire County Council,1111/1001,Children and Young People,CYP,Third Party Payments,EGA,29/08/2019,05-16387,7715.85,Woodborough Village Pre School
Nottinghamshire County Council,1111/1001,Children and Young People,CYP,Third Party Payments,EGA,29/08/2019,05-16388,21813.39,Woodthorpe Day Nursery Ltd
Nottinghamshire County Council,1111/1001,Children and Young People,CYP,Third Party Payments,EGA,29/08/2019,05-16389,11268.11,Hollies Day Nurseries Ltd
Nottinghamshire County Council,1111/1001,Children and Young People,CYP,Third Party Payments,EGA,29/08/2019,05-16390,1821.46,Hickling Pre-School
Nottinghamshire County Council,1111/1001,Children and Young People,CYP,Third Party Payments,EGA,29/08/2019,05-16391,51580.62,Serendipity's Day Nursery
Nottinghamshire County Council,1111/1001,Children and Young People,CYP,Third Party Payments,EGA,29/08/2019,05-16392,14973.35,Coteswood House School
Nottinghamshire County Council,1111/1001,Children and Young People,CYP,Third Party Payments,EGA,29/08/2019,05-16393,18305.38,Bizzy Kidz
Nottinghamshire County Council,1111/1001,Children and Young People,CYP,Third Party Payments,EGA,29/08/2019,05-16394,13926.15,Cherubs Childrens Centre Wynndale
Nottinghamshire County Council,1111/1001,Children and Young People,CYP,Third Party Payments,EGA,29/08/2019,05-16395,6792.16,Wishing Well Day Nursery
Nottinghamshire County Council,1111/1001,Children and Young People,CYP,Third Party Payments,EGA,29/08/2019,05-16396,18893.98,Little Oaks Nursery
Nottinghamshire County Council,1111/1001,Children and Young People,CYP,Third Party Payments,EGA,29/08/2019,05-16397,13870.08,The Learning Tree Day Nursery 2
Body Name,Body,Service Label,Service Code,CIPFA Detailed Expenditure Type,CIPFA Detailed Expenditure CodeDate,,Transaction NumberNet Amount,,Supplier Name
Nottinghamshire County Council,1111/1001,Children and Young People,CYP,Third Party Payments,EGA,29/08/2019,05-16398,17668.35,Ruddington Nursery & Pre-School
Nottinghamshire County Council,1111/1001,Children and Young People,CYP,Third Party Payments,EGA,29/08/2019,05-16399,7216.9,Papplewick Pre-School Playgroup
Nottinghamshire County Council,1111/1001,Children and Young People,CYP,Third Party Payments,EGA,29/08/2019,05-16400,4091.73,Little Friends Day Nursery
Nottinghamshire County Council,1111/1001,Children and Young People,CYP,Third Party Payments,EGA,29/08/2019,05-16401,14549.85,Stapleford Day Nursery
Nottinghamshire County Council,1111/1001,Children and Young People,CYP,Third Party Payments,EGA,29/08/2019,05-16402,13328.91,Rocking Horse Nursery Butlers Hill
Nottinghamshire County Council,1111/1001,Children and Young People,CYP,Third Party Payments,EGA,29/08/2019,05-16403,7532.89,Treetops Nurseries (Workop)
Nottinghamshire County Council,1111/1001,Children and Young People,CYP,Third Party Payments,EGA,29/08/2019,05-16404,3380.2,Chetwynd Little Troopers Nursery &
Nottinghamshire County Council,1111/1001,Children and Young People,CYP,Third Party Payments,EGA,29/08/2019,05-16405,5052.72,Christchurch Hall Pre-School Playgr
Nottinghamshire County Council,1111/1001,Children and Young People,CYP,Third Party Payments,EGA,29/08/2019,05-16406,8557.77,Carnarvon Pre-School
Nottinghamshire County Council,1111/1001,Children and Young People,CYP,Third Party Payments,EGA,29/08/2019,05-16407,2365.28,Costock Pre School
Nottinghamshire County Council,1111/1001,Children and Young People,CYP,Third Party Payments,EGA,29/08/2019,05-16408,8874.18,Rainbow Day Nursery
Nottinghamshire County Council,1111/1001,Children and Young People,CYP,Third Party Payments,EGA,29/08/2019,05-16409,13152.51,Papermoon Day Nursery
Nottinghamshire County Council,1111/1001,Children and Young People,CYP,Third Party Payments,EGA,29/08/2019,05-16410,2526.9,Haywood Road Pre-School
Nottinghamshire County Council,1111/1001,Children and Young People,CYP,Third Party Payments,EGA,29/08/2019,05-16411,1225.98,Southfields Pre-School
Nottinghamshire County Council,1111/1001,Children and Young People,CYP,Third Party Payments,EGA,29/08/2019,05-16412,6638.61,Ashfield Plaza Day Nursery
Nottinghamshire County Council,1111/1001,Children and Young People,CYP,Third Party Payments,EGA,29/08/2019,05-16413,8173.98,Cranmer Pre-School
Nottinghamshire County Council,1111/1001,Children and Young People,CYP,Third Party Payments,EGA,29/08/2019,05-16414,13354.42,Daisies Day Nursery
Nottinghamshire County Council,1111/1001,Children and Young People,CYP,Third Party Payments,EGA,29/08/2019,05-16415,15113.09,East Leake Day Nursery & Pre-School
Nottinghamshire County Council,1111/1001,Children and Young People,CYP,Third Party Payments,EGA,29/08/2019,05-16416,16105.32,Wollaton Village Day Nurseries Ltd
Nottinghamshire County Council,1111/1001,Children and Young People,CYP,Third Party Payments,EGA,29/08/2019,05-16417,5093.23,Pippins Pre-School
Nottinghamshire County Council,1111/1001,Children and Young People,CYP,Third Party Payments,EGA,29/08/2019,05-16418,11638.62,Scottswood Pdn Ltd
Nottinghamshire County Council,1111/1001,Children and Young People,CYP,Third Party Payments,EGA,29/08/2019,05-16419,12594.33,Kingfisher Day Nursery
Nottinghamshire County Council,1111/1001,Children and Young People,CYP,Third Party Payments,EGA,29/08/2019,05-16420,7030.8,Pump Farm Day Nursery
Nottinghamshire County Council,1111/1001,Children and Young People,CYP,Third Party Payments,EGA,29/08/2019,05-16421,7130.97,St Peter's Early Years
Nottinghamshire County Council,1111/1001,Children and Young People,CYP,Third Party Payments,EGA,29/08/2019,05-16422,11019.96,Edwalton Day Nursery
Nottinghamshire County Council,1111/1001,Children and Young People,CYP,Third Party Payments,EGA,29/08/2019,05-16423,5291.74,Farnsfield Pre-School
Nottinghamshire County Council,1111/1001,Children and Young People,CYP,Third Party Payments,EGA,29/08/2019,05-16424,5210.42,Fledglings Playgroup
Nottinghamshire County Council,1111/1001,Children and Young People,CYP,Third Party Payments,EGA,29/08/2019,05-16425,6203.86,Early Years Playgroup
Nottinghamshire County Council,1111/1001,Children and Young People,CYP,Third Party Payments,EGA,29/08/2019,05-16426,5142.84,Lowater Street Play & Pre School
Nottinghamshire County Council,1111/1001,Children and Young People,CYP,Third Party Payments,EGA,29/08/2019,05-16427,10351.38,Little Millers Day Nursery
Nottinghamshire County Council,1111/1001,Children and Young People,CYP,Third Party Payments,EGA,29/08/2019,05-16428,3849.93,Tiny Tots Playgroup
Nottinghamshire County Council,1111/1001,Children and Young People,CYP,Third Party Payments,EGA,29/08/2019,05-16429,10640.32,Alphabet House Day Nurseries Ltd-We
Nottinghamshire County Council,1111/1001,Children and Young People,CYP,Third Party Payments,EGA,29/08/2019,05-16430,11939.15,Good Foundations Day Nursery
Nottinghamshire County Council,1111/1001,Children and Young People,CYP,Third Party Payments,EGA,29/08/2019,05-16431,6426.01,Good Shepherd Pre-School
Nottinghamshire County Council,1111/1001,Children and Young People,CYP,Third Party Payments,EGA,29/08/2019,05-16432,7257.15,Leo's Childrens Nurseries Ltd
Nottinghamshire County Council,1111/1001,Children and Young People,CYP,Third Party Payments,EGA,29/08/2019,05-16433,5991.26,Bircotes Pre-School
Nottinghamshire County Council,1111/1001,Children and Young People,CYP,Third Party Payments,EGA,29/08/2019,05-16434,10768.45,East Leake Pre-School Playgroup
Nottinghamshire County Council,1111/1001,Children and Young People,CYP,Third Party Payments,EGA,29/08/2019,05-16435,8378.06,Little Acorns Shireoaks
Nottinghamshire County Council,1111/1001,Children and Young People,CYP,Third Party Payments,EGA,29/08/2019,05-16436,3234.42,Willow Childcare & Training Ltd
Nottinghamshire County Council,1111/1001,Children and Young People,CYP,Third Party Payments,EGA,29/08/2019,05-16437,13531.27,Treetops Nursery (Clipstone)
Nottinghamshire County Council,1111/1001,Children and Young People,CYP,Third Party Payments,EGA,29/08/2019,05-16438,1117.62,[Redacted]
Nottinghamshire County Council,1111/1001,Children and Young People,CYP,Third Party Payments,EGA,29/08/2019,05-16439,13540.59,Bright Stars Childcare
Nottinghamshire County Council,1111/1001,Children and Young People,CYP,Third Party Payments,EGA,29/08/2019,05-16440,7310.97,Cherubs Ryton Park
Nottinghamshire County Council,1111/1001,Children and Young People,CYP,Third Party Payments,EGA,29/08/2019,05-16441,921.69,Sparkle Daycare
Nottinghamshire County Council,1111/1001,Children and Young People,CYP,Third Party Payments,EGA,29/08/2019,05-16442,8355.48,Bullpit Road Nursery
Nottinghamshire County Council,1111/1001,Children and Young People,CYP,Third Party Payments,EGA,29/08/2019,05-16443,525.42,[Redacted]
Body Name,Body,Service Label,Service Code,CIPFA Detailed Expenditure Type,CIPFA Detailed Expenditure CodeDate,,Transaction NumberNet Amount,,Supplier Name
Nottinghamshire County Council,1111/1001,Children and Young People,CYP,Third Party Payments,EGA,29/08/2019,05-16444,10262.39,The Enchanted Garden Day Nursery
Nottinghamshire County Council,1111/1001,Children and Young People,CYP,Third Party Payments,EGA,29/08/2019,05-16445,6048.96,The West Bridgford Day Nursery
Nottinghamshire County Council,1111/1001,Children and Young People,CYP,Third Party Payments,EGA,29/08/2019,05-16446,1488.06,[Redacted]
Nottinghamshire County Council,1111/1001,Children and Young People,CYP,Third Party Payments,EGA,29/08/2019,05-16447,9274.86,Rainbows Day Nursery
Nottinghamshire County Council,1111/1001,Children and Young People,CYP,Third Party Payments,EGA,29/08/2019,05-16448,592.2,[Redacted]
Nottinghamshire County Council,1111/1001,Children and Young People,CYP,Third Party Payments,EGA,29/08/2019,05-16449,788.13,[Redacted]
Nottinghamshire County Council,1111/1001,Children and Young People,CYP,Third Party Payments,EGA,29/08/2019,05-16450,2130.16,Luans Little Stars
Nottinghamshire County Council,1111/1001,Children and Young People,CYP,Third Party Payments,EGA,29/08/2019,05-16451,525.42,[Redacted]
Nottinghamshire County Council,1111/1001,Children and Young People,CYP,Third Party Payments,EGA,29/08/2019,05-16452,1948.8,[Redacted]
Nottinghamshire County Council,1111/1001,Children and Young People,CYP,Third Party Payments,EGA,29/08/2019,05-16453,3319.47,Zoe's Childcare Ltd
Nottinghamshire County Council,1111/1001,Children and Young People,CYP,Third Party Payments,EGA,29/08/2019,05-16454,1243.5,[Redacted]
Nottinghamshire County Council,1111/1001,Children and Young People,CYP,Third Party Payments,EGA,29/08/2019,05-16455,1050.84,[Redacted]
Nottinghamshire County Council,1111/1001,Children and Young People,CYP,Third Party Payments,EGA,29/08/2019,05-16456,4770.11,Cedar House Day Nursery
Nottinghamshire County Council,1111/1001,Children and Young People,CYP,Third Party Payments,EGA,29/08/2019,05-16457,1117.62,Mini-me Childcare
Nottinghamshire County Council,1111/1001,Children and Young People,CYP,Third Party Payments,EGA,29/08/2019,05-16458,525.42,Jelly Tots
Nottinghamshire County Council,1111/1001,Children and Young People,CYP,Third Party Payments,EGA,29/08/2019,05-16459,23062.02,The Orange Tree Day Nursery
Nottinghamshire County Council,1111/1001,Children and Young People,CYP,Third Party Payments,EGA,29/08/2019,05-16460,1709.82,[Redacted]
Nottinghamshire County Council,1111/1001,Children and Young People,CYP,Third Party Payments,EGA,29/08/2019,05-16461,12198.94,Fun Farm Day Nursery
Nottinghamshire County Council,1111/1001,Children and Young People,CYP,Third Party Payments,EGA,29/08/2019,05-16462,854.91,[Redacted]
Nottinghamshire County Council,1111/1001,Children and Young People,CYP,Third Party Payments,EGA,29/08/2019,05-16463,525.42,[Redacted]
Nottinghamshire County Council,1111/1001,Children and Young People,CYP,Third Party Payments,EGA,29/08/2019,05-16464,1277.31,[Redacted]
Nottinghamshire County Council,1111/1001,Children and Young People,CYP,Third Party Payments,EGA,29/08/2019,05-16465,11034.33,Cherubs Childcare Centre Ladybrook
Nottinghamshire County Council,1111/1001,Children and Young People,CYP,Third Party Payments,EGA,29/08/2019,05-16466,1184.4,[Redacted]
Nottinghamshire County Council,1111/1001,Children and Young People,CYP,Third Party Payments,EGA,29/08/2019,05-16467,5272.82,Rushcliffe Pre-School (Nottingham)
Nottinghamshire County Council,1111/1001,Children and Young People,CYP,Third Party Payments,EGA,29/08/2019,05-16468,4824.04,Upton Crickets Day Nursery
Nottinghamshire County Council,1111/1001,Children and Young People,CYP,Third Party Payments,EGA,29/08/2019,05-16469,525.42,[Redacted]
Nottinghamshire County Council,1111/1001,Children and Young People,CYP,Third Party Payments,EGA,29/08/2019,05-16470,6571.49,Cheeky Monkeys Day Nursery
Nottinghamshire County Council,1111/1001,Children and Young People,CYP,Third Party Payments,EGA,29/08/2019,05-16471,592.2,[Redacted]
Nottinghamshire County Council,1111/1001,Children and Young People,CYP,Third Party Payments,EGA,29/08/2019,05-16472,2235.24,[Redacted]
Nottinghamshire County Council,1111/1001,Children and Young People,CYP,Third Party Payments,EGA,29/08/2019,05-16473,854.91,[Redacted]
Nottinghamshire County Council,1111/1001,Children and Young People,CYP,Third Party Payments,EGA,29/08/2019,05-16474,1030.83,[Redacted]
Nottinghamshire County Council,1111/1001,Children and Young People,CYP,Third Party Payments,EGA,29/08/2019,05-16475,13324.95,Children 1st @ Newark Centre
Nottinghamshire County Council,1111/1001,Children and Young People,CYP,Third Party Payments,EGA,29/08/2019,05-16476,525.42,[Redacted]
Nottinghamshire County Council,1111/1001,Children and Young People,CYP,Third Party Payments,EGA,29/08/2019,05-16477,630.51,[Redacted]
Nottinghamshire County Council,1111/1001,Children and Young People,CYP,Third Party Payments,EGA,29/08/2019,05-16478,648.02,[Redacted]
Nottinghamshire County Council,1111/1001,Children and Young People,CYP,Third Party Payments,EGA,29/08/2019,05-16479,2798.46,Zoes Childcare Ltd
Nottinghamshire County Council,1111/1001,Children and Young People,CYP,Third Party Payments,EGA,29/08/2019,05-16480,13277.88,Dragonflies Day Nursery ltd
Nottinghamshire County Council,1111/1001,Children and Young People,CYP,Third Party Payments,EGA,29/08/2019,05-16481,1275.25,[Redacted]
Nottinghamshire County Council,1111/1001,Children and Young People,CYP,Third Party Payments,EGA,29/08/2019,05-16482,821.52,[Redacted]
Nottinghamshire County Council,1111/1001,Children and Young People,CYP,Third Party Payments,EGA,29/08/2019,05-16483,1313.55,[Redacted]
Nottinghamshire County Council,1111/1001,Children and Young People,CYP,Third Party Payments,EGA,29/08/2019,05-16484,525.42,[Redacted]
Nottinghamshire County Council,1111/1001,Children and Young People,CYP,Third Party Payments,EGA,29/08/2019,05-16485,1432.87,[Redacted]
Nottinghamshire County Council,1111/1001,Children and Young People,CYP,Third Party Payments,EGA,29/08/2019,05-16486,525.42,[Redacted]
Nottinghamshire County Council,1111/1001,Children and Young People,CYP,Third Party Payments,EGA,29/08/2019,05-16487,1015.81,[Redacted]
Nottinghamshire County Council,1111/1001,Children and Young People,CYP,Third Party Payments,EGA,29/08/2019,05-16488,783.55,[Redacted]
Nottinghamshire County Council,1111/1001,Children and Young People,CYP,Third Party Payments,EGA,29/08/2019,05-16489,525.42,[Redacted]
Body Name,Body,Service Label,Service Code,CIPFA Detailed Expenditure Type,CIPFA Detailed Expenditure CodeDate,,Transaction NumberNet Amount,,Supplier Name
Nottinghamshire County Council,1111/1001,Children and Young People,CYP,Third Party Payments,EGA,29/08/2019,05-16490,2168.46,[Redacted]
Nottinghamshire County Council,1111/1001,Children and Young People,CYP,Third Party Payments,EGA,29/08/2019,05-16491,746.26,[Redacted]
Nottinghamshire County Council,1111/1001,Children and Young People,CYP,Third Party Payments,EGA,29/08/2019,05-16492,9956.75,Little Beans Childcare Ltd
Nottinghamshire County Council,1111/1001,Children and Young People,CYP,Third Party Payments,EGA,29/08/2019,05-16493,10501.63,Childrens House Childcare Ltd
Nottinghamshire County Council,1111/1001,Children and Young People,CYP,Third Party Payments,EGA,29/08/2019,05-16494,854.91,Little Acorns Childminding
Nottinghamshire County Council,1111/1001,Children and Young People,CYP,Third Party Payments,EGA,29/08/2019,05-16495,3781.26,Townrow Tiny Tots Day Nursery Ltd
Nottinghamshire County Council,1111/1001,Children and Young People,CYP,Third Party Payments,EGA,29/08/2019,05-16496,8815.59,Mapperley Day Nursery
Nottinghamshire County Council,1111/1001,Children and Young People,CYP,Third Party Payments,EGA,29/08/2019,05-16497,3294.9,Luan's Little People
Nottinghamshire County Council,1111/1001,Children and Young People,CYP,Third Party Payments,EGA,29/08/2019,05-16498,592.2,[Redacted]
Nottinghamshire County Council,1111/1001,Children and Young People,CYP,Third Party Payments,EGA,29/08/2019,05-16499,507.91,Taylor -Made Childcare
Nottinghamshire County Council,1111/1001,Children and Young People,CYP,Third Party Payments,EGA,29/08/2019,05-16500,945.76,[Redacted]
Nottinghamshire County Council,1111/1001,Children and Young People,CYP,Third Party Payments,EGA,29/08/2019,05-16501,16521.59,Hollies Day Nurseries
Nottinghamshire County Council,1111/1001,Children and Young People,CYP,Third Party Payments,EGA,29/08/2019,05-16502,1050.84,[Redacted]
Nottinghamshire County Council,1111/1001,Children and Young People,CYP,Third Party Payments,EGA,29/08/2019,05-16503,2631.51,Yew Tree Childcare
Nottinghamshire County Council,1111/1001,Children and Young People,CYP,Third Party Payments,EGA,29/08/2019,05-16504,16419.06,Phoenix Park Nursery Ltd
Nottinghamshire County Council,1111/1001,Children and Young People,CYP,Third Party Payments,EGA,29/08/2019,05-16505,788.13,[Redacted]
Nottinghamshire County Council,1111/1001,Children and Young People,CYP,Third Party Payments,EGA,29/08/2019,05-16506,1068.36,[Redacted]
Nottinghamshire County Council,1111/1001,Children and Young People,CYP,Third Party Payments,EGA,29/08/2019,05-16507,569.21,[Redacted]
Nottinghamshire County Council,1111/1001,Children and Young People,CYP,Third Party Payments,EGA,29/08/2019,05-16508,1117.62,[Redacted]
Nottinghamshire County Council,1111/1001,Children and Young People,CYP,Third Party Payments,EGA,29/08/2019,05-16509,921.69,Explorers Childcare
Nottinghamshire County Council,1111/1001,Children and Young People,CYP,Third Party Payments,EGA,29/08/2019,05-16510,9497.24,Wolds Day Nursery @ Stragglethorpe
Nottinghamshire County Council,1111/1001,Children and Young People,CYP,Third Party Payments,EGA,29/08/2019,05-16511,714.8,[Redacted]
Nottinghamshire County Council,1111/1001,Children and Young People,CYP,Third Party Payments,EGA,29/08/2019,05-16512,910.73,[Redacted]
Nottinghamshire County Council,1111/1001,Children and Young People,CYP,Third Party Payments,EGA,29/08/2019,05-16513,525.42,Orchard Childminding
Nottinghamshire County Council,1111/1001,Children and Young People,CYP,Third Party Payments,EGA,29/08/2019,05-16514,821.52,G Parnill T/A Imaginations Childmin
Nottinghamshire County Council,1111/1001,Children and Young People,CYP,Third Party Payments,EGA,29/08/2019,05-16515,8749.44,Pre-School Learning Alliance (HO)
Nottinghamshire County Council,1111/1001,Children and Young People,CYP,Third Party Payments,EGA,29/08/2019,05-16516,14816.97,Aunty Sue's Day Care Ltd
Nottinghamshire County Council,1111/1001,Children and Young People,CYP,Third Party Payments,EGA,29/08/2019,05-16517,525.42,[Redacted]
Nottinghamshire County Council,1111/1001,Children and Young People,CYP,Third Party Payments,EGA,29/08/2019,05-16518,525.42,[Redacted]
Nottinghamshire County Council,1111/1001,Children and Young People,CYP,Third Party Payments,EGA,29/08/2019,05-16519,855.86,Rainbows Childminding
Nottinghamshire County Council,1111/1001,Children and Young People,CYP,Third Party Payments,EGA,29/08/2019,05-16520,9165.87,Happy Days Childcare Services Ltd
Nottinghamshire County Council,1111/1001,Children and Young People,CYP,Third Party Payments,EGA,29/08/2019,05-16521,4007.43,[Redacted]
Nottinghamshire County Council,1111/1001,Children and Young People,CYP,Third Party Payments,EGA,29/08/2019,05-16522,821.96,[Redacted]
Nottinghamshire County Council,1111/1001,Children and Young People,CYP,Third Party Payments,EGA,29/08/2019,05-16523,5277.58,Alphabet House Day Nursery (Chilwel
Nottinghamshire County Council,1111/1001,Children and Young People,CYP,Third Party Payments,EGA,29/08/2019,05-16524,854.91,Hunny Bunny's Childcare
Nottinghamshire County Council,1111/1001,Children and Young People,CYP,Third Party Payments,EGA,29/08/2019,05-16525,7499.19,Creative Hands Childcare
Nottinghamshire County Council,1111/1001,Children and Young People,CYP,Third Party Payments,EGA,29/08/2019,05-16526,683.05,[Redacted]
Nottinghamshire County Council,1111/1001,Children and Young People,CYP,Third Party Payments,EGA,29/08/2019,05-16527,11434.5,Little Lambs Day Nursery
Nottinghamshire County Council,1111/1001,Children and Young People,CYP,Third Party Payments,EGA,29/08/2019,05-16528,3352.86,Gognas Day Nursery Ltd
Nottinghamshire County Council,1111/1001,Children and Young People,CYP,Third Party Payments,EGA,29/08/2019,05-16529,1050.84,[Redacted]
Nottinghamshire County Council,1111/1001,Children and Young People,CYP,Third Party Payments,EGA,29/08/2019,05-16530,788.13,[Redacted]
Nottinghamshire County Council,1111/1001,Children and Young People,CYP,Third Party Payments,EGA,29/08/2019,05-16531,592.2,[Redacted]
Nottinghamshire County Council,1111/1001,Children and Young People,CYP,Third Party Payments,EGA,29/08/2019,05-16532,1027.2,[Redacted]
Nottinghamshire County Council,1111/1001,Children and Young People,CYP,Third Party Payments,EGA,29/08/2019,05-16533,525.42,[Redacted]
Nottinghamshire County Council,1111/1001,Children and Young People,CYP,Third Party Payments,EGA,29/08/2019,05-16534,11163.54,Jumacare Ltd T/A Church House Nurse
Nottinghamshire County Council,1111/1001,Children and Young People,CYP,Third Party Payments,EGA,29/08/2019,05-16535,1413.72,Making Memories Childminding
Body Name,Body,Service Label,Service Code,CIPFA Detailed Expenditure Type,CIPFA Detailed Expenditure CodeDate,,Transaction NumberNet Amount,,Supplier Name
Nottinghamshire County Council,1111/1001,Children and Young People,CYP,Third Party Payments,EGA,29/08/2019,05-16536,6429.84,Child First (Welbeck) (Childminding
Nottinghamshire County Council,1111/1001,Children and Young People,CYP,Third Party Payments,EGA,29/08/2019,05-16537,889.55,Little Angels Childcare
Nottinghamshire County Council,1111/1001,Children and Young People,CYP,Third Party Payments,EGA,29/08/2019,05-16538,592.2,[Redacted]
Nottinghamshire County Council,1111/1001,Children and Young People,CYP,Third Party Payments,EGA,29/08/2019,05-16539,525.42,[Redacted]
Nottinghamshire County Council,1111/1001,Children and Young People,CYP,Third Party Payments,EGA,29/08/2019,05-16540,648.02,[Redacted]
Nottinghamshire County Council,1111/1001,Children and Young People,CYP,Third Party Payments,EGA,29/08/2019,05-16541,788.13,[Redacted]
Nottinghamshire County Council,1111/1001,Children and Young People,CYP,Third Party Payments,EGA,29/08/2019,05-16542,525.42,Little Bears Corner
Nottinghamshire County Council,1111/1001,Children and Young People,CYP,Third Party Payments,EGA,29/08/2019,05-16543,4914.88,Country Kids Day Nursery
Nottinghamshire County Council,1111/1001,Children and Young People,CYP,Third Party Payments,EGA,29/08/2019,05-16544,858.19,[Redacted]
Nottinghamshire County Council,1111/1001,Children and Young People,CYP,Third Party Payments,EGA,29/08/2019,05-16545,1103.38,Butterflies Childminding Services
Nottinghamshire County Council,1111/1001,Children and Young People,CYP,Third Party Payments,EGA,29/08/2019,05-16546,1050.84,Little House Of Horrors
Nottinghamshire County Council,1111/1001,Children and Young People,CYP,Third Party Payments,EGA,29/08/2019,05-16547,525.42,[Redacted]
Nottinghamshire County Council,1111/1001,Children and Young People,CYP,Third Party Payments,EGA,29/08/2019,05-16548,1117.62,Little House Childcare of Brinsley
Nottinghamshire County Council,1111/1001,Children and Young People,CYP,Third Party Payments,EGA,29/08/2019,05-16549,697.29,Green Tot Childcare
Nottinghamshire County Council,1111/1001,Children and Young People,CYP,Third Party Payments,EGA,29/08/2019,05-16550,592.2,[Redacted]
Nottinghamshire County Council,1111/1001,Children and Young People,CYP,Third Party Payments,EGA,29/08/2019,05-16551,507.91,[Redacted]
Nottinghamshire County Council,1111/1001,Children and Young People,CYP,Third Party Payments,EGA,29/08/2019,05-16552,735.59,Little Gem's
Nottinghamshire County Council,1111/1001,Children and Young People,CYP,Third Party Payments,EGA,29/08/2019,05-16553,525.42,[Redacted]
Nottinghamshire County Council,1111/1001,Children and Young People,CYP,Third Party Payments,EGA,29/08/2019,05-16554,1211.45,[Redacted]
Nottinghamshire County Council,1111/1001,Children and Young People,CYP,Third Party Payments,EGA,29/08/2019,05-16555,1709.82,Jenny's Jelly Tots
Nottinghamshire County Council,1111/1001,Children and Young People,CYP,Third Party Payments,EGA,29/08/2019,05-16556,810.98,[Redacted]
Nottinghamshire County Council,1111/1001,Children and Young People,CYP,Third Party Payments,EGA,29/08/2019,05-16557,11928.8,Luan's Little People Ltd
Nottinghamshire County Council,1111/1001,Children and Young People,CYP,Third Party Payments,EGA,29/08/2019,05-16558,4178.79,Little Toes Day Nursery
Nottinghamshire County Council,1111/1001,Children and Young People,CYP,Third Party Payments,EGA,29/08/2019,05-16559,525.42,Fingerprints Childminding
Nottinghamshire County Council,1111/1001,Children and Young People,CYP,Third Party Payments,EGA,29/08/2019,05-16560,5160.25,Little Adventures Forest School Ltd
Nottinghamshire County Council,1111/1001,Children and Young People,CYP,Third Party Payments,EGA,29/08/2019,05-16561,525.42,[Redacted]
Nottinghamshire County Council,1111/1001,Children and Young People,CYP,Third Party Payments,EGA,29/08/2019,05-16562,592.2,Helping Hands Daycare
Nottinghamshire County Council,1111/1001,Children and Young People,CYP,Third Party Payments,EGA,29/08/2019,05-16563,749.83,[Redacted]
Nottinghamshire County Council,1111/1001,Children and Young People,CYP,Third Party Payments,EGA,29/08/2019,05-16564,921.69,[Redacted]
Nottinghamshire County Council,1111/1001,Children and Young People,CYP,Third Party Payments,EGA,29/08/2019,05-16565,5913.18,Happy Munchkins Pre School
Nottinghamshire County Council,1111/1001,Children and Young People,CYP,Third Party Payments,EGA,29/08/2019,05-16566,662.26,L & K's Little Kingdom
Nottinghamshire County Council,1111/1001,Children and Young People,CYP,Third Party Payments,EGA,29/08/2019,05-16567,4862.34,Ryan House Day Nursery
Nottinghamshire County Council,1111/1001,Children and Young People,CYP,Third Party Payments,EGA,29/08/2019,05-16568,9337.23,Little Baths Ltd T/A Little PLums D
Nottinghamshire County Council,1111/1001,Children and Young People,CYP,Third Party Payments,EGA,29/08/2019,05-16569,625.59,[Redacted]
Nottinghamshire County Council,1111/1001,Children and Young People,CYP,Third Party Payments,EGA,29/08/2019,05-16570,13325.13,Lime Trees Day Nursery Ltd (Carlton
Nottinghamshire County Council,1111/1001,Children and Young People,CYP,Third Party Payments,EGA,29/08/2019,05-16571,8223.06,Hollies Day Nursery (Loughborough R
Nottinghamshire County Council,1111/1001,Children and Young People,CYP,Third Party Payments,EGA,29/08/2019,05-16572,9758.26,Secret Garden Childcare Ltd
Nottinghamshire County Council,1111/1001,Children and Young People,CYP,Third Party Payments,EGA,29/08/2019,05-16573,525.42,Amanda Birth to 11yrs Childcare
Nottinghamshire County Council,1111/1001,Children and Young People,CYP,Third Party Payments,EGA,29/08/2019,05-16574,1103.38,Wellow Tots Childminding
Nottinghamshire County Council,1111/1001,Children and Young People,CYP,Third Party Payments,EGA,29/08/2019,05-16575,12285,Cherubs (Sutton In Ashfield) Childm
Nottinghamshire County Council,1111/1001,Children and Young People,CYP,Third Party Payments,EGA,29/08/2019,05-16576,5846.4,Small People Ltd
Nottinghamshire County Council,1111/1001,Children and Young People,CYP,Third Party Payments,EGA,29/08/2019,05-16577,592.2,[Redacted]
Nottinghamshire County Council,1111/1001,Children and Young People,CYP,Third Party Payments,EGA,29/08/2019,05-16578,4393.87,Little Wrens Day Nursery & Pre Scho
Nottinghamshire County Council,1111/1001,Children and Young People,CYP,Third Party Payments,EGA,29/08/2019,05-16579,3978.45,Jelly Beans Day Nursery Ltd
Nottinghamshire County Council,1111/1001,Children and Young People,CYP,Third Party Payments,EGA,29/08/2019,05-16580,5038.62,Play Days Cottage
Nottinghamshire County Council,1111/1001,Children and Young People,CYP,Third Party Payments,EGA,29/08/2019,05-16581,1660.26,New Beginnings Quality Childcare
Body Name,Body,Service Label,Service Code,CIPFA Detailed Expenditure Type,CIPFA Detailed Expenditure CodeDate,,Transaction NumberNet Amount,,Supplier Name
Nottinghamshire County Council,1111/1001,Children and Young People,CYP,Third Party Payments,EGA,29/08/2019,05-16582,1778.37,Windmills Childcare
Nottinghamshire County Council,1111/1001,Children and Young People,CYP,Third Party Payments,EGA,29/08/2019,05-16583,1313.55,[Redacted]
Nottinghamshire County Council,1111/1001,Children and Young People,CYP,Third Party Payments,EGA,29/08/2019,05-16584,525.42,[Redacted]
Nottinghamshire County Council,1111/1001,Children and Young People,CYP,Third Party Payments,EGA,29/08/2019,05-16585,625.59,[Redacted]
Nottinghamshire County Council,1111/1001,Children and Young People,CYP,Third Party Payments,EGA,29/08/2019,05-16586,1506.21,[Redacted]
Nottinghamshire County Council,1111/1001,Children and Young People,CYP,Third Party Payments,EGA,29/08/2019,05-16587,5209.72,Country Kids Day Nursery - Newark
Nottinghamshire County Council,1111/1001,Children and Young People,CYP,Third Party Payments,EGA,29/08/2019,05-16588,5162.85,Country Kids Nursery - Rainworth
Nottinghamshire County Council,1111/1001,Children and Young People,CYP,Third Party Payments,EGA,29/08/2019,05-16589,2961.88,Family Action (Head Office)
Nottinghamshire County Council,1111/1001,Children and Young People,CYP,Third Party Payments,EGA,29/08/2019,05-16590,6776.91,Crocodile Rock Day Care Ltd
Nottinghamshire County Council,1111/1001,Children and Young People,CYP,Third Party Payments,EGA,29/08/2019,05-16591,5775.24,Windmills Childcare
Nottinghamshire County Council,1111/1001,Children and Young People,CYP,Third Party Payments,EGA,29/08/2019,05-16592,3692.18,Cherubs (Edwinstowe)
Nottinghamshire County Council,1111/1001,Children and Young People,CYP,Third Party Payments,EGA,29/08/2019,05-16593,12335.22,Hucknall Day Nursery Ltd
Nottinghamshire County Council,1111/1001,Children and Young People,CYP,Third Party Payments,EHA,02/08/2019,05-19186,1550,Bromley & Croydon Womens Aid
Nottinghamshire County Council,1111/1001,Children and Young People,CYP,Support Services,HAA,08/08/2019,05-13358,680,Nottingham Minibuses & Coaches
Nottinghamshire County Council,1111/1001,Children and Young People,CYP,Support Services,HAA,09/08/2019,05-13731,2469.94,Nottingham Coaches
Nottinghamshire County Council,1111/1001,Children and Young People,CYP,Support Services,HAA,09/08/2019,05-13735,749.85,A2B Licensed Taxis
Nottinghamshire County Council,1111/1001,Children and Young People,CYP,Support Services,HAA,14/08/2019,05-14406,4950,Stagecoach Services Ltd
Nottinghamshire County Council,1111/1001,Children and Young People,CYP,Support Services,HAA,14/08/2019,05-14478,883.26,Nunns Taxis Ltd
Nottinghamshire County Council,1111/1001,Children and Young People,CYP,Income,JHA,13/08/2019,05-10011,585,[Redacted]
Nottinghamshire County Council,1111/1001,Children and Young People,CYP,Income,JHA,13/08/2019,05-10012,678,[Redacted]
Nottinghamshire County Council,1111/1001,Children and Young People,CYP,Income,JHA,13/08/2019,05-10017,1365.2,[Redacted]
Nottinghamshire County Council,1111/1001,Children and Young People,CYP,Income,JHA,13/08/2019,05-10018,1365.2,[Redacted]
Nottinghamshire County Council,1111/1001,Adult Social Care and Health,ASCH,Premises Related,BAA,01/08/2019,05-10075,1611.25,TMM & Building Ltd
Nottinghamshire County Council,1111/1001,Adult Social Care and Health,ASCH,Premises Related,BAA,01/08/2019,05-10076,545.5,Ball & Sons Ltd
Nottinghamshire County Council,1111/1001,Adult Social Care and Health,ASCH,Premises Related,BAA,01/08/2019,05-10077,803.75,Heating & Process Eng Serv Ltd
Nottinghamshire County Council,1111/1001,Adult Social Care and Health,ASCH,Premises Related,BAA,05/08/2019,05-12705,584,Ball & Sons Ltd
Nottinghamshire County Council,1111/1001,Adult Social Care and Health,ASCH,Premises Related,BAA,06/08/2019,05-12922,737,C Tupling Joinery
Nottinghamshire County Council,1111/1001,Adult Social Care and Health,ASCH,Premises Related,BAA,12/08/2019,05-14001,522.5,Futures Greenscape Ltd
Nottinghamshire County Council,1111/1001,Adult Social Care and Health,ASCH,Premises Related,BAA,12/08/2019,05-14002,620.5,Groundwork Creswell Ashf & Mansf
Nottinghamshire County Council,1111/1001,Adult Social Care and Health,ASCH,Premises Related,BAA,12/08/2019,05-14003,5040.99,ARC Property Services Partnership L
Nottinghamshire County Council,1111/1001,Adult Social Care and Health,ASCH,Premises Related,BAA,13/08/2019,05-14019,635,Newark & Sherwood Homes Ltd
Nottinghamshire County Council,1111/1001,Adult Social Care and Health,ASCH,Premises Related,BAA,13/08/2019,05-14291,7139.1,ARC Property Services Partnership L
Nottinghamshire County Council,1111/1001,Adult Social Care and Health,ASCH,Premises Related,BAA,19/08/2019,05-14690,657.5,Futures Greenscape Ltd
Nottinghamshire County Council,1111/1001,Adult Social Care and Health,ASCH,Premises Related,BAA,21/08/2019,05-16045,134.74,ARC Property Services Partnership L
Nottinghamshire County Council,1111/1001,Adult Social Care and Health,ASCH,Premises Related,BAA,21/08/2019,05-16048,1633.52,ARC Property Services Partnership L
Nottinghamshire County Council,1111/1001,Adult Social Care and Health,ASCH,Premises Related,BAA,30/08/2019,05-15876,517.5,Futures Greenscape Ltd
Nottinghamshire County Council,1111/1001,Adult Social Care and Health,ASCH,Premises Related,BEA,30/08/2019,05-14008,1290.6,Newark & Sherwood District Council
Nottinghamshire County Council,1111/1001,Adult Social Care and Health,ASCH,Premises Related,BFA,12/08/2019,05-13459,2538.02,Water Plus Ltd
Nottinghamshire County Council,1111/1001,Adult Social Care and Health,ASCH,Transport Related,CAA,02/08/2019,05-19192,725,Nottm University Hospitals Nhs Trus
Nottinghamshire County Council,1111/1001,Adult Social Care and Health,ASCH,Transport Related,CAA,09/08/2019,05-13452,4781.39,Via East Midlands Ltd
Nottinghamshire County Council,1111/1001,Adult Social Care and Health,ASCH,Transport Related,CAA,23/08/2019,05-14737,541.99,Via East Midlands Ltd
Nottinghamshire County Council,1111/1001,Adult Social Care and Health,ASCH,Transport Related,CBA,09/08/2019,05-13716,2427.8,Aj Travel
Nottinghamshire County Council,1111/1001,Adult Social Care and Health,ASCH,Transport Related,CBA,23/08/2019,05-14713,4393,Via East Midlands Ltd
Nottinghamshire County Council,1111/1001,Adult Social Care and Health,ASCH,Transport Related,CBA,23/08/2019,05-14721,4393,Via East Midlands Ltd
Nottinghamshire County Council,1111/1001,Adult Social Care and Health,ASCH,Transport Related,CBA,23/08/2019,05-14729,4393,Via East Midlands Ltd
Nottinghamshire County Council,1111/1001,Adult Social Care and Health,ASCH,Transport Related,CCA,08/08/2019,05-13257,2088.4,Arrow Specialised Transport Ltd
Body Name,Body,Service Label,Service Code,CIPFA Detailed Expenditure Type,CIPFA Detailed Expenditure CodeDate,,Transaction NumberNet Amount,,Supplier Name
Nottinghamshire County Council,1111/1001,Adult Social Care and Health,ASCH,Transport Related,CCA,08/08/2019,05-13333,765,Shelleys Taxis Ltd
Nottinghamshire County Council,1111/1001,Adult Social Care and Health,ASCH,Transport Related,CCA,13/08/2019,05-14024,636.48,Ideal Cars (Private Hire) Ltd
Nottinghamshire County Council,1111/1001,Adult Social Care and Health,ASCH,Transport Related,CDA,02/08/2019,05-19159,1976.52,Mencap Accounts Region 2
Nottinghamshire County Council,1111/1001,Adult Social Care and Health,ASCH,Transport Related,CDA,08/08/2019,05-13219,646.4,Ace Of Mansfield Ltd
Nottinghamshire County Council,1111/1001,Adult Social Care and Health,ASCH,Transport Related,CDA,08/08/2019,05-13220,743.68,Ace Of Mansfield Ltd
Nottinghamshire County Council,1111/1001,Adult Social Care and Health,ASCH,Transport Related,CDA,08/08/2019,05-13297,4343,Bridges Transport Ltd
Nottinghamshire County Council,1111/1001,Adult Social Care and Health,ASCH,Transport Related,CDA,08/08/2019,05-13298,1188.8,Bridges Transport Ltd
Nottinghamshire County Council,1111/1001,Adult Social Care and Health,ASCH,Transport Related,CDA,08/08/2019,05-13301,909,Bridges Transport Ltd
Nottinghamshire County Council,1111/1001,Adult Social Care and Health,ASCH,Transport Related,CDA,08/08/2019,05-13304,1464.64,Bridges Transport Ltd
Nottinghamshire County Council,1111/1001,Adult Social Care and Health,ASCH,Transport Related,CDA,08/08/2019,05-13310,3539.7,Bridges Transport Ltd
Nottinghamshire County Council,1111/1001,Adult Social Care and Health,ASCH,Transport Related,CDA,08/08/2019,05-13311,2425.12,Bridges Transport Ltd
Nottinghamshire County Council,1111/1001,Adult Social Care and Health,ASCH,Transport Related,CDA,08/08/2019,05-13313,1200,Galaxy Cabs Ltd
Nottinghamshire County Council,1111/1001,Adult Social Care and Health,ASCH,Transport Related,CDA,08/08/2019,05-13314,1592,Galaxy Cabs Ltd
Nottinghamshire County Council,1111/1001,Adult Social Care and Health,ASCH,Transport Related,CDA,08/08/2019,05-13316,1231.87,Galaxy Cabs Ltd
Nottinghamshire County Council,1111/1001,Adult Social Care and Health,ASCH,Transport Related,CDA,08/08/2019,05-13318,1071,Galaxy Cabs Ltd
Nottinghamshire County Council,1111/1001,Adult Social Care and Health,ASCH,Transport Related,CDA,08/08/2019,05-13322,784,Galaxy Cabs Ltd
Nottinghamshire County Council,1111/1001,Adult Social Care and Health,ASCH,Transport Related,CDA,08/08/2019,05-13323,2479.4,Hawkins Taxis & Transport
Nottinghamshire County Council,1111/1001,Adult Social Care and Health,ASCH,Transport Related,CDA,08/08/2019,05-13326,1236.4,Shelleys Taxis Ltd
Nottinghamshire County Council,1111/1001,Adult Social Care and Health,ASCH,Transport Related,CDA,08/08/2019,05-13391,3832.95,Ace Cars & Minibuses Ltd
Nottinghamshire County Council,1111/1001,Adult Social Care and Health,ASCH,Transport Related,CDA,08/08/2019,05-13397,1478.4,In Taxis
Nottinghamshire County Council,1111/1001,Adult Social Care and Health,ASCH,Transport Related,CDA,08/08/2019,05-13411,720,Gxpress Cars
Nottinghamshire County Council,1111/1001,Adult Social Care and Health,ASCH,Transport Related,CDA,09/08/2019,05-13548,684,Alert Cars Ltd
Nottinghamshire County Council,1111/1001,Adult Social Care and Health,ASCH,Transport Related,CDA,09/08/2019,05-13586,1877.03,Alpha Cars
Nottinghamshire County Council,1111/1001,Adult Social Care and Health,ASCH,Transport Related,CDA,09/08/2019,05-13615,1197,Alpha Cars
Nottinghamshire County Council,1111/1001,Adult Social Care and Health,ASCH,Transport Related,CDA,09/08/2019,05-13623,631.68,Alpha Cars
Nottinghamshire County Council,1111/1001,Adult Social Care and Health,ASCH,Transport Related,CDA,09/08/2019,05-13637,1634.1,Arrow Specialised Transport Ltd
Nottinghamshire County Council,1111/1001,Adult Social Care and Health,ASCH,Transport Related,CDA,09/08/2019,05-13640,535.2,Arrow Specialised Transport Ltd
Nottinghamshire County Council,1111/1001,Adult Social Care and Health,ASCH,Transport Related,CDA,09/08/2019,05-13653,606,Fozcabs Newark Taxis
Nottinghamshire County Council,1111/1001,Adult Social Care and Health,ASCH,Transport Related,CDA,09/08/2019,05-13657,1713.82,Fozcabs Newark Taxis
Nottinghamshire County Council,1111/1001,Adult Social Care and Health,ASCH,Transport Related,CDA,09/08/2019,05-13669,909.48,Abacus Cars
Nottinghamshire County Council,1111/1001,Adult Social Care and Health,ASCH,Transport Related,CDA,09/08/2019,05-13674,652.88,Abacus Cars
Nottinghamshire County Council,1111/1001,Adult Social Care and Health,ASCH,Transport Related,CDA,09/08/2019,05-13676,548.8,Abacus Cars
Nottinghamshire County Council,1111/1001,Adult Social Care and Health,ASCH,Transport Related,CDA,09/08/2019,05-13684,900,Abacus Cars
Nottinghamshire County Council,1111/1001,Adult Social Care and Health,ASCH,Transport Related,CDA,09/08/2019,05-13720,1910.52,[Redacted]
Nottinghamshire County Council,1111/1001,Adult Social Care and Health,ASCH,Transport Related,CDA,09/08/2019,05-13756,663,Reliable Cars Ltd
Nottinghamshire County Council,1111/1001,Adult Social Care and Health,ASCH,Transport Related,CDA,09/08/2019,05-13792,181.42,Forest Cars
Nottinghamshire County Council,1111/1001,Adult Social Care and Health,ASCH,Transport Related,CDA,13/08/2019,05-14021,703.8,Ideal Cars (Private Hire) Ltd
Nottinghamshire County Council,1111/1001,Adult Social Care and Health,ASCH,Transport Related,CDA,14/08/2019,05-14303,1708,F4Control Ltd (t/a First4care)
Nottinghamshire County Council,1111/1001,Adult Social Care and Health,ASCH,Transport Related,CDA,14/08/2019,05-14309,1115.04,200 Cars Ltd
Nottinghamshire County Council,1111/1001,Adult Social Care and Health,ASCH,Transport Related,CDA,14/08/2019,05-14310,1430,200 Cars Ltd
Nottinghamshire County Council,1111/1001,Adult Social Care and Health,ASCH,Transport Related,CDA,14/08/2019,05-14311,652,200 Cars Ltd
Nottinghamshire County Council,1111/1001,Adult Social Care and Health,ASCH,Transport Related,CDA,14/08/2019,05-14312,1340,200 Cars Ltd
Nottinghamshire County Council,1111/1001,Adult Social Care and Health,ASCH,Transport Related,CDA,14/08/2019,05-14314,1274.2,Acorn Contracts
Nottinghamshire County Council,1111/1001,Adult Social Care and Health,ASCH,Transport Related,CDA,14/08/2019,05-14315,1386,Acorn Contracts
Nottinghamshire County Council,1111/1001,Adult Social Care and Health,ASCH,Transport Related,CDA,14/08/2019,05-14316,525,Acorn Contracts
Nottinghamshire County Council,1111/1001,Adult Social Care and Health,ASCH,Transport Related,CDA,14/08/2019,05-14323,1015,Ng11 Cars
Body Name,Body,Service Label,Service Code,CIPFA Detailed Expenditure Type,CIPFA Detailed Expenditure CodeDate,,Transaction NumberNet Amount,,Supplier Name
Nottinghamshire County Council,1111/1001,Adult Social Care and Health,ASCH,Transport Related,CDA,14/08/2019,05-14325,1765.02,F4Control Ltd (t/a First4care)
Nottinghamshire County Council,1111/1001,Adult Social Care and Health,ASCH,Transport Related,CDA,14/08/2019,05-14327,3494.16,F4Control Ltd (t/a First4care)
Nottinghamshire County Council,1111/1001,Adult Social Care and Health,ASCH,Transport Related,CDA,14/08/2019,05-14328,3077.63,F4Control Ltd (t/a First4care)
Nottinghamshire County Council,1111/1001,Adult Social Care and Health,ASCH,Transport Related,CDA,14/08/2019,05-14373,3910.72,BN Gibson Ltd
Nottinghamshire County Council,1111/1001,Adult Social Care and Health,ASCH,Transport Related,CDA,14/08/2019,05-14374,3916.8,BN Gibson Ltd
Nottinghamshire County Council,1111/1001,Adult Social Care and Health,ASCH,Transport Related,CDA,14/08/2019,05-14455,3270.14,P & P Taxis
Nottinghamshire County Council,1111/1001,Adult Social Care and Health,ASCH,Transport Related,CDA,14/08/2019,05-14456,1124,P & P Taxis
Nottinghamshire County Council,1111/1001,Adult Social Care and Health,ASCH,Transport Related,CDA,14/08/2019,05-14461,2086.2,Rio Cabs
Nottinghamshire County Council,1111/1001,Adult Social Care and Health,ASCH,Transport Related,CDA,14/08/2019,05-14465,2208.32,AAA Cabs
Nottinghamshire County Council,1111/1001,Adult Social Care and Health,ASCH,Transport Related,CDA,14/08/2019,05-14472,966.07,Shiny Sky Ltd T/A Arrow Cars
Nottinghamshire County Council,1111/1001,Adult Social Care and Health,ASCH,Transport Related,CDA,14/08/2019,05-14473,566.06,Shiny Sky Ltd T/A Arrow Cars
Nottinghamshire County Council,1111/1001,Adult Social Care and Health,ASCH,Transport Related,CDA,14/08/2019,05-14481,583.36,Nunns Taxis Ltd
Nottinghamshire County Council,1111/1001,Adult Social Care and Health,ASCH,Transport Related,CDA,14/08/2019,05-14483,500,ADF Cars Ltd
Nottinghamshire County Council,1111/1001,Adult Social Care and Health,ASCH,Transport Related,CDA,14/08/2019,05-14484,830.4,Abacus Taxi & Courier Services
Nottinghamshire County Council,1111/1001,Adult Social Care and Health,ASCH,Transport Related,CDA,16/08/2019,05-14577,752,Southside Cars
Nottinghamshire County Council,1111/1001,Adult Social Care and Health,ASCH,Transport Related,CDA,16/08/2019,05-14583,581.6,Southside Cars
Nottinghamshire County Council,1111/1001,Adult Social Care and Health,ASCH,Transport Related,CDA,16/08/2019,05-14588,650,6 Five 2s
Nottinghamshire County Council,1111/1001,Adult Social Care and Health,ASCH,Transport Related,CDA,16/08/2019,05-14590,550,6 Five 2s
Nottinghamshire County Council,1111/1001,Adult Social Care and Health,ASCH,Transport Related,CDA,16/08/2019,05-14591,696,6 Five 2s
Nottinghamshire County Council,1111/1001,Adult Social Care and Health,ASCH,Transport Related,CDA,16/08/2019,05-14592,805,6 Five 2s
Nottinghamshire County Council,1111/1001,Adult Social Care and Health,ASCH,Transport Related,CDA,16/08/2019,05-14594,530,6 Five 2s
Nottinghamshire County Council,1111/1001,Adult Social Care and Health,ASCH,Transport Related,CDA,16/08/2019,05-14595,1430,All Wayz Travel
Nottinghamshire County Council,1111/1001,Adult Social Care and Health,ASCH,Transport Related,CDA,16/08/2019,05-14623,262.84,F4Control Ltd (t/a First4care)
Nottinghamshire County Council,1111/1001,Adult Social Care and Health,ASCH,Transport Related,CDA,16/08/2019,05-14625,197.18,F4Control Ltd (t/a First4care)
Nottinghamshire County Council,1111/1001,Adult Social Care and Health,ASCH,Transport Related,CDA,16/08/2019,05-14628,486.64,BN Gibson Ltd
Nottinghamshire County Council,1111/1001,Adult Social Care and Health,ASCH,Transport Related,CDA,16/08/2019,05-14631,556.38,D G Private Hire Ltd
Nottinghamshire County Council,1111/1001,Adult Social Care and Health,ASCH,Transport Related,CDA,16/08/2019,05-14632,1472.72,D G Private Hire Ltd
Nottinghamshire County Council,1111/1001,Adult Social Care and Health,ASCH,Transport Related,CDA,16/08/2019,05-14640,2346.23,Abacus Cars
Nottinghamshire County Council,1111/1001,Adult Social Care and Health,ASCH,Transport Related,CDA,16/08/2019,05-14641,616,Abacus Cars
Nottinghamshire County Council,1111/1001,Adult Social Care and Health,ASCH,Transport Related,CDA,16/08/2019,05-14642,3696.79,Abacus Cars
Nottinghamshire County Council,1111/1001,Adult Social Care and Health,ASCH,Transport Related,CDA,16/08/2019,05-14643,2415,Abacus Cars
Nottinghamshire County Council,1111/1001,Adult Social Care and Health,ASCH,Transport Related,CDA,16/08/2019,05-14644,1812.1,Abacus Cars
Nottinghamshire County Council,1111/1001,Adult Social Care and Health,ASCH,Transport Related,CDA,16/08/2019,05-14645,3023.66,Abacus Cars
Nottinghamshire County Council,1111/1001,Adult Social Care and Health,ASCH,Transport Related,CDA,16/08/2019,05-14646,3352.31,Abacus Cars
Nottinghamshire County Council,1111/1001,Adult Social Care and Health,ASCH,Transport Related,CDA,16/08/2019,05-14648,720,Abacus Cars
Nottinghamshire County Council,1111/1001,Adult Social Care and Health,ASCH,Transport Related,CDA,16/08/2019,05-14650,2415,Abacus Cars
Nottinghamshire County Council,1111/1001,Adult Social Care and Health,ASCH,Transport Related,CDA,16/08/2019,05-14683,2122.8,[Redacted]
Nottinghamshire County Council,1111/1001,Adult Social Care and Health,ASCH,Transport Related,CDA,16/08/2019,05-14685,2271.64,Nottingham Cars Ltd
Nottinghamshire County Council,1111/1001,Adult Social Care and Health,ASCH,Transport Related,CDA,19/08/2019,05-14691,563.66,Alert Cars Ltd
Nottinghamshire County Council,1111/1001,Adult Social Care and Health,ASCH,Transport Related,CEA,02/08/2019,05-10061,571.17,Reed Employment Plc
Nottinghamshire County Council,1111/1001,Adult Social Care and Health,ASCH,Transport Related,CEA,13/08/2019,05-14016,369.81,Reed Employment Plc
Nottinghamshire County Council,1111/1001,Adult Social Care and Health,ASCH,Transport Related,CEA,16/08/2019,05-14012,83.93,Reed Employment Plc
Nottinghamshire County Council,1111/1001,Adult Social Care and Health,ASCH,Transport Related,CEA,23/08/2019,05-14299,444.78,Reed Employment Plc
Nottinghamshire County Council,1111/1001,Adult Social Care and Health,ASCH,Transport Related,CEA,30/08/2019,05-16071,424.5,Reed Employment Plc
Nottinghamshire County Council,1111/1001,Adult Social Care and Health,ASCH,Supplies & Services,DBA,01/08/2019,05-19133,1022.1,Nestle UK Ltd
Nottinghamshire County Council,1111/1001,Adult Social Care and Health,ASCH,Supplies & Services,DBA,01/08/2019,05-19135,539,F Smales & Son Fish Merchants Ltd
Body Name,Body,Service Label,Service Code,CIPFA Detailed Expenditure Type,CIPFA Detailed Expenditure CodeDate,,Transaction NumberNet Amount,,Supplier Name
Nottinghamshire County Council,1111/1001,Adult Social Care and Health,ASCH,Supplies & Services,DBA,02/08/2019,05-10036,103.84,On A Roll Sandwich Company
Nottinghamshire County Council,1111/1001,Adult Social Care and Health,ASCH,Supplies & Services,DEA,01/08/2019,05-19115,4975,Healthwatch Nottinghamshire
Nottinghamshire County Council,1111/1001,Adult Social Care and Health,ASCH,Supplies & Services,DEA,30/08/2019,05-14302,632,Nottm Community Housing Assoc
Nottinghamshire County Council,1111/1001,Adult Social Care and Health,ASCH,Supplies & Services,DKA,19/08/2019,05-14862,15,[Redacted]
Nottinghamshire County Council,1111/1001,Adult Social Care and Health,ASCH,Third Party Payments,EBA,08/08/2019,05-13184,4986.6,Framework Housing Association
Nottinghamshire County Council,1111/1001,Adult Social Care and Health,ASCH,Third Party Payments,EGA,01/08/2019,05-19121,44786.28,Agincare UK Ltd
Nottinghamshire County Council,1111/1001,Adult Social Care and Health,ASCH,Third Party Payments,EGA,02/08/2019,05-10038,1142,Braywood Gardens (Runwood)
Nottinghamshire County Council,1111/1001,Adult Social Care and Health,ASCH,Third Party Payments,EGA,02/08/2019,05-10039,1142,Braywood Gardens (Runwood)
Nottinghamshire County Council,1111/1001,Adult Social Care and Health,ASCH,Third Party Payments,EGA,02/08/2019,05-10040,692,Beech House Residential Home
Nottinghamshire County Council,1111/1001,Adult Social Care and Health,ASCH,Third Party Payments,EGA,02/08/2019,05-10041,1176,Beech House Residential Home
Nottinghamshire County Council,1111/1001,Adult Social Care and Health,ASCH,Third Party Payments,EGA,02/08/2019,05-10042,2232,Broadlands Care Home
Nottinghamshire County Council,1111/1001,Adult Social Care and Health,ASCH,Third Party Payments,EGA,02/08/2019,05-10043,946,Friary Fields Ltd
Nottinghamshire County Council,1111/1001,Adult Social Care and Health,ASCH,Third Party Payments,EGA,02/08/2019,05-10044,640,Newgate Lodge Care Home
Nottinghamshire County Council,1111/1001,Adult Social Care and Health,ASCH,Third Party Payments,EGA,02/08/2019,05-10045,525,Oaks Care C (Four Seasons)
Nottinghamshire County Council,1111/1001,Adult Social Care and Health,ASCH,Third Party Payments,EGA,02/08/2019,05-10046,12801.29,Oaks Care C (Four Seasons)
Nottinghamshire County Council,1111/1001,Adult Social Care and Health,ASCH,Third Party Payments,EGA,02/08/2019,05-10047,525,Oaks Care C (Four Seasons)
Nottinghamshire County Council,1111/1001,Adult Social Care and Health,ASCH,Third Party Payments,EGA,02/08/2019,05-10051,73124.7,Cottage Specialist Residential Serv
Nottinghamshire County Council,1111/1001,Adult Social Care and Health,ASCH,Third Party Payments,EGA,02/08/2019,05-10052,2284,Church Farm Residential (Rusticus L
Nottinghamshire County Council,1111/1001,Adult Social Care and Health,ASCH,Third Party Payments,EGA,02/08/2019,05-10053,2284,Church Farm Residential (Rusticus L
Nottinghamshire County Council,1111/1001,Adult Social Care and Health,ASCH,Third Party Payments,EGA,02/08/2019,05-10054,1780,Church Farm Residential (Rusticus L
Nottinghamshire County Council,1111/1001,Adult Social Care and Health,ASCH,Third Party Payments,EGA,02/08/2019,05-10055,1950,Loxley Lodge Care Home Ltd
Nottinghamshire County Council,1111/1001,Adult Social Care and Health,ASCH,Third Party Payments,EGA,02/08/2019,05-10056,2485.72,Oakdene Care Centre (Prime Life)
Nottinghamshire County Council,1111/1001,Adult Social Care and Health,ASCH,Third Party Payments,EGA,02/08/2019,05-10057,26201.92,The Red House (Voyage)
Nottinghamshire County Council,1111/1001,Adult Social Care and Health,ASCH,Third Party Payments,EGA,02/08/2019,05-10058,554,Silverwood Care H (HC One)
Nottinghamshire County Council,1111/1001,Adult Social Care and Health,ASCH,Third Party Payments,EGA,02/08/2019,05-10092,2356,Adbolton Hall Nursing Home (MPS)
Nottinghamshire County Council,1111/1001,Adult Social Care and Health,ASCH,Third Party Payments,EGA,02/08/2019,05-10093,2100,Adbolton Hall Nursing Home (MPS)
Nottinghamshire County Council,1111/1001,Adult Social Care and Health,ASCH,Third Party Payments,EGA,02/08/2019,05-10094,2284,Aldercar Residential Home
Nottinghamshire County Council,1111/1001,Adult Social Care and Health,ASCH,Third Party Payments,EGA,02/08/2019,05-10095,2484,Aldercar Residential Home
Nottinghamshire County Council,1111/1001,Adult Social Care and Health,ASCH,Third Party Payments,EGA,02/08/2019,05-10096,9065.92,Ascot House Residential Home
Nottinghamshire County Council,1111/1001,Adult Social Care and Health,ASCH,Third Party Payments,EGA,02/08/2019,05-10097,2100,Alexandra House (Eastgate)
Nottinghamshire County Council,1111/1001,Adult Social Care and Health,ASCH,Third Party Payments,EGA,02/08/2019,05-10098,2100,Alexandra House (Eastgate)
Nottinghamshire County Council,1111/1001,Adult Social Care and Health,ASCH,Third Party Payments,EGA,02/08/2019,05-10099,2232,Ashlands Residential Care Home
Nottinghamshire County Council,1111/1001,Adult Social Care and Health,ASCH,Third Party Payments,EGA,02/08/2019,05-10100,2232,Ashlands Residential Care Home
Nottinghamshire County Council,1111/1001,Adult Social Care and Health,ASCH,Third Party Payments,EGA,02/08/2019,05-10101,2232,Ashlands Residential Care Home
Nottinghamshire County Council,1111/1001,Adult Social Care and Health,ASCH,Third Party Payments,EGA,02/08/2019,05-10102,6597.36,Ash Villa (MGB)
Nottinghamshire County Council,1111/1001,Adult Social Care and Health,ASCH,Third Party Payments,EGA,02/08/2019,05-10103,2620,Ashley House Nursing Home
Nottinghamshire County Council,1111/1001,Adult Social Care and Health,ASCH,Third Party Payments,EGA,02/08/2019,05-10104,2784,Ashley House Nursing Home
Nottinghamshire County Council,1111/1001,Adult Social Care and Health,ASCH,Third Party Payments,EGA,02/08/2019,05-10105,2567,Acer Court Care Home
Nottinghamshire County Council,1111/1001,Adult Social Care and Health,ASCH,Third Party Payments,EGA,02/08/2019,05-10106,2266.48,Acacia Care Cent (HC One)
Nottinghamshire County Council,1111/1001,Adult Social Care and Health,ASCH,Third Party Payments,EGA,02/08/2019,05-10107,2352,Ashcroft Care Home
Nottinghamshire County Council,1111/1001,Adult Social Care and Health,ASCH,Third Party Payments,EGA,02/08/2019,05-10108,2352,Ashcroft Care Home
Nottinghamshire County Council,1111/1001,Adult Social Care and Health,ASCH,Third Party Payments,EGA,02/08/2019,05-10109,2784,Ashcroft Care Home
Nottinghamshire County Council,1111/1001,Adult Social Care and Health,ASCH,Third Party Payments,EGA,02/08/2019,05-10110,2784,Ashcroft Care Home
Nottinghamshire County Council,1111/1001,Adult Social Care and Health,ASCH,Third Party Payments,EGA,02/08/2019,05-10111,10232.08,Whitegates (Sparken Hill)
Nottinghamshire County Council,1111/1001,Adult Social Care and Health,ASCH,Third Party Payments,EGA,02/08/2019,05-10112,2205.24,Amathea Care Centre (MHA)
Nottinghamshire County Council,1111/1001,Adult Social Care and Health,ASCH,Third Party Payments,EGA,02/08/2019,05-10113,12348.88,Fairview Care Home (Autism East Mid
Body Name,Body,Service Label,Service Code,CIPFA Detailed Expenditure Type,CIPFA Detailed Expenditure CodeDate,,Transaction NumberNet Amount,,Supplier Name
Nottinghamshire County Council,1111/1001,Adult Social Care and Health,ASCH,Third Party Payments,EGA,02/08/2019,05-10114,2604,Albemarle Court
Nottinghamshire County Council,1111/1001,Adult Social Care and Health,ASCH,Third Party Payments,EGA,02/08/2019,05-10115,2556,Adbolton Hall Nursing Home (MPS)
Nottinghamshire County Council,1111/1001,Adult Social Care and Health,ASCH,Third Party Payments,EGA,02/08/2019,05-10116,2100,Adbolton Hall Nursing Home (MPS)
Nottinghamshire County Council,1111/1001,Adult Social Care and Health,ASCH,Third Party Payments,EGA,02/08/2019,05-10117,2484,Aldercar Residential Home
Nottinghamshire County Council,1111/1001,Adult Social Care and Health,ASCH,Third Party Payments,EGA,02/08/2019,05-10118,2100,Alexandra House (Eastgate)
Nottinghamshire County Council,1111/1001,Adult Social Care and Health,ASCH,Third Party Payments,EGA,02/08/2019,05-10119,2232,Ashlands Residential Care Home
Nottinghamshire County Council,1111/1001,Adult Social Care and Health,ASCH,Third Party Payments,EGA,02/08/2019,05-10120,12063.68,Ash Villa (MGB)
Nottinghamshire County Council,1111/1001,Adult Social Care and Health,ASCH,Third Party Payments,EGA,02/08/2019,05-10121,2784,Ashley House Nursing Home
Nottinghamshire County Council,1111/1001,Adult Social Care and Health,ASCH,Third Party Payments,EGA,02/08/2019,05-10122,2284,Ashton Court
Nottinghamshire County Council,1111/1001,Adult Social Care and Health,ASCH,Third Party Payments,EGA,02/08/2019,05-10123,2284,Ashton Court
Nottinghamshire County Council,1111/1001,Adult Social Care and Health,ASCH,Third Party Payments,EGA,02/08/2019,05-10124,2552,Acer Court Care Home
Nottinghamshire County Council,1111/1001,Adult Social Care and Health,ASCH,Third Party Payments,EGA,02/08/2019,05-10125,2352,Acer Court Care Home
Nottinghamshire County Council,1111/1001,Adult Social Care and Health,ASCH,Third Party Payments,EGA,02/08/2019,05-10126,2632,Acer Court Care Home
Nottinghamshire County Council,1111/1001,Adult Social Care and Health,ASCH,Third Party Payments,EGA,02/08/2019,05-10127,2604,Ashcroft Care Home
Nottinghamshire County Council,1111/1001,Adult Social Care and Health,ASCH,Third Party Payments,EGA,02/08/2019,05-10128,3340,Ashcroft Care Home
Nottinghamshire County Council,1111/1001,Adult Social Care and Health,ASCH,Third Party Payments,EGA,02/08/2019,05-10129,2472.96,Ashfield Nursing Home
Nottinghamshire County Council,1111/1001,Adult Social Care and Health,ASCH,Third Party Payments,EGA,02/08/2019,05-10130,1892,Ashfield Nursing Home
Nottinghamshire County Council,1111/1001,Adult Social Care and Health,ASCH,Third Party Payments,EGA,02/08/2019,05-10131,2056,Ashfield Nursing Home
Nottinghamshire County Council,1111/1001,Adult Social Care and Health,ASCH,Third Party Payments,EGA,02/08/2019,05-10132,2604,Albemarle Court
Nottinghamshire County Council,1111/1001,Adult Social Care and Health,ASCH,Third Party Payments,EGA,02/08/2019,05-10133,2604,Albemarle Court
Nottinghamshire County Council,1111/1001,Adult Social Care and Health,ASCH,Third Party Payments,EGA,02/08/2019,05-10134,2724,Albemarle Court
Nottinghamshire County Council,1111/1001,Adult Social Care and Health,ASCH,Third Party Payments,EGA,02/08/2019,05-10135,2356,Adbolton Hall Nursing Home (MPS)
Nottinghamshire County Council,1111/1001,Adult Social Care and Health,ASCH,Third Party Payments,EGA,02/08/2019,05-10136,2100,Adbolton Hall Nursing Home (MPS)
Nottinghamshire County Council,1111/1001,Adult Social Care and Health,ASCH,Third Party Payments,EGA,02/08/2019,05-10137,2100,Alexandra House (Eastgate)
Nottinghamshire County Council,1111/1001,Adult Social Care and Health,ASCH,Third Party Payments,EGA,02/08/2019,05-10138,2556,Alexandra House (Eastgate)
Nottinghamshire County Council,1111/1001,Adult Social Care and Health,ASCH,Third Party Payments,EGA,02/08/2019,05-10139,2784,Ashley House Nursing Home
Nottinghamshire County Council,1111/1001,Adult Social Care and Health,ASCH,Third Party Payments,EGA,02/08/2019,05-10140,2824,Ashley House Nursing Home
Nottinghamshire County Council,1111/1001,Adult Social Care and Health,ASCH,Third Party Payments,EGA,02/08/2019,05-10141,2784,Ashley House Nursing Home
Nottinghamshire County Council,1111/1001,Adult Social Care and Health,ASCH,Third Party Payments,EGA,02/08/2019,05-10142,2784,Ashley House Nursing Home
Nottinghamshire County Council,1111/1001,Adult Social Care and Health,ASCH,Third Party Payments,EGA,02/08/2019,05-10143,2284,Ashton Court
Nottinghamshire County Council,1111/1001,Adult Social Care and Health,ASCH,Third Party Payments,EGA,02/08/2019,05-10144,2352,Acer Court Care Home
Nottinghamshire County Council,1111/1001,Adult Social Care and Health,ASCH,Third Party Payments,EGA,02/08/2019,05-10145,2632,Acer Court Care Home
Nottinghamshire County Council,1111/1001,Adult Social Care and Health,ASCH,Third Party Payments,EGA,02/08/2019,05-10146,2392,Acer Court Care Home
Nottinghamshire County Council,1111/1001,Adult Social Care and Health,ASCH,Third Party Payments,EGA,02/08/2019,05-10147,2352,Acer Court Care Home
Nottinghamshire County Council,1111/1001,Adult Social Care and Health,ASCH,Third Party Payments,EGA,02/08/2019,05-10148,2352,Ashcroft Care Home
Nottinghamshire County Council,1111/1001,Adult Social Care and Health,ASCH,Third Party Payments,EGA,02/08/2019,05-10149,5345.36,Whitegates (Sparken Hill)
Nottinghamshire County Council,1111/1001,Adult Social Care and Health,ASCH,Third Party Payments,EGA,02/08/2019,05-10150,2056,Ashfield Nursing Home
Nottinghamshire County Council,1111/1001,Adult Social Care and Health,ASCH,Third Party Payments,EGA,02/08/2019,05-10151,2978.76,Abbeyfield Care Home
Nottinghamshire County Council,1111/1001,Adult Social Care and Health,ASCH,Third Party Payments,EGA,02/08/2019,05-10152,8510.24,Fairview Care Home (Autism East Mid
Nottinghamshire County Council,1111/1001,Adult Social Care and Health,ASCH,Third Party Payments,EGA,02/08/2019,05-10153,2352,Albemarle Court
Nottinghamshire County Council,1111/1001,Adult Social Care and Health,ASCH,Third Party Payments,EGA,02/08/2019,05-10154,2604,Albemarle Court
Nottinghamshire County Council,1111/1001,Adult Social Care and Health,ASCH,Third Party Payments,EGA,02/08/2019,05-10155,2356,Adbolton Hall Nursing Home (MPS)
Nottinghamshire County Council,1111/1001,Adult Social Care and Health,ASCH,Third Party Payments,EGA,02/08/2019,05-10156,2484,Aldercar Residential Home
Nottinghamshire County Council,1111/1001,Adult Social Care and Health,ASCH,Third Party Payments,EGA,02/08/2019,05-10157,2356,Alexandra House (Eastgate)
Nottinghamshire County Council,1111/1001,Adult Social Care and Health,ASCH,Third Party Payments,EGA,02/08/2019,05-10158,2476,Alexandra House (Eastgate)
Nottinghamshire County Council,1111/1001,Adult Social Care and Health,ASCH,Third Party Payments,EGA,02/08/2019,05-10159,2232,Ashlands Residential Care Home
Body Name,Body,Service Label,Service Code,CIPFA Detailed Expenditure Type,CIPFA Detailed Expenditure CodeDate,,Transaction NumberNet Amount,,Supplier Name
Nottinghamshire County Council,1111/1001,Adult Social Care and Health,ASCH,Third Party Payments,EGA,02/08/2019,05-10160,2784,Ashley House Nursing Home
Nottinghamshire County Council,1111/1001,Adult Social Care and Health,ASCH,Third Party Payments,EGA,02/08/2019,05-10161,2604,Ashley House Nursing Home
Nottinghamshire County Council,1111/1001,Adult Social Care and Health,ASCH,Third Party Payments,EGA,02/08/2019,05-10162,2880,Ashley House Nursing Home
Nottinghamshire County Council,1111/1001,Adult Social Care and Health,ASCH,Third Party Payments,EGA,02/08/2019,05-10163,2484,Ashton Court
Nottinghamshire County Council,1111/1001,Adult Social Care and Health,ASCH,Third Party Payments,EGA,02/08/2019,05-10164,2284,Ashton Court
Nottinghamshire County Council,1111/1001,Adult Social Care and Health,ASCH,Third Party Payments,EGA,02/08/2019,05-10165,2392,Acer Court Care Home
Nottinghamshire County Council,1111/1001,Adult Social Care and Health,ASCH,Third Party Payments,EGA,02/08/2019,05-10166,2552,Acer Court Care Home
Nottinghamshire County Council,1111/1001,Adult Social Care and Health,ASCH,Third Party Payments,EGA,02/08/2019,05-10167,2266.48,Acacia Care Cent (HC One)
Nottinghamshire County Council,1111/1001,Adult Social Care and Health,ASCH,Third Party Payments,EGA,02/08/2019,05-10168,4328.36,Alfred Minto House Residential Home
Nottinghamshire County Council,1111/1001,Adult Social Care and Health,ASCH,Third Party Payments,EGA,02/08/2019,05-10169,4328.36,Alfred Minto House Residential Home
Nottinghamshire County Council,1111/1001,Adult Social Care and Health,ASCH,Third Party Payments,EGA,02/08/2019,05-10170,2762.64,Ashcroft Care Home
Nottinghamshire County Council,1111/1001,Adult Social Care and Health,ASCH,Third Party Payments,EGA,02/08/2019,05-10171,2784,Ashcroft Care Home
Nottinghamshire County Council,1111/1001,Adult Social Care and Health,ASCH,Third Party Payments,EGA,02/08/2019,05-10172,2560,Ashcroft Care Home
Nottinghamshire County Council,1111/1001,Adult Social Care and Health,ASCH,Third Party Payments,EGA,02/08/2019,05-10173,2680,Ashcroft Care Home
Nottinghamshire County Council,1111/1001,Adult Social Care and Health,ASCH,Third Party Payments,EGA,02/08/2019,05-10174,2784,Ashcroft Care Home
Nottinghamshire County Council,1111/1001,Adult Social Care and Health,ASCH,Third Party Payments,EGA,02/08/2019,05-10175,10782.36,Beechwood Nursing Home (NORSACA)
Nottinghamshire County Council,1111/1001,Adult Social Care and Health,ASCH,Third Party Payments,EGA,02/08/2019,05-10176,2056,Ashfield Nursing Home
Nottinghamshire County Council,1111/1001,Adult Social Care and Health,ASCH,Third Party Payments,EGA,02/08/2019,05-10177,2056,Ashfield Nursing Home
Nottinghamshire County Council,1111/1001,Adult Social Care and Health,ASCH,Third Party Payments,EGA,02/08/2019,05-10178,2056,Ashfield Nursing Home
Nottinghamshire County Council,1111/1001,Adult Social Care and Health,ASCH,Third Party Payments,EGA,02/08/2019,05-10179,2311.96,Ashcroft Care Home (Derbyshire)
Nottinghamshire County Council,1111/1001,Adult Social Care and Health,ASCH,Third Party Payments,EGA,02/08/2019,05-10180,2236,Ashdown Care Ltd
Nottinghamshire County Council,1111/1001,Adult Social Care and Health,ASCH,Third Party Payments,EGA,02/08/2019,05-10181,2604,Albemarle Court
Nottinghamshire County Council,1111/1001,Adult Social Care and Health,ASCH,Third Party Payments,EGA,02/08/2019,05-10182,2604,Albemarle Court
Nottinghamshire County Council,1111/1001,Adult Social Care and Health,ASCH,Third Party Payments,EGA,02/08/2019,05-10183,2604,Albemarle Court
Nottinghamshire County Council,1111/1001,Adult Social Care and Health,ASCH,Third Party Payments,EGA,02/08/2019,05-10184,2604,Albemarle Court
Nottinghamshire County Council,1111/1001,Adult Social Care and Health,ASCH,Third Party Payments,EGA,02/08/2019,05-10185,2356,Adbolton Hall Nursing Home (MPS)
Nottinghamshire County Council,1111/1001,Adult Social Care and Health,ASCH,Third Party Payments,EGA,02/08/2019,05-10186,2100,Adbolton Hall Nursing Home (MPS)
Nottinghamshire County Council,1111/1001,Adult Social Care and Health,ASCH,Third Party Payments,EGA,02/08/2019,05-10187,2356,Adbolton Hall Nursing Home (MPS)
Nottinghamshire County Council,1111/1001,Adult Social Care and Health,ASCH,Third Party Payments,EGA,02/08/2019,05-10188,2480,Albemarle Hall Nursing Home
Nottinghamshire County Council,1111/1001,Adult Social Care and Health,ASCH,Third Party Payments,EGA,02/08/2019,05-10189,2824,Ashley House Nursing Home
Nottinghamshire County Council,1111/1001,Adult Social Care and Health,ASCH,Third Party Payments,EGA,02/08/2019,05-10190,2560,Ashley House Nursing Home
Nottinghamshire County Council,1111/1001,Adult Social Care and Health,ASCH,Third Party Payments,EGA,02/08/2019,05-10191,2484,Ashton Court
Nottinghamshire County Council,1111/1001,Adult Social Care and Health,ASCH,Third Party Payments,EGA,02/08/2019,05-10192,2284,Ashton Court
Nottinghamshire County Council,1111/1001,Adult Social Care and Health,ASCH,Third Party Payments,EGA,02/08/2019,05-10193,2284,Ashton Court
Nottinghamshire County Council,1111/1001,Adult Social Care and Health,ASCH,Third Party Payments,EGA,02/08/2019,05-10194,2284,Ashton Court
Nottinghamshire County Council,1111/1001,Adult Social Care and Health,ASCH,Third Party Payments,EGA,02/08/2019,05-10195,2547.76,Autumn Grange Care Home
Nottinghamshire County Council,1111/1001,Adult Social Care and Health,ASCH,Third Party Payments,EGA,02/08/2019,05-10196,2630.72,Acer Court Care Home
Nottinghamshire County Council,1111/1001,Adult Social Care and Health,ASCH,Third Party Payments,EGA,02/08/2019,05-10197,2632,Acer Court Care Home
Nottinghamshire County Council,1111/1001,Adult Social Care and Health,ASCH,Third Party Payments,EGA,02/08/2019,05-10198,4186.04,Alfred Minto House Residential Home
Nottinghamshire County Council,1111/1001,Adult Social Care and Health,ASCH,Third Party Payments,EGA,02/08/2019,05-10199,2604,Ashcroft Care Home
Nottinghamshire County Council,1111/1001,Adult Social Care and Health,ASCH,Third Party Payments,EGA,02/08/2019,05-10200,2604,Ashcroft Care Home
Nottinghamshire County Council,1111/1001,Adult Social Care and Health,ASCH,Third Party Payments,EGA,02/08/2019,05-10201,2784,Ashcroft Care Home
Nottinghamshire County Council,1111/1001,Adult Social Care and Health,ASCH,Third Party Payments,EGA,02/08/2019,05-10202,2604,Ashcroft Care Home
Nottinghamshire County Council,1111/1001,Adult Social Care and Health,ASCH,Third Party Payments,EGA,02/08/2019,05-10203,5214.88,Beechwood Nursing Home (NORSACA)
Nottinghamshire County Council,1111/1001,Adult Social Care and Health,ASCH,Third Party Payments,EGA,02/08/2019,05-10204,2056,Ashfield Nursing Home
Nottinghamshire County Council,1111/1001,Adult Social Care and Health,ASCH,Third Party Payments,EGA,02/08/2019,05-10205,2056,Ashfield Nursing Home
Body Name,Body,Service Label,Service Code,CIPFA Detailed Expenditure Type,CIPFA Detailed Expenditure CodeDate,,Transaction NumberNet Amount,,Supplier Name
Nottinghamshire County Council,1111/1001,Adult Social Care and Health,ASCH,Third Party Payments,EGA,02/08/2019,05-10206,4116,Albemarle Court
Nottinghamshire County Council,1111/1001,Adult Social Care and Health,ASCH,Third Party Payments,EGA,02/08/2019,05-10207,2604,Albemarle Court
Nottinghamshire County Council,1111/1001,Adult Social Care and Health,ASCH,Third Party Payments,EGA,02/08/2019,05-10208,2356,Adbolton Hall Nursing Home (MPS)
Nottinghamshire County Council,1111/1001,Adult Social Care and Health,ASCH,Third Party Payments,EGA,02/08/2019,05-10209,2100,Adbolton Hall Nursing Home (MPS)
Nottinghamshire County Council,1111/1001,Adult Social Care and Health,ASCH,Third Party Payments,EGA,02/08/2019,05-10210,2284,Aldercar Residential Home
Nottinghamshire County Council,1111/1001,Adult Social Care and Health,ASCH,Third Party Payments,EGA,02/08/2019,05-10211,9065.92,Ascot House Residential Home
Nottinghamshire County Council,1111/1001,Adult Social Care and Health,ASCH,Third Party Payments,EGA,02/08/2019,05-10212,2480,Albemarle Hall Nursing Home
Nottinghamshire County Council,1111/1001,Adult Social Care and Health,ASCH,Third Party Payments,EGA,02/08/2019,05-10213,2480,Albemarle Hall Nursing Home
Nottinghamshire County Council,1111/1001,Adult Social Care and Health,ASCH,Third Party Payments,EGA,02/08/2019,05-10214,2632,Albemarle Hall Nursing Home
Nottinghamshire County Council,1111/1001,Adult Social Care and Health,ASCH,Third Party Payments,EGA,02/08/2019,05-10215,2356,Alexandra House (Eastgate)
Nottinghamshire County Council,1111/1001,Adult Social Care and Health,ASCH,Third Party Payments,EGA,02/08/2019,05-10216,2232,Ashlands Residential Care Home
Nottinghamshire County Council,1111/1001,Adult Social Care and Health,ASCH,Third Party Payments,EGA,02/08/2019,05-10217,2232,Ashlands Residential Care Home
Nottinghamshire County Council,1111/1001,Adult Social Care and Health,ASCH,Third Party Payments,EGA,02/08/2019,05-10218,5138.68,Ash Villa (MGB)
Nottinghamshire County Council,1111/1001,Adult Social Care and Health,ASCH,Third Party Payments,EGA,02/08/2019,05-10219,2956.24,Ashley Court Care Home
Nottinghamshire County Council,1111/1001,Adult Social Care and Health,ASCH,Third Party Payments,EGA,02/08/2019,05-10220,2784,Ashley House Nursing Home
Nottinghamshire County Council,1111/1001,Adult Social Care and Health,ASCH,Third Party Payments,EGA,02/08/2019,05-10221,2784,Ashley House Nursing Home
Nottinghamshire County Council,1111/1001,Adult Social Care and Health,ASCH,Third Party Payments,EGA,02/08/2019,05-10222,2417.8,Ashley House Nursing Home
Nottinghamshire County Council,1111/1001,Adult Social Care and Health,ASCH,Third Party Payments,EGA,02/08/2019,05-10223,2784,Ashley House Nursing Home
Nottinghamshire County Council,1111/1001,Adult Social Care and Health,ASCH,Third Party Payments,EGA,02/08/2019,05-10224,2844,Ashley House Nursing Home
Nottinghamshire County Council,1111/1001,Adult Social Care and Health,ASCH,Third Party Payments,EGA,02/08/2019,05-10225,2484,Ashton Court
Nottinghamshire County Council,1111/1001,Adult Social Care and Health,ASCH,Third Party Payments,EGA,02/08/2019,05-10226,2552,Acer Court Care Home
Nottinghamshire County Council,1111/1001,Adult Social Care and Health,ASCH,Third Party Payments,EGA,02/08/2019,05-10227,2266.48,Acacia Care Cent (HC One)
Nottinghamshire County Council,1111/1001,Adult Social Care and Health,ASCH,Third Party Payments,EGA,02/08/2019,05-10228,2560,Ashcroft Care Home
Nottinghamshire County Council,1111/1001,Adult Social Care and Health,ASCH,Third Party Payments,EGA,02/08/2019,05-10229,2784,Ashcroft Care Home
Nottinghamshire County Council,1111/1001,Adult Social Care and Health,ASCH,Third Party Payments,EGA,02/08/2019,05-10230,2680,Ashcroft Care Home
Nottinghamshire County Council,1111/1001,Adult Social Care and Health,ASCH,Third Party Payments,EGA,02/08/2019,05-10231,2560,Ashcroft Care Home
Nottinghamshire County Council,1111/1001,Adult Social Care and Health,ASCH,Third Party Payments,EGA,02/08/2019,05-10232,2352,Ashcroft Care Home
Nottinghamshire County Council,1111/1001,Adult Social Care and Health,ASCH,Third Party Payments,EGA,02/08/2019,05-10233,5214.88,Beechwood Nursing Home (NORSACA)
Nottinghamshire County Council,1111/1001,Adult Social Care and Health,ASCH,Third Party Payments,EGA,02/08/2019,05-10234,2056,Ashfield Nursing Home
Nottinghamshire County Council,1111/1001,Adult Social Care and Health,ASCH,Third Party Payments,EGA,02/08/2019,05-10235,2056,Ashfield Nursing Home
Nottinghamshire County Council,1111/1001,Adult Social Care and Health,ASCH,Third Party Payments,EGA,02/08/2019,05-10236,2056,Ashfield Nursing Home
Nottinghamshire County Council,1111/1001,Adult Social Care and Health,ASCH,Third Party Payments,EGA,02/08/2019,05-10237,2832,Alder House
Nottinghamshire County Council,1111/1001,Adult Social Care and Health,ASCH,Third Party Payments,EGA,02/08/2019,05-10238,2532,Ashdale Care Home (Isys)
Nottinghamshire County Council,1111/1001,Adult Social Care and Health,ASCH,Third Party Payments,EGA,02/08/2019,05-10239,2668,Ashdale Care Home (Isys)
Nottinghamshire County Council,1111/1001,Adult Social Care and Health,ASCH,Third Party Payments,EGA,02/08/2019,05-10240,2200.6,Astley Grange Nursing Home (Mulbery
Nottinghamshire County Council,1111/1001,Adult Social Care and Health,ASCH,Third Party Payments,EGA,02/08/2019,05-10241,5399.2,Fairview Care Home (Autism East Mid
Nottinghamshire County Council,1111/1001,Adult Social Care and Health,ASCH,Third Party Payments,EGA,02/08/2019,05-10242,2352,Albemarle Court
Nottinghamshire County Council,1111/1001,Adult Social Care and Health,ASCH,Third Party Payments,EGA,02/08/2019,05-10243,2604,Albemarle Court
Nottinghamshire County Council,1111/1001,Adult Social Care and Health,ASCH,Third Party Payments,EGA,02/08/2019,05-10244,2356,Adbolton Hall Nursing Home (MPS)
Nottinghamshire County Council,1111/1001,Adult Social Care and Health,ASCH,Third Party Payments,EGA,02/08/2019,05-10245,2100,Adbolton Hall Nursing Home (MPS)
Nottinghamshire County Council,1111/1001,Adult Social Care and Health,ASCH,Third Party Payments,EGA,02/08/2019,05-10246,2100,Adbolton Hall Nursing Home (MPS)
Nottinghamshire County Council,1111/1001,Adult Social Care and Health,ASCH,Third Party Payments,EGA,02/08/2019,05-10247,9065.92,Ascot House Residential Home
Nottinghamshire County Council,1111/1001,Adult Social Care and Health,ASCH,Third Party Payments,EGA,02/08/2019,05-10248,2480,Albemarle Hall Nursing Home
Nottinghamshire County Council,1111/1001,Adult Social Care and Health,ASCH,Third Party Payments,EGA,02/08/2019,05-10249,2480,Albemarle Hall Nursing Home
Nottinghamshire County Council,1111/1001,Adult Social Care and Health,ASCH,Third Party Payments,EGA,02/08/2019,05-10250,2356,Alexandra House (Eastgate)
Nottinghamshire County Council,1111/1001,Adult Social Care and Health,ASCH,Third Party Payments,EGA,02/08/2019,05-10251,2356,Alexandra House (Eastgate)
Body Name,Body,Service Label,Service Code,CIPFA Detailed Expenditure Type,CIPFA Detailed Expenditure CodeDate,,Transaction NumberNet Amount,,Supplier Name
Nottinghamshire County Council,1111/1001,Adult Social Care and Health,ASCH,Third Party Payments,EGA,02/08/2019,05-10252,2100,Alexandra House (Eastgate)
Nottinghamshire County Council,1111/1001,Adult Social Care and Health,ASCH,Third Party Payments,EGA,02/08/2019,05-10253,2336.84,Alexandra House (Eastgate)
Nottinghamshire County Council,1111/1001,Adult Social Care and Health,ASCH,Third Party Payments,EGA,02/08/2019,05-10254,2232,Ashlands Residential Care Home
Nottinghamshire County Council,1111/1001,Adult Social Care and Health,ASCH,Third Party Payments,EGA,02/08/2019,05-10255,2232,Ashlands Residential Care Home
Nottinghamshire County Council,1111/1001,Adult Social Care and Health,ASCH,Third Party Payments,EGA,02/08/2019,05-10256,6884,Ash Villa (MGB)
Nottinghamshire County Council,1111/1001,Adult Social Care and Health,ASCH,Third Party Payments,EGA,02/08/2019,05-10257,2784,Ashley House Nursing Home
Nottinghamshire County Council,1111/1001,Adult Social Care and Health,ASCH,Third Party Payments,EGA,02/08/2019,05-10258,2880,Ashley House Nursing Home
Nottinghamshire County Council,1111/1001,Adult Social Care and Health,ASCH,Third Party Payments,EGA,02/08/2019,05-10259,2604,Ashley House Nursing Home
Nottinghamshire County Council,1111/1001,Adult Social Care and Health,ASCH,Third Party Payments,EGA,02/08/2019,05-10260,2784,Ashley House Nursing Home
